Body Name,Date Paid,Transaction Number,Amount,Supplier Name,Supplier Type,Expense Area,Cost Centre Description,Expense Type
Cambridgeshire County Council,09-Aug-19,51301091854,"-70,855.89",GLENHOLME HEALTHCARE LTD,CARE ESTABLISHMENT,LD - Young Adults Team,LD - Young Adults - Care,Residential Care
Cambridgeshire County Council,14-Aug-19,51301021304,"-51,870.00",SANCTUARY CARE LIMITED,CARE ESTABLISHMENT,Authority-wide Miscellaneous,Miscellaneous - Other,Unallocated Budget
Cambridgeshire County Council,01-Aug-19,51301021582,"-24,650.58",GASKELL REFURBISHMENTS LTD,COMPANY,County Farms,County Farms,County Farms Maintenance
Cambridgeshire County Council,09-Aug-19,51301091461,"-23,741.82",WOODLANDS CARE CENTRE,CARE ESTABLISHMENT,OPMH - City & South,Older People Mental Health City & South,Nursing Care
Cambridgeshire County Council,19-Aug-19,51301066051,"-21,965.00",THE SHIRES SCHOOL,EDUCATION,SEN Placements,Placements - Education,Independent School Placements
Cambridgeshire County Council,16-Aug-19,51301093302,"-19,377.03",BIG GREEN BUS,TRADE SUPPLIER,Passenger Transport other,Concessionary Fares,Concessions - payments to transport operators
Cambridgeshire County Council,21-Aug-19,51301092572,"-19,260.00",Geometric Results International Limited,TRADE SUPPLIER,Children's Services IT System,Children's Services IT System,IT Licenses
Cambridgeshire County Council,27-Aug-19,51301133431,"-18,532.80",OPUS LGSS (PEOPLE SOLUTIONS) LTD,TRADE SUPPLIER,LGSS Business Planning & Finance,LGSS Finance,Agency Staff
Cambridgeshire County Council,09-Aug-19,51301037281,"-14,275.24",THE MANOR CHESHIRE HOME,CARE ESTABLISHMENT,LD - Hunts Locality,LD - Huntigndonshire  - Special Needs,Residential Care
Cambridgeshire County Council,23-Aug-19,51301133655,"-11,600.00",WHIPPET COACHES LIMITED,TRADE SUPPLIER,Passenger Transport other,Concessionary Fares,Concessions - payments to transport operators
Cambridgeshire County Council,09-Aug-19,51301091164,"-9,620.00",ABBEY HEALTHCARE (HUNTINGDON) LTD,CARE ESTABLISHMENT,OP - Hunts Blocks,Hunts - Short term blocks,Rehabilitation And Respite Care
Cambridgeshire County Council,09-Aug-19,51301091170,"-9,620.00",ABBEY HEALTHCARE (HUNTINGDON) LTD,CARE ESTABLISHMENT,OP - Hunts Blocks,Hunts - Short term blocks,Rehabilitation And Respite Care
Cambridgeshire County Council,21-Aug-19,51300508413,"-9,600.00",HFT TRUST LTD,TRUST (OTHER),LD - Hunts Locality,LD - Huntigndonshire  - Care,Supported Living
Cambridgeshire County Council,28-Aug-19,51301133694,"-7,503.00",DIOCESE OF ELY,TRADE SUPPLIER,School Organisation and Planning - Head of Service,Head of Infrastructure,External Legal Fees
Cambridgeshire County Council,09-Aug-19,51301037290,"-7,220.92",THE MANOR CHESHIRE HOME,CARE ESTABLISHMENT,Physical Disablity,Countywide PD Service - Care,Residential Care
Cambridgeshire County Council,09-Aug-19,51301037268,"-6,987.68",THE MANOR CHESHIRE HOME,CARE ESTABLISHMENT,Physical Disablity,Countywide PD Service - Care,Residential Care
Cambridgeshire County Council,09-Aug-19,51301037262,"-6,511.68",THE MANOR CHESHIRE HOME,CARE ESTABLISHMENT,OP - Hunts Locality,Hunts O P  Team,Residential Care
Cambridgeshire County Council,21-Aug-19,51301093327,"-6,036.00",WHIPPET COACHES LIMITED,TRADE SUPPLIER,Passenger Transport other,Cambridgeshire Future Transport,Support - subsidised bus routes
Cambridgeshire County Council,27-Aug-19,51301092722,"-5,616.00",Geometric Results International Limited,TRADE SUPPLIER,Digital Systems,Project Mosaic,Consultancy
Cambridgeshire County Council,07-Aug-19,51300570095,"-5,400.00",FORD HOUSE CARE HOME,CARE ESTABLISHMENT,OP - Hunts Blocks,Hunts - Short term blocks,Rehabilitation And Respite Care
Cambridgeshire County Council,28-Aug-19,51301021310,"-5,313.06",THE CONSULTATION INSTITUTE,TRADE SUPPLIER,Authority-wide Miscellaneous,Miscellaneous - Other,Unallocated Budget
Cambridgeshire County Council,05-Aug-19,51300673695,"-5,085.60",SANCTON WOOD SCHOOL,NURSERY,SEND High Needs Top Up,"SEND Specialist Services,High Needs Top Up,Other institutions",Educational Materials
Cambridgeshire County Council,09-Aug-19,51301090540,"-4,655.00",Accomplish Group Support Limited,CARE ESTABLISHMENT,LD - Hunts Locality,LD - Huntigndonshire  - Care,Rehabilitation And Respite Care
Cambridgeshire County Council,09-Aug-19,51301090541,"-4,655.00",Accomplish Group Support Limited,CARE ESTABLISHMENT,LD - Hunts Locality,LD - Huntigndonshire  - Care,Rehabilitation And Respite Care
Cambridgeshire County Council,09-Aug-19,51301075723,"-4,655.00",Accomplish Group Support Limited,CARE ESTABLISHMENT,LD - Hunts Locality,LD - Huntigndonshire  - Care,Rehabilitation And Respite Care
Cambridgeshire County Council,09-Aug-19,51301075722,"-4,655.00",Accomplish Group Support Limited,CARE ESTABLISHMENT,LD - Hunts Locality,LD - Huntigndonshire  - Care,Rehabilitation And Respite Care
Cambridgeshire County Council,09-Aug-19,51301090528,"-4,655.00",Accomplish Group Support Limited,CARE ESTABLISHMENT,LD - Hunts Locality,LD - Huntigndonshire  - Care,Rehabilitation And Respite Care
Cambridgeshire County Council,09-Aug-19,51301083015,"-4,655.00",Accomplish Group Support Limited,CARE ESTABLISHMENT,LD - Hunts Locality,LD - Huntigndonshire  - Care,Rehabilitation And Respite Care
Cambridgeshire County Council,09-Aug-19,51301083003,"-4,655.00",Accomplish Group Support Limited,CARE ESTABLISHMENT,LD - Hunts Locality,LD - Huntigndonshire  - Care,Rehabilitation And Respite Care
Cambridgeshire County Council,09-Aug-19,51301090527,"-4,655.00",Accomplish Group Support Limited,CARE ESTABLISHMENT,LD - Hunts Locality,LD - Huntigndonshire  - Care,Rehabilitation And Respite Care
Cambridgeshire County Council,09-Aug-19,51301075731,"-4,655.00",Accomplish Group Support Limited,CARE ESTABLISHMENT,LD - Hunts Locality,LD - Huntigndonshire  - Care,Rehabilitation And Respite Care
Cambridgeshire County Council,09-Aug-19,51301075718,"-4,655.00",Accomplish Group Support Limited,CARE ESTABLISHMENT,LD - Hunts Locality,LD - Huntigndonshire  - Care,Rehabilitation And Respite Care
Cambridgeshire County Council,09-Aug-19,51301075725,"-4,655.00",Accomplish Group Support Limited,CARE ESTABLISHMENT,LD - Hunts Locality,LD - Huntigndonshire  - Care,Rehabilitation And Respite Care
Cambridgeshire County Council,09-Aug-19,51301083020,"-4,655.00",Accomplish Group Support Limited,CARE ESTABLISHMENT,LD - Hunts Locality,LD - Huntigndonshire  - Care,Rehabilitation And Respite Care
Cambridgeshire County Council,09-Aug-19,51301090529,"-4,655.00",Accomplish Group Support Limited,CARE ESTABLISHMENT,LD - Hunts Locality,LD - Huntigndonshire  - Care,Rehabilitation And Respite Care
Cambridgeshire County Council,09-Aug-19,51301083006,"-4,655.00",Accomplish Group Support Limited,CARE ESTABLISHMENT,LD - Hunts Locality,LD - Huntigndonshire  - Care,Rehabilitation And Respite Care
Cambridgeshire County Council,09-Aug-19,51301083004,"-4,655.00",Accomplish Group Support Limited,CARE ESTABLISHMENT,LD - Hunts Locality,LD - Huntigndonshire  - Special Needs,Rehabilitation And Respite Care
Cambridgeshire County Council,09-Aug-19,51301090534,"-4,655.00",Accomplish Group Support Limited,CARE ESTABLISHMENT,LD - Hunts Locality,LD - Huntigndonshire  - Special Needs,Rehabilitation And Respite Care
Cambridgeshire County Council,09-Aug-19,51301083010,"-4,655.00",Accomplish Group Support Limited,CARE ESTABLISHMENT,LD - Hunts Locality,LD - Huntigndonshire  - Special Needs,Rehabilitation And Respite Care
Cambridgeshire County Council,09-Aug-19,51301083019,"-4,655.00",Accomplish Group Support Limited,CARE ESTABLISHMENT,LD - Hunts Locality,LD - Huntigndonshire  - Special Needs,Rehabilitation And Respite Care
Cambridgeshire County Council,09-Aug-19,51301090525,"-4,655.00",Accomplish Group Support Limited,CARE ESTABLISHMENT,LD - Hunts Locality,LD - Huntigndonshire  - Special Needs,Rehabilitation And Respite Care
Cambridgeshire County Council,09-Aug-19,51301075724,"-4,655.00",Accomplish Group Support Limited,CARE ESTABLISHMENT,LD - Hunts Locality,LD - Huntigndonshire  - Special Needs,Rehabilitation And Respite Care
Cambridgeshire County Council,09-Aug-19,51301075726,"-4,655.00",Accomplish Group Support Limited,CARE ESTABLISHMENT,LD - Hunts Locality,LD - Huntigndonshire  - Special Needs,Rehabilitation And Respite Care
Cambridgeshire County Council,09-Aug-19,51301083016,"-4,655.00",Accomplish Group Support Limited,CARE ESTABLISHMENT,LD - Hunts Locality,LD - Huntigndonshire  - Special Needs,Rehabilitation And Respite Care
Cambridgeshire County Council,09-Aug-19,51301090531,"-4,655.00",Accomplish Group Support Limited,CARE ESTABLISHMENT,LD - Hunts Locality,LD - Huntigndonshire  - Special Needs,Rehabilitation And Respite Care
Cambridgeshire County Council,09-Aug-19,51301075721,"-4,655.00",Accomplish Group Support Limited,CARE ESTABLISHMENT,LD - Hunts Locality,LD - Huntigndonshire  - Special Needs,Rehabilitation And Respite Care
Cambridgeshire County Council,09-Aug-19,51301083013,"-4,655.00",Accomplish Group Support Limited,CARE ESTABLISHMENT,LD - Hunts Locality,LD - Huntigndonshire  - Special Needs,Rehabilitation And Respite Care
Cambridgeshire County Council,09-Aug-19,51301090536,"-4,655.00",Accomplish Group Support Limited,CARE ESTABLISHMENT,LD - Hunts Locality,LD - Huntigndonshire  - Special Needs,Rehabilitation And Respite Care
Cambridgeshire County Council,09-Aug-19,51301075717,"-4,655.00",Accomplish Group Support Limited,CARE ESTABLISHMENT,LD - Hunts Locality,LD - Huntigndonshire  - Special Needs,Rehabilitation And Respite Care
Cambridgeshire County Council,16-Aug-19,51301094758,"-4,655.00",Accomplish Group Support Limited,CARE ESTABLISHMENT,LD - Hunts Locality,LD - Huntigndonshire  - Care,Rehabilitation And Respite Care
Cambridgeshire County Council,16-Aug-19,51301094757,"-4,655.00",Accomplish Group Support Limited,CARE ESTABLISHMENT,LD - Hunts Locality,LD - Huntigndonshire  - Care,Rehabilitation And Respite Care
Cambridgeshire County Council,16-Aug-19,51301094754,"-4,655.00",Accomplish Group Support Limited,CARE ESTABLISHMENT,LD - Hunts Locality,LD - Huntigndonshire  - Care,Rehabilitation And Respite Care
Cambridgeshire County Council,16-Aug-19,51301094750,"-4,655.00",Accomplish Group Support Limited,CARE ESTABLISHMENT,LD - Hunts Locality,LD - Huntigndonshire  - Care,Rehabilitation And Respite Care
Cambridgeshire County Council,16-Aug-19,51301094760,"-4,655.00",Accomplish Group Support Limited,CARE ESTABLISHMENT,LD - Hunts Locality,LD - Huntigndonshire  - Care,Rehabilitation And Respite Care
Cambridgeshire County Council,16-Aug-19,51301094740,"-4,655.00",Accomplish Group Support Limited,CARE ESTABLISHMENT,LD - Hunts Locality,LD - Huntigndonshire  - Care,Rehabilitation And Respite Care
Cambridgeshire County Council,16-Aug-19,51301094731,"-4,655.00",Accomplish Group Support Limited,CARE ESTABLISHMENT,LD - Hunts Locality,LD - Huntigndonshire  - Special Needs,Rehabilitation And Respite Care
Cambridgeshire County Council,16-Aug-19,51301094765,"-4,655.00",Accomplish Group Support Limited,CARE ESTABLISHMENT,LD - Hunts Locality,LD - Huntigndonshire  - Special Needs,Rehabilitation And Respite Care
Cambridgeshire County Council,16-Aug-19,51301094753,"-4,655.00",Accomplish Group Support Limited,CARE ESTABLISHMENT,LD - Hunts Locality,LD - Huntigndonshire  - Special Needs,Rehabilitation And Respite Care
Cambridgeshire County Council,09-Aug-19,51301037423,"-4,330.45",THE MANOR CHESHIRE HOME,CARE ESTABLISHMENT,Physical Disablity,Countywide PD Service - Care,Residential Care
Cambridgeshire County Council,16-Aug-19,51301105015,"-4,286.86",DIMENSIONS (UK) LTD,CARE ESTABLISHMENT,LD - South Locality,LD - South Cambs - Special Needs,Supported Living
Cambridgeshire County Council,16-Aug-19,51301104998,"-4,286.86",DIMENSIONS (UK) LTD,CARE ESTABLISHMENT,LD - South Locality,LD - South Cambs - Special Needs,Supported Living
Cambridgeshire County Council,16-Aug-19,51301105007,"-4,286.86",DIMENSIONS (UK) LTD,CARE ESTABLISHMENT,LD - South Locality,LD - South Cambs - Special Needs,Supported Living
Cambridgeshire County Council,16-Aug-19,51301105000,"-4,286.86",DIMENSIONS (UK) LTD,CARE ESTABLISHMENT,LD - South Locality,LD - South Cambs - Special Needs,Supported Living
Cambridgeshire County Council,16-Aug-19,51301105004,"-4,286.86",DIMENSIONS (UK) LTD,CARE ESTABLISHMENT,LD - South Locality,LD - South Cambs - Special Needs,Supported Living
Cambridgeshire County Council,16-Aug-19,51301105020,"-4,286.86",DIMENSIONS (UK) LTD,CARE ESTABLISHMENT,LD - South Locality,LD - South Cambs - Special Needs,Supported Living
Cambridgeshire County Council,16-Aug-19,51301105002,"-4,286.86",DIMENSIONS (UK) LTD,CARE ESTABLISHMENT,LD - South Locality,LD - South Cambs - Special Needs,Supported Living
Cambridgeshire County Council,16-Aug-19,51301105003,"-4,286.86",DIMENSIONS (UK) LTD,CARE ESTABLISHMENT,LD - South Locality,LD - South Cambs - Special Needs,Supported Living
Cambridgeshire County Council,16-Aug-19,51301105006,"-4,286.86",DIMENSIONS (UK) LTD,CARE ESTABLISHMENT,LD - South Locality,LD - South Cambs - Special Needs,Supported Living
Cambridgeshire County Council,16-Aug-19,51301105016,"-4,286.86",DIMENSIONS (UK) LTD,CARE ESTABLISHMENT,LD - South Locality,LD - South Cambs - Special Needs,Supported Living
Cambridgeshire County Council,16-Aug-19,51301105005,"-4,286.86",DIMENSIONS (UK) LTD,CARE ESTABLISHMENT,LD - South Locality,LD - South Cambs - Special Needs,Supported Living
Cambridgeshire County Council,16-Aug-19,51301105023,"-4,286.86",DIMENSIONS (UK) LTD,CARE ESTABLISHMENT,LD - South Locality,LD - South Cambs - Special Needs,Supported Living
Cambridgeshire County Council,16-Aug-19,51301105001,"-4,286.86",DIMENSIONS (UK) LTD,CARE ESTABLISHMENT,LD - South Locality,LD - South Cambs - Special Needs,Supported Living
Cambridgeshire County Council,27-Aug-19,51300868626,"-3,839.20",A2B Travel Group,TRADE SUPPLIER,Passenger Transport other,Cambridgeshire Future Transport,Support - subsidised bus routes
Cambridgeshire County Council,28-Aug-19,51301133875,"-3,686.94",THE CONSULTATION INSTITUTE,TRADE SUPPLIER,Authority-wide Miscellaneous,Miscellaneous - Other,Unallocated Budget
Cambridgeshire County Council,16-Aug-19,51301105022,"-3,674.45",DIMENSIONS (UK) LTD,CARE ESTABLISHMENT,LD - South Locality,LD - South Cambs - Special Needs,Supported Living
Cambridgeshire County Council,09-Aug-19,51301083018,"-3,325.00",Accomplish Group Support Limited,CARE ESTABLISHMENT,LD - Hunts Locality,LD - Huntigndonshire  - Care,Rehabilitation And Respite Care
Cambridgeshire County Council,09-Aug-19,51301090533,"-3,325.00",Accomplish Group Support Limited,CARE ESTABLISHMENT,LD - Hunts Locality,LD - Huntigndonshire  - Care,Rehabilitation And Respite Care
Cambridgeshire County Council,09-Aug-19,51301075730,"-3,325.00",Accomplish Group Support Limited,CARE ESTABLISHMENT,LD - Hunts Locality,LD - Huntigndonshire  - Special Needs,Rehabilitation And Respite Care
Cambridgeshire County Council,16-Aug-19,51301094736,"-3,325.00",Accomplish Group Support Limited,CARE ESTABLISHMENT,LD - Hunts Locality,LD - Huntigndonshire  - Care,Rehabilitation And Respite Care
Cambridgeshire County Council,27-Aug-19,51301119930,"-3,314.42",Geometric Results International Limited,TRADE SUPPLIER,Mosaic IT Infrastructure,Mosaic IT Infrastructure,IT Software
Cambridgeshire County Council,09-Aug-19,51301037368,"-3,070.20",THE MANOR CHESHIRE HOME,CARE ESTABLISHMENT,OP - Hunts Locality,Hunts O P  Team,Residential Care
Cambridgeshire County Council,29-Aug-19,51301134520,"-2,688.00",AG FAMILY SUPPORT LTD,OTHER PUBLIC BODIES,Contact,Contact Relief,Professional Fees and Hired Services
Cambridgeshire County Council,09-Aug-19,51301091697,"-2,635.93",AURORA ORCHARD MANOR,CARE ESTABLISHMENT,LD - Young Adults Team,LD - Young Adults - Special Needs,Residential Care
Cambridgeshire County Council,09-Aug-19,51301091697,"-2,635.93",AURORA ORCHARD MANOR,CARE ESTABLISHMENT,LD - Young Adults Team,LD - Young Adults - Special Needs,Residential Care
Cambridgeshire County Council,09-Aug-19,51301091697,"-2,635.93",AURORA ORCHARD MANOR,CARE ESTABLISHMENT,LD - Young Adults Team,LD - Young Adults - Special Needs,Residential Care
Cambridgeshire County Council,09-Aug-19,51301091697,"-2,635.93",AURORA ORCHARD MANOR,CARE ESTABLISHMENT,LD - Young Adults Team,LD - Young Adults - Special Needs,Residential Care
Cambridgeshire County Council,09-Aug-19,51301091697,"-2,635.93",AURORA ORCHARD MANOR,CARE ESTABLISHMENT,LD - Young Adults Team,LD - Young Adults - Special Needs,Residential Care
Cambridgeshire County Council,09-Aug-19,51301091697,"-2,635.93",AURORA ORCHARD MANOR,CARE ESTABLISHMENT,LD - Young Adults Team,LD - Young Adults - Special Needs,Residential Care
Cambridgeshire County Council,09-Aug-19,51301091697,"-2,635.93",AURORA ORCHARD MANOR,CARE ESTABLISHMENT,LD - Young Adults Team,LD - Young Adults - Special Needs,Residential Care
Cambridgeshire County Council,09-Aug-19,51301091697,"-2,635.93",AURORA ORCHARD MANOR,CARE ESTABLISHMENT,LD - Young Adults Team,LD - Young Adults - Special Needs,Residential Care
Cambridgeshire County Council,09-Aug-19,51301091697,"-2,635.93",AURORA ORCHARD MANOR,CARE ESTABLISHMENT,LD - Young Adults Team,LD - Young Adults - Special Needs,Residential Care
Cambridgeshire County Council,09-Aug-19,51301091697,"-2,635.93",AURORA ORCHARD MANOR,CARE ESTABLISHMENT,LD - Young Adults Team,LD - Young Adults - Special Needs,Residential Care
Cambridgeshire County Council,09-Aug-19,51301091697,"-2,635.93",AURORA ORCHARD MANOR,CARE ESTABLISHMENT,LD - Young Adults Team,LD - Young Adults - Special Needs,Residential Care
Cambridgeshire County Council,09-Aug-19,51301091697,"-2,635.93",AURORA ORCHARD MANOR,CARE ESTABLISHMENT,LD - Young Adults Team,LD - Young Adults - Special Needs,Residential Care
Cambridgeshire County Council,09-Aug-19,51301091697,"-2,635.93",AURORA ORCHARD MANOR,CARE ESTABLISHMENT,LD - Young Adults Team,LD - Young Adults - Special Needs,Residential Care
Cambridgeshire County Council,09-Aug-19,51301091697,"-2,635.93",AURORA ORCHARD MANOR,CARE ESTABLISHMENT,LD - Young Adults Team,LD - Young Adults - Special Needs,Residential Care
Cambridgeshire County Council,09-Aug-19,51301091697,"-2,635.93",AURORA ORCHARD MANOR,CARE ESTABLISHMENT,LD - Young Adults Team,LD - Young Adults - Special Needs,Residential Care
Cambridgeshire County Council,09-Aug-19,51301091697,"-2,635.93",AURORA ORCHARD MANOR,CARE ESTABLISHMENT,LD - Young Adults Team,LD - Young Adults - Special Needs,Residential Care
Cambridgeshire County Council,09-Aug-19,51301091697,"-2,635.93",AURORA ORCHARD MANOR,CARE ESTABLISHMENT,LD - Young Adults Team,LD - Young Adults - Special Needs,Residential Care
Cambridgeshire County Council,09-Aug-19,51301091697,"-2,635.93",AURORA ORCHARD MANOR,CARE ESTABLISHMENT,LD - Young Adults Team,LD - Young Adults - Special Needs,Residential Care
Cambridgeshire County Council,09-Aug-19,51301091697,"-2,635.93",AURORA ORCHARD MANOR,CARE ESTABLISHMENT,LD - Young Adults Team,LD - Young Adults - Special Needs,Residential Care
Cambridgeshire County Council,09-Aug-19,51301091697,"-2,635.93",AURORA ORCHARD MANOR,CARE ESTABLISHMENT,LD - Young Adults Team,LD - Young Adults - Special Needs,Residential Care
Cambridgeshire County Council,09-Aug-19,51301091697,"-2,635.93",AURORA ORCHARD MANOR,CARE ESTABLISHMENT,LD - Young Adults Team,LD - Young Adults - Special Needs,Residential Care
Cambridgeshire County Council,09-Aug-19,51301091697,"-2,635.93",AURORA ORCHARD MANOR,CARE ESTABLISHMENT,LD - Young Adults Team,LD - Young Adults - Special Needs,Residential Care
Cambridgeshire County Council,09-Aug-19,51301091697,"-2,635.93",AURORA ORCHARD MANOR,CARE ESTABLISHMENT,LD - Young Adults Team,LD - Young Adults - Special Needs,Residential Care
Cambridgeshire County Council,09-Aug-19,51301091697,"-2,635.93",AURORA ORCHARD MANOR,CARE ESTABLISHMENT,LD - Young Adults Team,LD - Young Adults - Special Needs,Residential Care
Cambridgeshire County Council,09-Aug-19,51301091697,"-2,635.93",AURORA ORCHARD MANOR,CARE ESTABLISHMENT,LD - Young Adults Team,LD - Young Adults - Special Needs,Residential Care
Cambridgeshire County Council,09-Aug-19,51301091697,"-2,635.93",AURORA ORCHARD MANOR,CARE ESTABLISHMENT,LD - Young Adults Team,LD - Young Adults - Special Needs,Residential Care
Cambridgeshire County Council,28-Aug-19,51300241327,"-2,624.99",LEASEPLAN LTD,TRADE SUPPLIER,Corporate Offices,Pool Cars,Leased Vehicle Costs
Cambridgeshire County Council,28-Aug-19,51301133437,"-2,461.74",LEASEPLAN LTD,TRADE SUPPLIER,Corporate Offices,Pool Cars,Leased Vehicle Costs
Cambridgeshire County Council,16-Aug-19,51301089455,"-2,337.29",DIMENSIONS (UK) LTD,CARE ESTABLISHMENT,LD - City Locality,LD - City - Special Needs,Supported Living
Cambridgeshire County Council,16-Aug-19,51301081206,"-2,337.29",DIMENSIONS (UK) LTD,CARE ESTABLISHMENT,LD - City Locality,LD - City - Special Needs,Supported Living
Cambridgeshire County Council,16-Aug-19,51301089459,"-2,337.29",DIMENSIONS (UK) LTD,CARE ESTABLISHMENT,LD - City Locality,LD - City - Special Needs,Supported Living
Cambridgeshire County Council,16-Aug-19,51301089449,"-2,337.29",DIMENSIONS (UK) LTD,CARE ESTABLISHMENT,LD - City Locality,LD - City - Special Needs,Supported Living
Cambridgeshire County Council,16-Aug-19,51301081219,"-2,337.29",DIMENSIONS (UK) LTD,CARE ESTABLISHMENT,LD - City Locality,LD - City - Special Needs,Supported Living
Cambridgeshire County Council,16-Aug-19,51301081208,"-2,337.29",DIMENSIONS (UK) LTD,CARE ESTABLISHMENT,LD - City Locality,LD - City - Special Needs,Supported Living
Cambridgeshire County Council,16-Aug-19,51301111550,"-2,337.29",DIMENSIONS (UK) LTD,CARE ESTABLISHMENT,LD - City Locality,LD - City - Special Needs,Supported Living
Cambridgeshire County Council,16-Aug-19,51301089452,"-2,337.29",DIMENSIONS (UK) LTD,CARE ESTABLISHMENT,LD - City Locality,LD - City - Special Needs,Supported Living
Cambridgeshire County Council,16-Aug-19,51301111545,"-2,337.29",DIMENSIONS (UK) LTD,CARE ESTABLISHMENT,LD - City Locality,LD - City - Special Needs,Supported Living
Cambridgeshire County Council,16-Aug-19,51301089463,"-2,337.29",DIMENSIONS (UK) LTD,CARE ESTABLISHMENT,LD - City Locality,LD - City - Special Needs,Supported Living
Cambridgeshire County Council,16-Aug-19,51301111535,"-2,337.29",DIMENSIONS (UK) LTD,CARE ESTABLISHMENT,LD - City Locality,LD - City - Special Needs,Supported Living
Cambridgeshire County Council,16-Aug-19,51301111538,"-2,337.29",DIMENSIONS (UK) LTD,CARE ESTABLISHMENT,LD - City Locality,LD - City - Special Needs,Supported Living
Cambridgeshire County Council,16-Aug-19,51301089465,"-2,337.29",DIMENSIONS (UK) LTD,CARE ESTABLISHMENT,LD - City Locality,LD - City - Special Needs,Supported Living
Cambridgeshire County Council,16-Aug-19,51301089450,"-2,337.29",DIMENSIONS (UK) LTD,CARE ESTABLISHMENT,LD - City Locality,LD - City - Special Needs,Supported Living
Cambridgeshire County Council,16-Aug-19,51301081212,"-2,337.29",DIMENSIONS (UK) LTD,CARE ESTABLISHMENT,LD - South Locality,LD - South Cambs - Special Needs,Supported Living
Cambridgeshire County Council,16-Aug-19,51301081204,"-2,337.29",DIMENSIONS (UK) LTD,CARE ESTABLISHMENT,LD - South Locality,LD - South Cambs - Special Needs,Supported Living
Cambridgeshire County Council,16-Aug-19,51301081213,"-2,337.29",DIMENSIONS (UK) LTD,CARE ESTABLISHMENT,LD - South Locality,LD - South Cambs - Special Needs,Supported Living
Cambridgeshire County Council,16-Aug-19,51301089451,"-2,337.29",DIMENSIONS (UK) LTD,CARE ESTABLISHMENT,LD - South Locality,LD - South Cambs - Special Needs,Supported Living
Cambridgeshire County Council,16-Aug-19,51301111552,"-2,337.29",DIMENSIONS (UK) LTD,CARE ESTABLISHMENT,LD - South Locality,LD - South Cambs - Special Needs,Supported Living
Cambridgeshire County Council,16-Aug-19,51301081211,"-2,337.29",DIMENSIONS (UK) LTD,CARE ESTABLISHMENT,LD - South Locality,LD - South Cambs - Special Needs,Supported Living
Cambridgeshire County Council,16-Aug-19,51301111537,"-2,337.29",DIMENSIONS (UK) LTD,CARE ESTABLISHMENT,LD - South Locality,LD - South Cambs - Special Needs,Supported Living
Cambridgeshire County Council,16-Aug-19,51301111532,"-2,337.29",DIMENSIONS (UK) LTD,CARE ESTABLISHMENT,LD - South Locality,LD - South Cambs - Special Needs,Supported Living
Cambridgeshire County Council,16-Aug-19,51301081220,"-2,337.29",DIMENSIONS (UK) LTD,CARE ESTABLISHMENT,LD - South Locality,LD - South Cambs - Special Needs,Supported Living
Cambridgeshire County Council,16-Aug-19,51301111539,"-2,337.29",DIMENSIONS (UK) LTD,CARE ESTABLISHMENT,LD - South Locality,LD - South Cambs - Special Needs,Supported Living
Cambridgeshire County Council,09-Aug-19,51300817976,"-2,290.70",SENSE EAST,CARE ESTABLISHMENT,LD - South Locality,LD - South Cambs - Special Needs,Residential Care
Cambridgeshire County Council,09-Aug-19,51300817962,"-2,290.70",SENSE EAST,CARE ESTABLISHMENT,LD - South Locality,LD - South Cambs - Special Needs,Residential Care
Cambridgeshire County Council,09-Aug-19,51300817975,"-2,290.70",SENSE EAST,CARE ESTABLISHMENT,LD - South Locality,LD - South Cambs - Special Needs,Residential Care
Cambridgeshire County Council,09-Aug-19,51300817965,"-2,290.70",SENSE EAST,CARE ESTABLISHMENT,LD - South Locality,LD - South Cambs - Special Needs,Residential Care
Cambridgeshire County Council,09-Aug-19,51300817968,"-2,290.70",SENSE EAST,CARE ESTABLISHMENT,LD - South Locality,LD - South Cambs - Special Needs,Residential Care
Cambridgeshire County Council,09-Aug-19,51300817974,"-2,290.70",SENSE EAST,CARE ESTABLISHMENT,LD - South Locality,LD - South Cambs - Special Needs,Residential Care
Cambridgeshire County Council,09-Aug-19,51300817986,"-2,290.70",SENSE EAST,CARE ESTABLISHMENT,LD - South Locality,LD - South Cambs - Special Needs,Residential Care
Cambridgeshire County Council,09-Aug-19,51300817980,"-2,290.70",SENSE EAST,CARE ESTABLISHMENT,LD - South Locality,LD - South Cambs - Special Needs,Residential Care
Cambridgeshire County Council,09-Aug-19,51301037557,"-2,161.04",THE MANOR CHESHIRE HOME,CARE ESTABLISHMENT,LD - Hunts Locality,LD - Huntigndonshire  - Special Needs,Residential Care
Cambridgeshire County Council,09-Aug-19,51300839650,"-2,141.84",EDEN VIEW,CARE ESTABLISHMENT,Physical Disablity,Countywide PD Service - Care,Nursing Care
Cambridgeshire County Council,09-Aug-19,51300839649,"-2,141.84",EDEN VIEW,CARE ESTABLISHMENT,Physical Disablity,Countywide PD Service - Care,Nursing Care
Cambridgeshire County Council,09-Aug-19,51300839645,"-2,141.84",EDEN VIEW,CARE ESTABLISHMENT,Physical Disablity,Countywide PD Service - Care,Nursing Care
Cambridgeshire County Council,09-Aug-19,51300839644,"-2,141.84",EDEN VIEW,CARE ESTABLISHMENT,Physical Disablity,Countywide PD Service - Care,Nursing Care
Cambridgeshire County Council,09-Aug-19,51300839646,"-2,141.84",EDEN VIEW,CARE ESTABLISHMENT,Physical Disablity,Countywide PD Service - Care,Nursing Care
Cambridgeshire County Council,09-Aug-19,51300839647,"-2,141.84",EDEN VIEW,CARE ESTABLISHMENT,Physical Disablity,Countywide PD Service - Care,Nursing Care
Cambridgeshire County Council,09-Aug-19,51300839652,"-2,141.84",EDEN VIEW,CARE ESTABLISHMENT,Physical Disablity,Countywide PD Service - Care,Nursing Care
Cambridgeshire County Council,21-Aug-19,51301120012,"-1,985.43",ORANGE GROVE FOSTER CARE,CARE ESTABLISHMENT,LAC Placements,Placements - independent fostering,Agency Placements - Out of  County
Cambridgeshire County Council,09-Aug-19,51300817961,"-1,963.46",SENSE EAST,CARE ESTABLISHMENT,LD - South Locality,LD - South Cambs - Special Needs,Residential Care
Cambridgeshire County Council,01-Aug-19,51301070656,"-1,922.14",Redacted Personal Data ,INDIVIDUAL,OP - City & South Locality,Older People - City & South,Direct Payments
Cambridgeshire County Council,21-Aug-19,51301120010,"-1,911.31",ORANGE GROVE FOSTER CARE,CARE ESTABLISHMENT,LAC Placements,Placements - independent fostering,Agency Placements - Out of  County
Cambridgeshire County Council,21-Aug-19,51301120011,"-1,911.31",ORANGE GROVE FOSTER CARE,CARE ESTABLISHMENT,LAC Placements,Placements - independent fostering,Agency Placements - Out of  County
Cambridgeshire County Council,09-Aug-19,51300839651,"-1,835.86",EDEN VIEW,CARE ESTABLISHMENT,Physical Disablity,Countywide PD Service - Care,Nursing Care
Cambridgeshire County Council,16-Aug-19,51301099007,"-1,736.45",DIMENSIONS (UK) LTD,CARE ESTABLISHMENT,LD - South Locality,LD - South Cambs - Special Needs,Supported Living
Cambridgeshire County Council,16-Aug-19,51301099035,"-1,736.45",DIMENSIONS (UK) LTD,CARE ESTABLISHMENT,LD - South Locality,LD - South Cambs - Special Needs,Supported Living
Cambridgeshire County Council,16-Aug-19,51301099041,"-1,736.45",DIMENSIONS (UK) LTD,CARE ESTABLISHMENT,LD - South Locality,LD - South Cambs - Special Needs,Supported Living
Cambridgeshire County Council,16-Aug-19,51301099002,"-1,736.45",DIMENSIONS (UK) LTD,CARE ESTABLISHMENT,LD - South Locality,LD - South Cambs - Special Needs,Supported Living
Cambridgeshire County Council,16-Aug-19,51301099039,"-1,736.45",DIMENSIONS (UK) LTD,CARE ESTABLISHMENT,LD - South Locality,LD - South Cambs - Special Needs,Supported Living
Cambridgeshire County Council,16-Aug-19,51301099043,"-1,736.45",DIMENSIONS (UK) LTD,CARE ESTABLISHMENT,LD - South Locality,LD - South Cambs - Special Needs,Supported Living
Cambridgeshire County Council,16-Aug-19,51301099011,"-1,736.45",DIMENSIONS (UK) LTD,CARE ESTABLISHMENT,LD - South Locality,LD - South Cambs - Special Needs,Supported Living
Cambridgeshire County Council,16-Aug-19,51301099015,"-1,736.45",DIMENSIONS (UK) LTD,CARE ESTABLISHMENT,LD - South Locality,LD - South Cambs - Special Needs,Supported Living
Cambridgeshire County Council,16-Aug-19,51301099025,"-1,736.45",DIMENSIONS (UK) LTD,CARE ESTABLISHMENT,LD - South Locality,LD - South Cambs - Special Needs,Supported Living
Cambridgeshire County Council,16-Aug-19,51301099040,"-1,736.45",DIMENSIONS (UK) LTD,CARE ESTABLISHMENT,LD - South Locality,LD - South Cambs - Special Needs,Supported Living
Cambridgeshire County Council,16-Aug-19,51301099022,"-1,736.45",DIMENSIONS (UK) LTD,CARE ESTABLISHMENT,LD - South Locality,LD - South Cambs - Special Needs,Supported Living
Cambridgeshire County Council,16-Aug-19,51301099026,"-1,736.45",DIMENSIONS (UK) LTD,CARE ESTABLISHMENT,LD - South Locality,LD - South Cambs - Special Needs,Supported Living
Cambridgeshire County Council,16-Aug-19,51301099023,"-1,736.45",DIMENSIONS (UK) LTD,CARE ESTABLISHMENT,LD - South Locality,LD - South Cambs - Special Needs,Supported Living
Cambridgeshire County Council,16-Aug-19,51301088758,"-1,711.36",AFFINITY TRUST,CARE ESTABLISHMENT,LD - Fenland Locality,LD - Fenland  - Care,Supported Living
Cambridgeshire County Council,16-Aug-19,51301071547,"-1,711.36",AFFINITY TRUST,CARE ESTABLISHMENT,LD - Fenland Locality,LD - Fenland  - Care,Supported Living
Cambridgeshire County Council,16-Aug-19,51301080444,"-1,711.36",AFFINITY TRUST,CARE ESTABLISHMENT,LD - Fenland Locality,LD - Fenland  - Care,Supported Living
Cambridgeshire County Council,16-Aug-19,51301088748,"-1,711.36",AFFINITY TRUST,CARE ESTABLISHMENT,LD - Fenland Locality,LD - Fenland  - Care,Supported Living
Cambridgeshire County Council,16-Aug-19,51301071541,"-1,711.36",AFFINITY TRUST,CARE ESTABLISHMENT,LD - Fenland Locality,LD - Fenland  - Care,Supported Living
Cambridgeshire County Council,16-Aug-19,51301071530,"-1,711.36",AFFINITY TRUST,CARE ESTABLISHMENT,LD - Fenland Locality,LD - Fenland  - Care,Supported Living
Cambridgeshire County Council,16-Aug-19,51301080449,"-1,711.36",AFFINITY TRUST,CARE ESTABLISHMENT,LD - Fenland Locality,LD - Fenland  - Care,Supported Living
Cambridgeshire County Council,16-Aug-19,51301071542,"-1,711.36",AFFINITY TRUST,CARE ESTABLISHMENT,LD - Fenland Locality,LD - Fenland  - Care,Supported Living
Cambridgeshire County Council,16-Aug-19,51301071537,"-1,711.36",AFFINITY TRUST,CARE ESTABLISHMENT,LD - Fenland Locality,LD - Fenland  - Care,Supported Living
Cambridgeshire County Council,16-Aug-19,51301080447,"-1,711.36",AFFINITY TRUST,CARE ESTABLISHMENT,LD - Fenland Locality,LD - Fenland  - Care,Supported Living
Cambridgeshire County Council,16-Aug-19,51301110000,"-1,711.36",AFFINITY TRUST,CARE ESTABLISHMENT,LD - Fenland Locality,LD - Fenland  - Care,Supported Living
Cambridgeshire County Council,16-Aug-19,51301109997,"-1,711.36",AFFINITY TRUST,CARE ESTABLISHMENT,LD - Fenland Locality,LD - Fenland  - Care,Supported Living
Cambridgeshire County Council,16-Aug-19,51301080436,"-1,711.36",AFFINITY TRUST,CARE ESTABLISHMENT,LD - Fenland Locality,LD - Fenland  - Care,Supported Living
Cambridgeshire County Council,16-Aug-19,51301088760,"-1,711.36",AFFINITY TRUST,CARE ESTABLISHMENT,LD - Fenland Locality,LD - Fenland  - Care,Supported Living
Cambridgeshire County Council,16-Aug-19,51301109999,"-1,711.36",AFFINITY TRUST,CARE ESTABLISHMENT,LD - Fenland Locality,LD - Fenland  - Care,Supported Living
Cambridgeshire County Council,16-Aug-19,51301071550,"-1,711.36",AFFINITY TRUST,CARE ESTABLISHMENT,LD - Fenland Locality,LD - Fenland  - Care,Supported Living
Cambridgeshire County Council,16-Aug-19,51301080452,"-1,711.36",AFFINITY TRUST,CARE ESTABLISHMENT,LD - Fenland Locality,LD - Fenland  - Care,Supported Living
Cambridgeshire County Council,16-Aug-19,51301088766,"-1,711.36",AFFINITY TRUST,CARE ESTABLISHMENT,LD - Fenland Locality,LD - Fenland  - Care,Supported Living
Cambridgeshire County Council,16-Aug-19,51301088772,"-1,711.36",AFFINITY TRUST,CARE ESTABLISHMENT,LD - Fenland Locality,LD - Fenland  - Care,Supported Living
Cambridgeshire County Council,16-Aug-19,51301071555,"-1,711.36",AFFINITY TRUST,CARE ESTABLISHMENT,LD - Fenland Locality,LD - Fenland  - Care,Supported Living
Cambridgeshire County Council,16-Aug-19,51301110015,"-1,711.36",AFFINITY TRUST,CARE ESTABLISHMENT,LD - Fenland Locality,LD - Fenland  - Care,Supported Living
Cambridgeshire County Council,16-Aug-19,51301088775,"-1,711.36",AFFINITY TRUST,CARE ESTABLISHMENT,LD - Fenland Locality,LD - Fenland  - Care,Supported Living
Cambridgeshire County Council,16-Aug-19,51301088754,"-1,711.36",AFFINITY TRUST,CARE ESTABLISHMENT,LD - Fenland Locality,LD - Fenland  - Care,Supported Living
Cambridgeshire County Council,16-Aug-19,51301080441,"-1,711.36",AFFINITY TRUST,CARE ESTABLISHMENT,LD - Fenland Locality,LD - Fenland  - Care,Supported Living
Cambridgeshire County Council,16-Aug-19,51301080437,"-1,711.36",AFFINITY TRUST,CARE ESTABLISHMENT,LD - Fenland Locality,LD - Fenland  - Care,Supported Living
Cambridgeshire County Council,16-Aug-19,51301080455,"-1,711.36",AFFINITY TRUST,CARE ESTABLISHMENT,LD - Fenland Locality,LD - Fenland  - Care,Supported Living
Cambridgeshire County Council,16-Aug-19,51301110016,"-1,711.36",AFFINITY TRUST,CARE ESTABLISHMENT,LD - Fenland Locality,LD - Fenland  - Care,Supported Living
Cambridgeshire County Council,16-Aug-19,51301080440,"-1,711.36",AFFINITY TRUST,CARE ESTABLISHMENT,LD - Fenland Locality,LD - Fenland  - Care,Supported Living
Cambridgeshire County Council,16-Aug-19,51301071540,"-1,711.36",AFFINITY TRUST,CARE ESTABLISHMENT,LD - Fenland Locality,LD - Fenland  - Care,Supported Living
Cambridgeshire County Council,16-Aug-19,51301071548,"-1,711.36",AFFINITY TRUST,CARE ESTABLISHMENT,LD - Fenland Locality,LD - Fenland  - Care,Supported Living
Cambridgeshire County Council,16-Aug-19,51301080434,"-1,711.36",AFFINITY TRUST,CARE ESTABLISHMENT,LD - Fenland Locality,LD - Fenland  - Care,Supported Living
Cambridgeshire County Council,16-Aug-19,51301080428,"-1,711.36",AFFINITY TRUST,CARE ESTABLISHMENT,LD - Fenland Locality,LD - Fenland  - Care,Supported Living
Cambridgeshire County Council,16-Aug-19,51301109990,"-1,711.36",AFFINITY TRUST,CARE ESTABLISHMENT,LD - Fenland Locality,LD - Fenland  - Care,Supported Living
Cambridgeshire County Council,16-Aug-19,51301071534,"-1,711.36",AFFINITY TRUST,CARE ESTABLISHMENT,LD - Fenland Locality,LD - Fenland  - Care,Supported Living
Cambridgeshire County Council,16-Aug-19,51301109982,"-1,711.36",AFFINITY TRUST,CARE ESTABLISHMENT,LD - Fenland Locality,LD - Fenland  - Care,Supported Living
Cambridgeshire County Council,16-Aug-19,51301080448,"-1,711.36",AFFINITY TRUST,CARE ESTABLISHMENT,LD - Fenland Locality,LD - Fenland  - Special Needs,Supported Living
Cambridgeshire County Council,16-Aug-19,51301088756,"-1,711.36",AFFINITY TRUST,CARE ESTABLISHMENT,LD - Fenland Locality,LD - Fenland  - Special Needs,Supported Living
Cambridgeshire County Council,16-Aug-19,51301109987,"-1,711.36",AFFINITY TRUST,CARE ESTABLISHMENT,LD - Fenland Locality,LD - Fenland  - Special Needs,Supported Living
Cambridgeshire County Council,16-Aug-19,51301110002,"-1,711.36",AFFINITY TRUST,CARE ESTABLISHMENT,LD - Fenland Locality,LD - Fenland  - Special Needs,Supported Living
Cambridgeshire County Council,16-Aug-19,51301071527,"-1,711.36",AFFINITY TRUST,CARE ESTABLISHMENT,LD - Fenland Locality,LD - Fenland  - Special Needs,Supported Living
Cambridgeshire County Council,16-Aug-19,51301071535,"-1,711.36",AFFINITY TRUST,CARE ESTABLISHMENT,LD - Fenland Locality,LD - Fenland  - Special Needs,Supported Living
Cambridgeshire County Council,16-Aug-19,51301088761,"-1,711.36",AFFINITY TRUST,CARE ESTABLISHMENT,LD - Fenland Locality,LD - Fenland  - Special Needs,Supported Living
Cambridgeshire County Council,16-Aug-19,51301080426,"-1,711.36",AFFINITY TRUST,CARE ESTABLISHMENT,LD - Fenland Locality,LD - Fenland  - Special Needs,Supported Living
Cambridgeshire County Council,16-Aug-19,51301088752,"-1,711.36",AFFINITY TRUST,CARE ESTABLISHMENT,LD - Fenland Locality,LD - Fenland  - Special Needs,Supported Living
Cambridgeshire County Council,16-Aug-19,51301109981,"-1,711.36",AFFINITY TRUST,CARE ESTABLISHMENT,LD - Fenland Locality,LD - Fenland  - Special Needs,Supported Living
Cambridgeshire County Council,16-Aug-19,51301088755,"-1,711.36",AFFINITY TRUST,CARE ESTABLISHMENT,LD - Fenland Locality,LD - Fenland  - Special Needs,Supported Living
Cambridgeshire County Council,16-Aug-19,51301109979,"-1,711.36",AFFINITY TRUST,CARE ESTABLISHMENT,LD - Fenland Locality,LD - Fenland  - Special Needs,Supported Living
Cambridgeshire County Council,16-Aug-19,51301088750,"-1,711.36",AFFINITY TRUST,CARE ESTABLISHMENT,LD - Fenland Locality,LD - Fenland  - Special Needs,Supported Living
Cambridgeshire County Council,16-Aug-19,51301109984,"-1,711.36",AFFINITY TRUST,CARE ESTABLISHMENT,LD - Fenland Locality,LD - Fenland  - Special Needs,Supported Living
Cambridgeshire County Council,16-Aug-19,51301109978,"-1,711.36",AFFINITY TRUST,CARE ESTABLISHMENT,LD - Fenland Locality,LD - Fenland  - Special Needs,Supported Living
Cambridgeshire County Council,16-Aug-19,51301088759,"-1,711.36",AFFINITY TRUST,CARE ESTABLISHMENT,LD - Fenland Locality,LD - Fenland  - Special Needs,Supported Living
Cambridgeshire County Council,16-Aug-19,51301071551,"-1,711.36",AFFINITY TRUST,CARE ESTABLISHMENT,LD - Fenland Locality,LD - Fenland  - Special Needs,Supported Living
Cambridgeshire County Council,16-Aug-19,51301088762,"-1,711.36",AFFINITY TRUST,CARE ESTABLISHMENT,LD - Fenland Locality,LD - Fenland  - Special Needs,Supported Living
Cambridgeshire County Council,16-Aug-19,51301071543,"-1,711.36",AFFINITY TRUST,CARE ESTABLISHMENT,LD - Fenland Locality,LD - Fenland  - Special Needs,Supported Living
Cambridgeshire County Council,16-Aug-19,51301109993,"-1,711.36",AFFINITY TRUST,CARE ESTABLISHMENT,LD - Fenland Locality,LD - Fenland  - Special Needs,Supported Living
Cambridgeshire County Council,16-Aug-19,51301088773,"-1,711.36",AFFINITY TRUST,CARE ESTABLISHMENT,LD - Fenland Locality,LD - Fenland  - Special Needs,Supported Living
Cambridgeshire County Council,16-Aug-19,51301110005,"-1,711.36",AFFINITY TRUST,CARE ESTABLISHMENT,LD - Fenland Locality,LD - Fenland  - Special Needs,Supported Living
Cambridgeshire County Council,16-Aug-19,51301110008,"-1,711.36",AFFINITY TRUST,CARE ESTABLISHMENT,LD - Fenland Locality,LD - Fenland  - Special Needs,Supported Living
Cambridgeshire County Council,16-Aug-19,51301088746,"-1,711.36",AFFINITY TRUST,CARE ESTABLISHMENT,LD - Fenland Locality,LD - Fenland  - Special Needs,Supported Living
Cambridgeshire County Council,16-Aug-19,51301080439,"-1,711.36",AFFINITY TRUST,CARE ESTABLISHMENT,LD - Fenland Locality,LD - Fenland  - Special Needs,Supported Living
Cambridgeshire County Council,16-Aug-19,51301080425,"-1,711.36",AFFINITY TRUST,CARE ESTABLISHMENT,LD - Fenland Locality,LD - Fenland  - Special Needs,Supported Living
Cambridgeshire County Council,16-Aug-19,51301071531,"-1,711.36",AFFINITY TRUST,CARE ESTABLISHMENT,LD - Fenland Locality,LD - Fenland  - Special Needs,Supported Living
Cambridgeshire County Council,16-Aug-19,51301071554,"-1,711.36",AFFINITY TRUST,CARE ESTABLISHMENT,LD - Fenland Locality,LD - Fenland  - Special Needs,Supported Living
Cambridgeshire County Council,16-Aug-19,51301080430,"-1,711.36",AFFINITY TRUST,CARE ESTABLISHMENT,LD - Fenland Locality,LD - Fenland  - Special Needs,Supported Living
Cambridgeshire County Council,22-Aug-19,51301130611,"-1,711.36",AFFINITY TRUST,CARE ESTABLISHMENT,LD - Fenland Locality,LD - Fenland  - Care,Supported Living
Cambridgeshire County Council,22-Aug-19,51301130609,"-1,711.36",AFFINITY TRUST,CARE ESTABLISHMENT,LD - Fenland Locality,LD - Fenland  - Care,Supported Living
Cambridgeshire County Council,22-Aug-19,51301130615,"-1,711.36",AFFINITY TRUST,CARE ESTABLISHMENT,LD - Fenland Locality,LD - Fenland  - Care,Supported Living
Cambridgeshire County Council,22-Aug-19,51301130605,"-1,711.36",AFFINITY TRUST,CARE ESTABLISHMENT,LD - Fenland Locality,LD - Fenland  - Care,Supported Living
Cambridgeshire County Council,22-Aug-19,51301130612,"-1,711.36",AFFINITY TRUST,CARE ESTABLISHMENT,LD - Fenland Locality,LD - Fenland  - Care,Supported Living
Cambridgeshire County Council,22-Aug-19,51301130606,"-1,711.36",AFFINITY TRUST,CARE ESTABLISHMENT,LD - Fenland Locality,LD - Fenland  - Care,Supported Living
Cambridgeshire County Council,22-Aug-19,51301130603,"-1,711.36",AFFINITY TRUST,CARE ESTABLISHMENT,LD - Fenland Locality,LD - Fenland  - Care,Supported Living
Cambridgeshire County Council,22-Aug-19,51301130610,"-1,711.36",AFFINITY TRUST,CARE ESTABLISHMENT,LD - Fenland Locality,LD - Fenland  - Special Needs,Supported Living
Cambridgeshire County Council,22-Aug-19,51301130595,"-1,711.36",AFFINITY TRUST,CARE ESTABLISHMENT,LD - Fenland Locality,LD - Fenland  - Special Needs,Supported Living
Cambridgeshire County Council,22-Aug-19,51301130608,"-1,711.36",AFFINITY TRUST,CARE ESTABLISHMENT,LD - Fenland Locality,LD - Fenland  - Special Needs,Supported Living
Cambridgeshire County Council,22-Aug-19,51301130620,"-1,711.36",AFFINITY TRUST,CARE ESTABLISHMENT,LD - Fenland Locality,LD - Fenland  - Special Needs,Supported Living
Cambridgeshire County Council,22-Aug-19,51301130622,"-1,711.36",AFFINITY TRUST,CARE ESTABLISHMENT,LD - Fenland Locality,LD - Fenland  - Special Needs,Supported Living
Cambridgeshire County Council,22-Aug-19,51301130613,"-1,711.36",AFFINITY TRUST,CARE ESTABLISHMENT,LD - Fenland Locality,LD - Fenland  - Special Needs,Supported Living
Cambridgeshire County Council,22-Aug-19,51301130624,"-1,711.36",AFFINITY TRUST,CARE ESTABLISHMENT,LD - Fenland Locality,LD - Fenland  - Special Needs,Supported Living
Cambridgeshire County Council,22-Aug-19,51301130601,"-1,711.36",AFFINITY TRUST,CARE ESTABLISHMENT,LD - Fenland Locality,LD - Fenland  - Special Needs,Supported Living
Cambridgeshire County Council,22-Aug-19,51301130604,"-1,711.36",AFFINITY TRUST,CARE ESTABLISHMENT,LD - Fenland Locality,LD - Fenland  - Special Needs,Supported Living
Cambridgeshire County Council,05-Aug-19,51300673694,"-1,695.20",SANCTON WOOD SCHOOL,NURSERY,SEND High Needs Top Up,"SEND Specialist Services,High Needs Top Up,Other institutions",Educational Materials
Cambridgeshire County Council,09-Aug-19,51300817450,"-1,609.84",EDEN VIEW,CARE ESTABLISHMENT,Physical Disablity,Countywide PD Service - Care,Nursing Care
Cambridgeshire County Council,09-Aug-19,51300817444,"-1,609.84",EDEN VIEW,CARE ESTABLISHMENT,Physical Disablity,Countywide PD Service - Care,Nursing Care
Cambridgeshire County Council,09-Aug-19,51300817454,"-1,609.84",EDEN VIEW,CARE ESTABLISHMENT,Physical Disablity,Countywide PD Service - Care,Nursing Care
Cambridgeshire County Council,09-Aug-19,51300817453,"-1,609.84",EDEN VIEW,CARE ESTABLISHMENT,Physical Disablity,Countywide PD Service - Care,Nursing Care
Cambridgeshire County Council,09-Aug-19,51300817455,"-1,609.84",EDEN VIEW,CARE ESTABLISHMENT,Physical Disablity,Countywide PD Service - Care,Nursing Care
Cambridgeshire County Council,09-Aug-19,51300817457,"-1,609.84",EDEN VIEW,CARE ESTABLISHMENT,Physical Disablity,Countywide PD Service - Care,Nursing Care
Cambridgeshire County Council,09-Aug-19,51300817447,"-1,609.84",EDEN VIEW,CARE ESTABLISHMENT,Physical Disablity,Countywide PD Service - Care,Nursing Care
Cambridgeshire County Council,09-Aug-19,51300810965,"-1,561.41",SENSE EAST,CARE ESTABLISHMENT,LD - City Locality,LD - City - Care,Residential Care
Cambridgeshire County Council,09-Aug-19,51300810970,"-1,561.41",SENSE EAST,CARE ESTABLISHMENT,LD - City Locality,LD - City - Care,Residential Care
Cambridgeshire County Council,09-Aug-19,51300810961,"-1,561.41",SENSE EAST,CARE ESTABLISHMENT,LD - City Locality,LD - City - Care,Residential Care
Cambridgeshire County Council,09-Aug-19,51300810968,"-1,561.41",SENSE EAST,CARE ESTABLISHMENT,LD - City Locality,LD - City - Care,Residential Care
Cambridgeshire County Council,09-Aug-19,51300810962,"-1,561.41",SENSE EAST,CARE ESTABLISHMENT,LD - City Locality,LD - City - Care,Residential Care
Cambridgeshire County Council,09-Aug-19,51300810957,"-1,561.41",SENSE EAST,CARE ESTABLISHMENT,LD - City Locality,LD - City - Care,Residential Care
Cambridgeshire County Council,09-Aug-19,51300810954,"-1,561.41",SENSE EAST,CARE ESTABLISHMENT,LD - City Locality,LD - City - Care,Residential Care
Cambridgeshire County Council,09-Aug-19,51300810963,"-1,561.41",SENSE EAST,CARE ESTABLISHMENT,LD - City Locality,LD - City - Care,Residential Care
Cambridgeshire County Council,09-Aug-19,51301091943,"-1,561.41",SENSE EAST,CARE ESTABLISHMENT,LD - South Locality,LD - South Cambs - Care,Residential Client Care Contributions
Cambridgeshire County Council,09-Aug-19,51301091943,"-1,561.41",SENSE EAST,CARE ESTABLISHMENT,LD - South Locality,LD - South Cambs - Care,Residential Client Care Contributions
Cambridgeshire County Council,09-Aug-19,51301091943,"-1,561.41",SENSE EAST,CARE ESTABLISHMENT,LD - South Locality,LD - South Cambs - Care,Residential Client Care Contributions
Cambridgeshire County Council,09-Aug-19,51301091943,"-1,561.41",SENSE EAST,CARE ESTABLISHMENT,LD - South Locality,LD - South Cambs - Care,Residential Client Care Contributions
Cambridgeshire County Council,09-Aug-19,51301091943,"-1,561.41",SENSE EAST,CARE ESTABLISHMENT,LD - South Locality,LD - South Cambs - Care,Residential Client Care Contributions
Cambridgeshire County Council,09-Aug-19,51301091943,"-1,561.41",SENSE EAST,CARE ESTABLISHMENT,LD - South Locality,LD - South Cambs - Care,Residential Client Care Contributions
Cambridgeshire County Council,09-Aug-19,51301091943,"-1,561.41",SENSE EAST,CARE ESTABLISHMENT,LD - South Locality,LD - South Cambs - Care,Residential Client Care Contributions
Cambridgeshire County Council,09-Aug-19,51301091943,"-1,561.41",SENSE EAST,CARE ESTABLISHMENT,LD - South Locality,LD - South Cambs - Care,Residential Client Care Contributions
Cambridgeshire County Council,09-Aug-19,51301091943,"-1,561.41",SENSE EAST,CARE ESTABLISHMENT,LD - South Locality,LD - South Cambs - Care,Residential Client Care Contributions
Cambridgeshire County Council,09-Aug-19,51301091943,"-1,561.41",SENSE EAST,CARE ESTABLISHMENT,LD - South Locality,LD - South Cambs - Care,Residential Client Care Contributions
Cambridgeshire County Council,09-Aug-19,51301091943,"-1,561.41",SENSE EAST,CARE ESTABLISHMENT,LD - South Locality,LD - South Cambs - Care,Residential Client Care Contributions
Cambridgeshire County Council,09-Aug-19,51301091943,"-1,561.41",SENSE EAST,CARE ESTABLISHMENT,LD - South Locality,LD - South Cambs - Care,Residential Client Care Contributions
Cambridgeshire County Council,09-Aug-19,51301091943,"-1,561.41",SENSE EAST,CARE ESTABLISHMENT,LD - South Locality,LD - South Cambs - Care,Residential Client Care Contributions
Cambridgeshire County Council,09-Aug-19,51301091943,"-1,561.41",SENSE EAST,CARE ESTABLISHMENT,LD - South Locality,LD - South Cambs - Care,Residential Client Care Contributions
Cambridgeshire County Council,09-Aug-19,51301091943,"-1,561.41",SENSE EAST,CARE ESTABLISHMENT,LD - South Locality,LD - South Cambs - Care,Residential Client Care Contributions
Cambridgeshire County Council,09-Aug-19,51301091943,"-1,561.41",SENSE EAST,CARE ESTABLISHMENT,LD - South Locality,LD - South Cambs - Care,Residential Client Care Contributions
Cambridgeshire County Council,09-Aug-19,51301091943,"-1,561.41",SENSE EAST,CARE ESTABLISHMENT,LD - South Locality,LD - South Cambs - Care,Residential Client Care Contributions
Cambridgeshire County Council,09-Aug-19,51301091943,"-1,561.41",SENSE EAST,CARE ESTABLISHMENT,LD - South Locality,LD - South Cambs - Care,Residential Client Care Contributions
Cambridgeshire County Council,09-Aug-19,51301091943,"-1,561.41",SENSE EAST,CARE ESTABLISHMENT,LD - South Locality,LD - South Cambs - Care,Residential Client Care Contributions
Cambridgeshire County Council,09-Aug-19,51301091943,"-1,561.41",SENSE EAST,CARE ESTABLISHMENT,LD - South Locality,LD - South Cambs - Care,Residential Client Care Contributions
Cambridgeshire County Council,09-Aug-19,51301091943,"-1,561.41",SENSE EAST,CARE ESTABLISHMENT,LD - South Locality,LD - South Cambs - Care,Residential Client Care Contributions
Cambridgeshire County Council,09-Aug-19,51301091943,"-1,561.41",SENSE EAST,CARE ESTABLISHMENT,LD - South Locality,LD - South Cambs - Care,Residential Client Care Contributions
Cambridgeshire County Council,09-Aug-19,51301091943,"-1,561.41",SENSE EAST,CARE ESTABLISHMENT,LD - South Locality,LD - South Cambs - Care,Residential Client Care Contributions
Cambridgeshire County Council,09-Aug-19,51301091943,"-1,561.41",SENSE EAST,CARE ESTABLISHMENT,LD - South Locality,LD - South Cambs - Care,Residential Client Care Contributions
Cambridgeshire County Council,09-Aug-19,51301091943,"-1,561.41",SENSE EAST,CARE ESTABLISHMENT,LD - South Locality,LD - South Cambs - Care,Residential Client Care Contributions
Cambridgeshire County Council,09-Aug-19,51301091943,"-1,561.41",SENSE EAST,CARE ESTABLISHMENT,LD - South Locality,LD - South Cambs - Care,Residential Client Care Contributions
Cambridgeshire County Council,09-Aug-19,51301091943,"-1,561.41",SENSE EAST,CARE ESTABLISHMENT,LD - South Locality,LD - South Cambs - Care,Residential Client Care Contributions
Cambridgeshire County Council,09-Aug-19,51301091943,"-1,561.41",SENSE EAST,CARE ESTABLISHMENT,LD - South Locality,LD - South Cambs - Care,Residential Client Care Contributions
Cambridgeshire County Council,09-Aug-19,51301091943,"-1,561.41",SENSE EAST,CARE ESTABLISHMENT,LD - South Locality,LD - South Cambs - Care,Residential Client Care Contributions
Cambridgeshire County Council,09-Aug-19,51301091943,"-1,561.41",SENSE EAST,CARE ESTABLISHMENT,LD - South Locality,LD - South Cambs - Care,Residential Client Care Contributions
Cambridgeshire County Council,09-Aug-19,51301091943,"-1,561.41",SENSE EAST,CARE ESTABLISHMENT,LD - South Locality,LD - South Cambs - Care,Residential Client Care Contributions
Cambridgeshire County Council,09-Aug-19,51301091943,"-1,561.41",SENSE EAST,CARE ESTABLISHMENT,LD - South Locality,LD - South Cambs - Care,Residential Client Care Contributions
Cambridgeshire County Council,09-Aug-19,51301091943,"-1,561.41",SENSE EAST,CARE ESTABLISHMENT,LD - South Locality,LD - South Cambs - Care,Residential Client Care Contributions
Cambridgeshire County Council,09-Aug-19,51301091943,"-1,561.41",SENSE EAST,CARE ESTABLISHMENT,LD - South Locality,LD - South Cambs - Care,Residential Client Care Contributions
Cambridgeshire County Council,09-Aug-19,51301091943,"-1,561.41",SENSE EAST,CARE ESTABLISHMENT,LD - South Locality,LD - South Cambs - Care,Residential Client Care Contributions
Cambridgeshire County Council,09-Aug-19,51301091943,"-1,561.41",SENSE EAST,CARE ESTABLISHMENT,LD - South Locality,LD - South Cambs - Care,Residential Client Care Contributions
Cambridgeshire County Council,09-Aug-19,51301091943,"-1,561.41",SENSE EAST,CARE ESTABLISHMENT,LD - South Locality,LD - South Cambs - Care,Residential Client Care Contributions
Cambridgeshire County Council,09-Aug-19,51301091943,"-1,561.41",SENSE EAST,CARE ESTABLISHMENT,LD - South Locality,LD - South Cambs - Care,Residential Client Care Contributions
Cambridgeshire County Council,09-Aug-19,51301091943,"-1,561.41",SENSE EAST,CARE ESTABLISHMENT,LD - South Locality,LD - South Cambs - Care,Residential Client Care Contributions
Cambridgeshire County Council,09-Aug-19,51301091943,"-1,561.41",SENSE EAST,CARE ESTABLISHMENT,LD - South Locality,LD - South Cambs - Care,Residential Client Care Contributions
Cambridgeshire County Council,09-Aug-19,51301091943,"-1,561.41",SENSE EAST,CARE ESTABLISHMENT,LD - South Locality,LD - South Cambs - Care,Residential Client Care Contributions
Cambridgeshire County Council,09-Aug-19,51301091943,"-1,561.41",SENSE EAST,CARE ESTABLISHMENT,LD - South Locality,LD - South Cambs - Care,Residential Client Care Contributions
Cambridgeshire County Council,09-Aug-19,51301091943,"-1,561.41",SENSE EAST,CARE ESTABLISHMENT,LD - South Locality,LD - South Cambs - Care,Residential Client Care Contributions
Cambridgeshire County Council,09-Aug-19,51301091943,"-1,561.41",SENSE EAST,CARE ESTABLISHMENT,LD - South Locality,LD - South Cambs - Care,Residential Client Care Contributions
Cambridgeshire County Council,09-Aug-19,51301091943,"-1,561.41",SENSE EAST,CARE ESTABLISHMENT,LD - South Locality,LD - South Cambs - Care,Residential Client Care Contributions
Cambridgeshire County Council,09-Aug-19,51301091943,"-1,561.41",SENSE EAST,CARE ESTABLISHMENT,LD - South Locality,LD - South Cambs - Care,Residential Client Care Contributions
Cambridgeshire County Council,09-Aug-19,51301091943,"-1,561.41",SENSE EAST,CARE ESTABLISHMENT,LD - South Locality,LD - South Cambs - Care,Residential Client Care Contributions
Cambridgeshire County Council,09-Aug-19,51301091943,"-1,561.41",SENSE EAST,CARE ESTABLISHMENT,LD - South Locality,LD - South Cambs - Care,Residential Client Care Contributions
Cambridgeshire County Council,09-Aug-19,51301091943,"-1,561.41",SENSE EAST,CARE ESTABLISHMENT,LD - South Locality,LD - South Cambs - Care,Residential Client Care Contributions
Cambridgeshire County Council,09-Aug-19,51301091943,"-1,561.41",SENSE EAST,CARE ESTABLISHMENT,LD - South Locality,LD - South Cambs - Care,Residential Client Care Contributions
Cambridgeshire County Council,09-Aug-19,51301091943,"-1,561.41",SENSE EAST,CARE ESTABLISHMENT,LD - South Locality,LD - South Cambs - Care,Residential Client Care Contributions
Cambridgeshire County Council,09-Aug-19,51301091943,"-1,561.41",SENSE EAST,CARE ESTABLISHMENT,LD - South Locality,LD - South Cambs - Care,Residential Client Care Contributions
Cambridgeshire County Council,09-Aug-19,51301091943,"-1,561.41",SENSE EAST,CARE ESTABLISHMENT,LD - South Locality,LD - South Cambs - Care,Residential Client Care Contributions
Cambridgeshire County Council,09-Aug-19,51301091943,"-1,561.41",SENSE EAST,CARE ESTABLISHMENT,LD - South Locality,LD - South Cambs - Care,Residential Client Care Contributions
Cambridgeshire County Council,09-Aug-19,51301091943,"-1,561.41",SENSE EAST,CARE ESTABLISHMENT,LD - South Locality,LD - South Cambs - Care,Residential Client Care Contributions
Cambridgeshire County Council,09-Aug-19,51301091943,"-1,561.41",SENSE EAST,CARE ESTABLISHMENT,LD - South Locality,LD - South Cambs - Care,Residential Client Care Contributions
Cambridgeshire County Council,09-Aug-19,51301091943,"-1,561.41",SENSE EAST,CARE ESTABLISHMENT,LD - South Locality,LD - South Cambs - Care,Residential Client Care Contributions
Cambridgeshire County Council,09-Aug-19,51301091943,"-1,561.41",SENSE EAST,CARE ESTABLISHMENT,LD - South Locality,LD - South Cambs - Care,Residential Client Care Contributions
Cambridgeshire County Council,09-Aug-19,51301091943,"-1,561.41",SENSE EAST,CARE ESTABLISHMENT,LD - South Locality,LD - South Cambs - Care,Residential Client Care Contributions
Cambridgeshire County Council,09-Aug-19,51301091943,"-1,561.41",SENSE EAST,CARE ESTABLISHMENT,LD - South Locality,LD - South Cambs - Care,Residential Client Care Contributions
Cambridgeshire County Council,09-Aug-19,51301091943,"-1,561.41",SENSE EAST,CARE ESTABLISHMENT,LD - South Locality,LD - South Cambs - Care,Residential Client Care Contributions
Cambridgeshire County Council,09-Aug-19,51301091943,"-1,561.41",SENSE EAST,CARE ESTABLISHMENT,LD - South Locality,LD - South Cambs - Care,Residential Client Care Contributions
Cambridgeshire County Council,09-Aug-19,51301091943,"-1,561.41",SENSE EAST,CARE ESTABLISHMENT,LD - South Locality,LD - South Cambs - Care,Residential Client Care Contributions
Cambridgeshire County Council,09-Aug-19,51301091943,"-1,561.41",SENSE EAST,CARE ESTABLISHMENT,LD - South Locality,LD - South Cambs - Care,Residential Client Care Contributions
Cambridgeshire County Council,09-Aug-19,51301091943,"-1,561.41",SENSE EAST,CARE ESTABLISHMENT,LD - South Locality,LD - South Cambs - Care,Residential Client Care Contributions
Cambridgeshire County Council,09-Aug-19,51301091943,"-1,561.41",SENSE EAST,CARE ESTABLISHMENT,LD - South Locality,LD - South Cambs - Care,Residential Client Care Contributions
Cambridgeshire County Council,09-Aug-19,51301091943,"-1,561.41",SENSE EAST,CARE ESTABLISHMENT,LD - South Locality,LD - South Cambs - Care,Residential Client Care Contributions
Cambridgeshire County Council,09-Aug-19,51301091943,"-1,561.41",SENSE EAST,CARE ESTABLISHMENT,LD - South Locality,LD - South Cambs - Care,Residential Client Care Contributions
Cambridgeshire County Council,09-Aug-19,51301091943,"-1,561.41",SENSE EAST,CARE ESTABLISHMENT,LD - South Locality,LD - South Cambs - Care,Residential Client Care Contributions
Cambridgeshire County Council,09-Aug-19,51301091943,"-1,561.41",SENSE EAST,CARE ESTABLISHMENT,LD - South Locality,LD - South Cambs - Care,Residential Client Care Contributions
Cambridgeshire County Council,09-Aug-19,51301091943,"-1,561.41",SENSE EAST,CARE ESTABLISHMENT,LD - South Locality,LD - South Cambs - Care,Residential Client Care Contributions
Cambridgeshire County Council,09-Aug-19,51301091943,"-1,561.41",SENSE EAST,CARE ESTABLISHMENT,LD - South Locality,LD - South Cambs - Care,Residential Client Care Contributions
Cambridgeshire County Council,09-Aug-19,51301076179,"-1,548.58",AURORA ORCHARD MANOR,CARE ESTABLISHMENT,LD - City Locality,LD - City - Special Needs,Day Care
Cambridgeshire County Council,09-Aug-19,51301091697,"-1,506.24",AURORA ORCHARD MANOR,CARE ESTABLISHMENT,LD - Young Adults Team,LD - Young Adults - Special Needs,Residential Care
Cambridgeshire County Council,16-Aug-19,51301099014,"-1,488.39",DIMENSIONS (UK) LTD,CARE ESTABLISHMENT,LD - South Locality,LD - South Cambs - Special Needs,Supported Living
Cambridgeshire County Council,30-Aug-19,51301021385,"-1,475.00",MILTON (PETERBOROUGH) ESTATES COMPANY,TRADE SUPPLIER,Authority-wide Miscellaneous,Miscellaneous - Other,Unallocated Budget
Cambridgeshire County Council,16-Aug-19,51301089765,"-1,456.55",THERA EAST ANGLIA,CARE ESTABLISHMENT,LD - South Locality,LD - South Cambs - Special Needs,Supported Living
Cambridgeshire County Council,16-Aug-19,51301089759,"-1,456.55",THERA EAST ANGLIA,CARE ESTABLISHMENT,LD - South Locality,LD - South Cambs - Special Needs,Supported Living
Cambridgeshire County Council,16-Aug-19,51301089758,"-1,456.55",THERA EAST ANGLIA,CARE ESTABLISHMENT,LD - South Locality,LD - South Cambs - Special Needs,Supported Living
Cambridgeshire County Council,16-Aug-19,51301089768,"-1,456.55",THERA EAST ANGLIA,CARE ESTABLISHMENT,LD - South Locality,LD - South Cambs - Special Needs,Supported Living
Cambridgeshire County Council,16-Aug-19,51301089810,"-1,456.55",THERA EAST ANGLIA,CARE ESTABLISHMENT,LD - South Locality,LD - South Cambs - Special Needs,Supported Living
Cambridgeshire County Council,16-Aug-19,51301089806,"-1,456.55",THERA EAST ANGLIA,CARE ESTABLISHMENT,LD - South Locality,LD - South Cambs - Special Needs,Supported Living
Cambridgeshire County Council,16-Aug-19,51301089793,"-1,456.55",THERA EAST ANGLIA,CARE ESTABLISHMENT,LD - South Locality,LD - South Cambs - Special Needs,Supported Living
Cambridgeshire County Council,16-Aug-19,51301089796,"-1,456.55",THERA EAST ANGLIA,CARE ESTABLISHMENT,LD - South Locality,LD - South Cambs - Special Needs,Supported Living
Cambridgeshire County Council,16-Aug-19,51301089790,"-1,456.55",THERA EAST ANGLIA,CARE ESTABLISHMENT,LD - South Locality,LD - South Cambs - Special Needs,Supported Living
Cambridgeshire County Council,16-Aug-19,51301089804,"-1,456.55",THERA EAST ANGLIA,CARE ESTABLISHMENT,LD - South Locality,LD - South Cambs - Special Needs,Supported Living
Cambridgeshire County Council,16-Aug-19,51301089815,"-1,456.55",THERA EAST ANGLIA,CARE ESTABLISHMENT,LD - South Locality,LD - South Cambs - Special Needs,Supported Living
Cambridgeshire County Council,16-Aug-19,51301089771,"-1,456.55",THERA EAST ANGLIA,CARE ESTABLISHMENT,LD - South Locality,LD - South Cambs - Special Needs,Supported Living
Cambridgeshire County Council,16-Aug-19,51301089812,"-1,456.55",THERA EAST ANGLIA,CARE ESTABLISHMENT,LD - South Locality,LD - South Cambs - Special Needs,Supported Living
Cambridgeshire County Council,16-Aug-19,51301089800,"-1,456.55",THERA EAST ANGLIA,CARE ESTABLISHMENT,LD - South Locality,LD - South Cambs - Special Needs,Supported Living
Cambridgeshire County Council,16-Aug-19,51301089784,"-1,456.55",THERA EAST ANGLIA,CARE ESTABLISHMENT,LD - South Locality,LD - South Cambs - Special Needs,Supported Living
Cambridgeshire County Council,16-Aug-19,51301089825,"-1,456.55",THERA EAST ANGLIA,CARE ESTABLISHMENT,LD - South Locality,LD - South Cambs - Special Needs,Supported Living
Cambridgeshire County Council,16-Aug-19,51301089769,"-1,456.55",THERA EAST ANGLIA,CARE ESTABLISHMENT,LD - South Locality,LD - South Cambs - Special Needs,Supported Living
Cambridgeshire County Council,16-Aug-19,51301089807,"-1,456.55",THERA EAST ANGLIA,CARE ESTABLISHMENT,LD - South Locality,LD - South Cambs - Special Needs,Supported Living
Cambridgeshire County Council,16-Aug-19,51301089803,"-1,456.55",THERA EAST ANGLIA,CARE ESTABLISHMENT,LD - South Locality,LD - South Cambs - Special Needs,Supported Living
Cambridgeshire County Council,16-Aug-19,51301089814,"-1,456.55",THERA EAST ANGLIA,CARE ESTABLISHMENT,LD - South Locality,LD - South Cambs - Special Needs,Supported Living
Cambridgeshire County Council,16-Aug-19,51301089777,"-1,456.55",THERA EAST ANGLIA,CARE ESTABLISHMENT,LD - South Locality,LD - South Cambs - Special Needs,Supported Living
Cambridgeshire County Council,16-Aug-19,51301089817,"-1,456.55",THERA EAST ANGLIA,CARE ESTABLISHMENT,LD - South Locality,LD - South Cambs - Special Needs,Supported Living
Cambridgeshire County Council,16-Aug-19,51301089823,"-1,456.55",THERA EAST ANGLIA,CARE ESTABLISHMENT,LD - South Locality,LD - South Cambs - Special Needs,Supported Living
Cambridgeshire County Council,16-Aug-19,51301089805,"-1,456.55",THERA EAST ANGLIA,CARE ESTABLISHMENT,LD - South Locality,LD - South Cambs - Special Needs,Supported Living
Cambridgeshire County Council,09-Aug-19,51301091994,"-1,450.59",VOYAGE,CARE ESTABLISHMENT,LD - City Locality,LD - City - Special Needs,Residential Care
Cambridgeshire County Council,09-Aug-19,51301091994,"-1,450.59",VOYAGE,CARE ESTABLISHMENT,LD - City Locality,LD - City - Special Needs,Residential Care
Cambridgeshire County Council,09-Aug-19,51301091994,"-1,450.59",VOYAGE,CARE ESTABLISHMENT,LD - City Locality,LD - City - Special Needs,Residential Care
Cambridgeshire County Council,09-Aug-19,51301091994,"-1,450.59",VOYAGE,CARE ESTABLISHMENT,LD - City Locality,LD - City - Special Needs,Residential Care
Cambridgeshire County Council,09-Aug-19,51301091994,"-1,450.59",VOYAGE,CARE ESTABLISHMENT,LD - City Locality,LD - City - Special Needs,Residential Care
Cambridgeshire County Council,09-Aug-19,51301091994,"-1,450.59",VOYAGE,CARE ESTABLISHMENT,LD - City Locality,LD - City - Special Needs,Residential Care
Cambridgeshire County Council,09-Aug-19,51301091994,"-1,450.59",VOYAGE,CARE ESTABLISHMENT,LD - City Locality,LD - City - Special Needs,Residential Care
Cambridgeshire County Council,09-Aug-19,51301091994,"-1,450.59",VOYAGE,CARE ESTABLISHMENT,LD - City Locality,LD - City - Special Needs,Residential Care
Cambridgeshire County Council,09-Aug-19,51301091994,"-1,450.59",VOYAGE,CARE ESTABLISHMENT,LD - City Locality,LD - City - Special Needs,Residential Care
Cambridgeshire County Council,09-Aug-19,51301091994,"-1,450.59",VOYAGE,CARE ESTABLISHMENT,LD - City Locality,LD - City - Special Needs,Residential Care
Cambridgeshire County Council,09-Aug-19,51301091994,"-1,450.59",VOYAGE,CARE ESTABLISHMENT,LD - City Locality,LD - City - Special Needs,Residential Care
Cambridgeshire County Council,09-Aug-19,51301091994,"-1,450.59",VOYAGE,CARE ESTABLISHMENT,LD - City Locality,LD - City - Special Needs,Residential Care
Cambridgeshire County Council,09-Aug-19,51301091994,"-1,450.59",VOYAGE,CARE ESTABLISHMENT,LD - City Locality,LD - City - Special Needs,Residential Care
Cambridgeshire County Council,09-Aug-19,51301091994,"-1,450.59",VOYAGE,CARE ESTABLISHMENT,LD - City Locality,LD - City - Special Needs,Residential Care
Cambridgeshire County Council,09-Aug-19,51301091994,"-1,450.59",VOYAGE,CARE ESTABLISHMENT,LD - City Locality,LD - City - Special Needs,Residential Care
Cambridgeshire County Council,09-Aug-19,51301091994,"-1,450.59",VOYAGE,CARE ESTABLISHMENT,LD - City Locality,LD - City - Special Needs,Residential Care
Cambridgeshire County Council,09-Aug-19,51301091994,"-1,450.59",VOYAGE,CARE ESTABLISHMENT,LD - City Locality,LD - City - Special Needs,Residential Care
Cambridgeshire County Council,09-Aug-19,51301091994,"-1,450.59",VOYAGE,CARE ESTABLISHMENT,LD - City Locality,LD - City - Special Needs,Residential Care
Cambridgeshire County Council,09-Aug-19,51301091994,"-1,450.59",VOYAGE,CARE ESTABLISHMENT,LD - City Locality,LD - City - Special Needs,Residential Care
Cambridgeshire County Council,09-Aug-19,51301091994,"-1,450.59",VOYAGE,CARE ESTABLISHMENT,LD - City Locality,LD - City - Special Needs,Residential Care
Cambridgeshire County Council,09-Aug-19,51301091994,"-1,450.59",VOYAGE,CARE ESTABLISHMENT,LD - City Locality,LD - City - Special Needs,Residential Care
Cambridgeshire County Council,09-Aug-19,51301091994,"-1,450.59",VOYAGE,CARE ESTABLISHMENT,LD - City Locality,LD - City - Special Needs,Residential Care
Cambridgeshire County Council,09-Aug-19,51301091994,"-1,450.59",VOYAGE,CARE ESTABLISHMENT,LD - City Locality,LD - City - Special Needs,Residential Care
Cambridgeshire County Council,09-Aug-19,51301091994,"-1,450.59",VOYAGE,CARE ESTABLISHMENT,LD - City Locality,LD - City - Special Needs,Residential Care
Cambridgeshire County Council,09-Aug-19,51301091994,"-1,450.59",VOYAGE,CARE ESTABLISHMENT,LD - City Locality,LD - City - Special Needs,Residential Care
Cambridgeshire County Council,09-Aug-19,51301091994,"-1,450.59",VOYAGE,CARE ESTABLISHMENT,LD - City Locality,LD - City - Special Needs,Residential Care
Cambridgeshire County Council,22-Aug-19,51301120956,"-1,433.57",CHS GROUP,CARE ESTABLISHMENT,LAC Placements,Placements - supported accommodation,Agency Placements - In County
Cambridgeshire County Council,09-Aug-19,51301091511,"-1,400.00",WOODLANDS CARE CENTRE,CARE ESTABLISHMENT,OP - East Cambs Locality,East Cambs - O P Team,Nursing Care
Cambridgeshire County Council,09-Aug-19,51301091511,"-1,400.00",WOODLANDS CARE CENTRE,CARE ESTABLISHMENT,OP - East Cambs Locality,East Cambs - O P Team,Nursing Care
Cambridgeshire County Council,09-Aug-19,51301091511,"-1,400.00",WOODLANDS CARE CENTRE,CARE ESTABLISHMENT,OP - East Cambs Locality,East Cambs - O P Team,Nursing Care
Cambridgeshire County Council,09-Aug-19,51301091511,"-1,400.00",WOODLANDS CARE CENTRE,CARE ESTABLISHMENT,OP - East Cambs Locality,East Cambs - O P Team,Nursing Care
Cambridgeshire County Council,09-Aug-19,51301091511,"-1,400.00",WOODLANDS CARE CENTRE,CARE ESTABLISHMENT,OP - East Cambs Locality,East Cambs - O P Team,Nursing Care
Cambridgeshire County Council,09-Aug-19,51301091511,"-1,400.00",WOODLANDS CARE CENTRE,CARE ESTABLISHMENT,OP - East Cambs Locality,East Cambs - O P Team,Nursing Care
Cambridgeshire County Council,09-Aug-19,51301091511,"-1,400.00",WOODLANDS CARE CENTRE,CARE ESTABLISHMENT,OP - East Cambs Locality,East Cambs - O P Team,Nursing Care
Cambridgeshire County Council,09-Aug-19,51301091511,"-1,400.00",WOODLANDS CARE CENTRE,CARE ESTABLISHMENT,OP - East Cambs Locality,East Cambs - O P Team,Nursing Care
Cambridgeshire County Council,09-Aug-19,51301091511,"-1,400.00",WOODLANDS CARE CENTRE,CARE ESTABLISHMENT,OP - East Cambs Locality,East Cambs - O P Team,Nursing Care
Cambridgeshire County Council,09-Aug-19,51301091511,"-1,400.00",WOODLANDS CARE CENTRE,CARE ESTABLISHMENT,OP - East Cambs Locality,East Cambs - O P Team,Nursing Care
Cambridgeshire County Council,09-Aug-19,51301091511,"-1,400.00",WOODLANDS CARE CENTRE,CARE ESTABLISHMENT,OP - East Cambs Locality,East Cambs - O P Team,Nursing Care
Cambridgeshire County Council,09-Aug-19,51301091511,"-1,400.00",WOODLANDS CARE CENTRE,CARE ESTABLISHMENT,OP - East Cambs Locality,East Cambs - O P Team,Nursing Care
Cambridgeshire County Council,09-Aug-19,51301091511,"-1,400.00",WOODLANDS CARE CENTRE,CARE ESTABLISHMENT,OP - East Cambs Locality,East Cambs - O P Team,Nursing Care
Cambridgeshire County Council,09-Aug-19,51301091511,"-1,400.00",WOODLANDS CARE CENTRE,CARE ESTABLISHMENT,OP - East Cambs Locality,East Cambs - O P Team,Nursing Care
Cambridgeshire County Council,09-Aug-19,51301091511,"-1,400.00",WOODLANDS CARE CENTRE,CARE ESTABLISHMENT,OP - East Cambs Locality,East Cambs - O P Team,Nursing Care
Cambridgeshire County Council,09-Aug-19,51301091511,"-1,400.00",WOODLANDS CARE CENTRE,CARE ESTABLISHMENT,OP - East Cambs Locality,East Cambs - O P Team,Nursing Care
Cambridgeshire County Council,09-Aug-19,51301091511,"-1,400.00",WOODLANDS CARE CENTRE,CARE ESTABLISHMENT,OP - East Cambs Locality,East Cambs - O P Team,Nursing Care
Cambridgeshire County Council,09-Aug-19,51301091511,"-1,400.00",WOODLANDS CARE CENTRE,CARE ESTABLISHMENT,OP - East Cambs Locality,East Cambs - O P Team,Nursing Care
Cambridgeshire County Council,09-Aug-19,51301091511,"-1,400.00",WOODLANDS CARE CENTRE,CARE ESTABLISHMENT,OP - East Cambs Locality,East Cambs - O P Team,Nursing Care
Cambridgeshire County Council,09-Aug-19,51301091511,"-1,400.00",WOODLANDS CARE CENTRE,CARE ESTABLISHMENT,OP - East Cambs Locality,East Cambs - O P Team,Nursing Care
Cambridgeshire County Council,09-Aug-19,51301091511,"-1,400.00",WOODLANDS CARE CENTRE,CARE ESTABLISHMENT,OP - East Cambs Locality,East Cambs - O P Team,Nursing Care
Cambridgeshire County Council,09-Aug-19,51300817456,"-1,379.86",EDEN VIEW,CARE ESTABLISHMENT,Physical Disablity,Countywide PD Service - Care,Nursing Care
Cambridgeshire County Council,22-Aug-19,51301121282,"-1,370.12",73 HIGH ROAD,CARE ESTABLISHMENT,LD - City Locality,LD - City - Special Needs,Supported Living
Cambridgeshire County Council,22-Aug-19,51301121288,"-1,370.12",73 HIGH ROAD,CARE ESTABLISHMENT,LD - City Locality,LD - City - Special Needs,Supported Living
Cambridgeshire County Council,22-Aug-19,51301121286,"-1,370.12",73 HIGH ROAD,CARE ESTABLISHMENT,LD - City Locality,LD - City - Special Needs,Supported Living
Cambridgeshire County Council,22-Aug-19,51301121293,"-1,370.12",73 HIGH ROAD,CARE ESTABLISHMENT,LD - City Locality,LD - City - Special Needs,Supported Living
Cambridgeshire County Council,22-Aug-19,51301121296,"-1,370.12",73 HIGH ROAD,CARE ESTABLISHMENT,LD - City Locality,LD - City - Special Needs,Supported Living
Cambridgeshire County Council,22-Aug-19,51301121277,"-1,370.12",73 HIGH ROAD,CARE ESTABLISHMENT,LD - City Locality,LD - City - Special Needs,Supported Living
Cambridgeshire County Council,09-Aug-19,51300810969,"-1,338.35",SENSE EAST,CARE ESTABLISHMENT,LD - City Locality,LD - City - Care,Residential Care
Cambridgeshire County Council,16-Aug-19,51301117512,"-1,337.74",COTTENHAM COURT NURSING HOME,CARE ESTABLISHMENT,OP - East Cambs Locality,East Cambs - O P Team,Nursing Care
Cambridgeshire County Council,16-Aug-19,51301117512,"-1,337.74",COTTENHAM COURT NURSING HOME,CARE ESTABLISHMENT,OP - East Cambs Locality,East Cambs - O P Team,Nursing Care
Cambridgeshire County Council,16-Aug-19,51301117512,"-1,337.74",COTTENHAM COURT NURSING HOME,CARE ESTABLISHMENT,OP - East Cambs Locality,East Cambs - O P Team,Nursing Care
Cambridgeshire County Council,16-Aug-19,51301117512,"-1,337.74",COTTENHAM COURT NURSING HOME,CARE ESTABLISHMENT,OP - East Cambs Locality,East Cambs - O P Team,Nursing Care
Cambridgeshire County Council,16-Aug-19,51301117512,"-1,337.74",COTTENHAM COURT NURSING HOME,CARE ESTABLISHMENT,OP - East Cambs Locality,East Cambs - O P Team,Nursing Care
Cambridgeshire County Council,16-Aug-19,51301117512,"-1,337.74",COTTENHAM COURT NURSING HOME,CARE ESTABLISHMENT,OP - East Cambs Locality,East Cambs - O P Team,Nursing Care
Cambridgeshire County Council,16-Aug-19,51301117512,"-1,337.74",COTTENHAM COURT NURSING HOME,CARE ESTABLISHMENT,OP - East Cambs Locality,East Cambs - O P Team,Nursing Care
Cambridgeshire County Council,09-Aug-19,51301079251,"-1,317.11",ALDERTON HOUSE,CARE ESTABLISHMENT,LD - East Locality,LD - East Cambs - Care,Residential Care
Cambridgeshire County Council,09-Aug-19,51301087430,"-1,317.11",ALDERTON HOUSE,CARE ESTABLISHMENT,LD - East Locality,LD - East Cambs - Care,Residential Care
Cambridgeshire County Council,09-Aug-19,51301087441,"-1,317.11",ALDERTON HOUSE,CARE ESTABLISHMENT,LD - East Locality,LD - East Cambs - Care,Residential Care
Cambridgeshire County Council,09-Aug-19,51301087418,"-1,317.11",ALDERTON HOUSE,CARE ESTABLISHMENT,LD - East Locality,LD - East Cambs - Care,Residential Care
Cambridgeshire County Council,09-Aug-19,51301068664,"-1,317.11",ALDERTON HOUSE,CARE ESTABLISHMENT,LD - East Locality,LD - East Cambs - Care,Residential Care
Cambridgeshire County Council,09-Aug-19,51301068674,"-1,317.11",ALDERTON HOUSE,CARE ESTABLISHMENT,LD - East Locality,LD - East Cambs - Care,Residential Care
Cambridgeshire County Council,09-Aug-19,51301068602,"-1,317.11",ALDERTON HOUSE,CARE ESTABLISHMENT,LD - East Locality,LD - East Cambs - Care,Residential Care
Cambridgeshire County Council,09-Aug-19,51301079187,"-1,317.11",ALDERTON HOUSE,CARE ESTABLISHMENT,LD - East Locality,LD - East Cambs - Care,Residential Care
Cambridgeshire County Council,09-Aug-19,51301079140,"-1,317.11",ALDERTON HOUSE,CARE ESTABLISHMENT,LD - East Locality,LD - East Cambs - Care,Residential Care
Cambridgeshire County Council,09-Aug-19,51301068611,"-1,317.11",ALDERTON HOUSE,CARE ESTABLISHMENT,LD - East Locality,LD - East Cambs - Care,Residential Care
Cambridgeshire County Council,09-Aug-19,51301068689,"-1,317.11",ALDERTON HOUSE,CARE ESTABLISHMENT,LD - East Locality,LD - East Cambs - Care,Residential Care
Cambridgeshire County Council,09-Aug-19,51301068559,"-1,317.11",ALDERTON HOUSE,CARE ESTABLISHMENT,LD - East Locality,LD - East Cambs - Care,Residential Care
Cambridgeshire County Council,09-Aug-19,51301068568,"-1,317.11",ALDERTON HOUSE,CARE ESTABLISHMENT,LD - East Locality,LD - East Cambs - Care,Residential Care
Cambridgeshire County Council,09-Aug-19,51301079248,"-1,317.11",ALDERTON HOUSE,CARE ESTABLISHMENT,LD - East Locality,LD - East Cambs - Care,Residential Care
Cambridgeshire County Council,09-Aug-19,51301079237,"-1,317.11",ALDERTON HOUSE,CARE ESTABLISHMENT,LD - East Locality,LD - East Cambs - Care,Residential Care
Cambridgeshire County Council,09-Aug-19,51301087432,"-1,317.11",ALDERTON HOUSE,CARE ESTABLISHMENT,LD - East Locality,LD - East Cambs - Care,Residential Care
Cambridgeshire County Council,09-Aug-19,51301087490,"-1,317.11",ALDERTON HOUSE,CARE ESTABLISHMENT,LD - East Locality,LD - East Cambs - Care,Residential Care
Cambridgeshire County Council,09-Aug-19,51301068648,"-1,317.11",ALDERTON HOUSE,CARE ESTABLISHMENT,LD - East Locality,LD - East Cambs - Care,Residential Care
Cambridgeshire County Council,09-Aug-19,51301079244,"-1,317.11",ALDERTON HOUSE,CARE ESTABLISHMENT,LD - East Locality,LD - East Cambs - Care,Residential Care
Cambridgeshire County Council,09-Aug-19,51301068571,"-1,317.11",ALDERTON HOUSE,CARE ESTABLISHMENT,LD - East Locality,LD - East Cambs - Care,Residential Care
Cambridgeshire County Council,09-Aug-19,51301068624,"-1,317.11",ALDERTON HOUSE,CARE ESTABLISHMENT,LD - East Locality,LD - East Cambs - Care,Residential Care
Cambridgeshire County Council,09-Aug-19,51301079137,"-1,317.11",ALDERTON HOUSE,CARE ESTABLISHMENT,LD - East Locality,LD - East Cambs - Care,Residential Care
Cambridgeshire County Council,09-Aug-19,51301068553,"-1,317.11",ALDERTON HOUSE,CARE ESTABLISHMENT,LD - East Locality,LD - East Cambs - Care,Residential Care
Cambridgeshire County Council,09-Aug-19,51301079213,"-1,317.11",ALDERTON HOUSE,CARE ESTABLISHMENT,LD - East Locality,LD - East Cambs - Care,Residential Care
Cambridgeshire County Council,09-Aug-19,51301079241,"-1,317.11",ALDERTON HOUSE,CARE ESTABLISHMENT,LD - East Locality,LD - East Cambs - Care,Residential Care
Cambridgeshire County Council,09-Aug-19,51301079224,"-1,317.11",ALDERTON HOUSE,CARE ESTABLISHMENT,LD - East Locality,LD - East Cambs - Care,Residential Care
Cambridgeshire County Council,09-Aug-19,51301079169,"-1,317.11",ALDERTON HOUSE,CARE ESTABLISHMENT,LD - East Locality,LD - East Cambs - Care,Residential Care
Cambridgeshire County Council,09-Aug-19,51301079239,"-1,317.11",ALDERTON HOUSE,CARE ESTABLISHMENT,LD - East Locality,LD - East Cambs - Care,Residential Care
Cambridgeshire County Council,09-Aug-19,51301087396,"-1,317.11",ALDERTON HOUSE,CARE ESTABLISHMENT,LD - East Locality,LD - East Cambs - Care,Residential Care
Cambridgeshire County Council,09-Aug-19,51301087439,"-1,317.11",ALDERTON HOUSE,CARE ESTABLISHMENT,LD - East Locality,LD - East Cambs - Care,Residential Care
Cambridgeshire County Council,09-Aug-19,51301068564,"-1,317.11",ALDERTON HOUSE,CARE ESTABLISHMENT,LD - East Locality,LD - East Cambs - Care,Residential Care
Cambridgeshire County Council,09-Aug-19,51301087427,"-1,317.11",ALDERTON HOUSE,CARE ESTABLISHMENT,LD - East Locality,LD - East Cambs - Care,Residential Care
Cambridgeshire County Council,09-Aug-19,51301087422,"-1,317.11",ALDERTON HOUSE,CARE ESTABLISHMENT,LD - East Locality,LD - East Cambs - Care,Residential Care
Cambridgeshire County Council,09-Aug-19,51301079142,"-1,317.11",ALDERTON HOUSE,CARE ESTABLISHMENT,LD - East Locality,LD - East Cambs - Care,Residential Care
Cambridgeshire County Council,09-Aug-19,51301087500,"-1,317.11",ALDERTON HOUSE,CARE ESTABLISHMENT,LD - East Locality,LD - East Cambs - Care,Residential Care
Cambridgeshire County Council,09-Aug-19,51301087399,"-1,317.11",ALDERTON HOUSE,CARE ESTABLISHMENT,LD - East Locality,LD - East Cambs - Care,Residential Care
Cambridgeshire County Council,09-Aug-19,51301079166,"-1,317.11",ALDERTON HOUSE,CARE ESTABLISHMENT,LD - East Locality,LD - East Cambs - Care,Residential Care
Cambridgeshire County Council,09-Aug-19,51301079141,"-1,317.11",ALDERTON HOUSE,CARE ESTABLISHMENT,LD - East Locality,LD - East Cambs - Care,Residential Care
Cambridgeshire County Council,09-Aug-19,51301068537,"-1,317.11",ALDERTON HOUSE,CARE ESTABLISHMENT,LD - East Locality,LD - East Cambs - Care,Residential Care
Cambridgeshire County Council,09-Aug-19,51301068603,"-1,317.11",ALDERTON HOUSE,CARE ESTABLISHMENT,LD - East Locality,LD - East Cambs - Care,Residential Care
Cambridgeshire County Council,09-Aug-19,51301068677,"-1,317.11",ALDERTON HOUSE,CARE ESTABLISHMENT,LD - East Locality,LD - East Cambs - Care,Residential Care
Cambridgeshire County Council,09-Aug-19,51301068617,"-1,317.11",ALDERTON HOUSE,CARE ESTABLISHMENT,LD - East Locality,LD - East Cambs - Care,Residential Care
Cambridgeshire County Council,09-Aug-19,51301079152,"-1,317.11",ALDERTON HOUSE,CARE ESTABLISHMENT,LD - East Locality,LD - East Cambs - Care,Residential Care
Cambridgeshire County Council,09-Aug-19,51301087474,"-1,317.11",ALDERTON HOUSE,CARE ESTABLISHMENT,LD - East Locality,LD - East Cambs - Care,Residential Care
Cambridgeshire County Council,09-Aug-19,51301079158,"-1,317.11",ALDERTON HOUSE,CARE ESTABLISHMENT,LD - East Locality,LD - East Cambs - Care,Residential Care
Cambridgeshire County Council,09-Aug-19,51301068598,"-1,317.11",ALDERTON HOUSE,CARE ESTABLISHMENT,LD - East Locality,LD - East Cambs - Care,Residential Care
Cambridgeshire County Council,09-Aug-19,51301068612,"-1,317.11",ALDERTON HOUSE,CARE ESTABLISHMENT,LD - East Locality,LD - East Cambs - Care,Residential Care
Cambridgeshire County Council,09-Aug-19,51301079240,"-1,317.11",ALDERTON HOUSE,CARE ESTABLISHMENT,LD - East Locality,LD - East Cambs - Care,Residential Care
Cambridgeshire County Council,09-Aug-19,51301087476,"-1,317.11",ALDERTON HOUSE,CARE ESTABLISHMENT,LD - East Locality,LD - East Cambs - Care,Residential Care
Cambridgeshire County Council,09-Aug-19,51301087496,"-1,317.11",ALDERTON HOUSE,CARE ESTABLISHMENT,LD - East Locality,LD - East Cambs - Care,Residential Care
Cambridgeshire County Council,09-Aug-19,51301079165,"-1,317.11",ALDERTON HOUSE,CARE ESTABLISHMENT,LD - East Locality,LD - East Cambs - Care,Residential Care
Cambridgeshire County Council,09-Aug-19,51301068657,"-1,317.11",ALDERTON HOUSE,CARE ESTABLISHMENT,LD - East Locality,LD - East Cambs - Care,Residential Care
Cambridgeshire County Council,09-Aug-19,51301087480,"-1,317.11",ALDERTON HOUSE,CARE ESTABLISHMENT,LD - East Locality,LD - East Cambs - Care,Residential Care
Cambridgeshire County Council,09-Aug-19,51301068672,"-1,317.11",ALDERTON HOUSE,CARE ESTABLISHMENT,LD - East Locality,LD - East Cambs - Care,Residential Care
Cambridgeshire County Council,09-Aug-19,51301068555,"-1,317.11",ALDERTON HOUSE,CARE ESTABLISHMENT,LD - East Locality,LD - East Cambs - Care,Residential Care
Cambridgeshire County Council,09-Aug-19,51301079138,"-1,317.11",ALDERTON HOUSE,CARE ESTABLISHMENT,LD - East Locality,LD - East Cambs - Care,Residential Care
Cambridgeshire County Council,09-Aug-19,51301079147,"-1,317.11",ALDERTON HOUSE,CARE ESTABLISHMENT,LD - East Locality,LD - East Cambs - Care,Residential Care
Cambridgeshire County Council,09-Aug-19,51301087475,"-1,317.11",ALDERTON HOUSE,CARE ESTABLISHMENT,LD - East Locality,LD - East Cambs - Care,Residential Care
Cambridgeshire County Council,09-Aug-19,51301087524,"-1,317.11",ALDERTON HOUSE,CARE ESTABLISHMENT,LD - East Locality,LD - East Cambs - Care,Residential Care
Cambridgeshire County Council,09-Aug-19,51301068556,"-1,317.11",ALDERTON HOUSE,CARE ESTABLISHMENT,LD - East Locality,LD - East Cambs - Care,Residential Care
Cambridgeshire County Council,09-Aug-19,51301068584,"-1,317.11",ALDERTON HOUSE,CARE ESTABLISHMENT,LD - East Locality,LD - East Cambs - Care,Residential Care
Cambridgeshire County Council,09-Aug-19,51301087400,"-1,317.11",ALDERTON HOUSE,CARE ESTABLISHMENT,LD - East Locality,LD - East Cambs - Care,Residential Care
Cambridgeshire County Council,09-Aug-19,51301068577,"-1,317.11",ALDERTON HOUSE,CARE ESTABLISHMENT,LD - East Locality,LD - East Cambs - Care,Residential Care
Cambridgeshire County Council,09-Aug-19,51301079162,"-1,317.11",ALDERTON HOUSE,CARE ESTABLISHMENT,LD - East Locality,LD - East Cambs - Care,Residential Care
Cambridgeshire County Council,09-Aug-19,51301087484,"-1,317.11",ALDERTON HOUSE,CARE ESTABLISHMENT,LD - East Locality,LD - East Cambs - Care,Residential Care
Cambridgeshire County Council,09-Aug-19,51301068690,"-1,317.11",ALDERTON HOUSE,CARE ESTABLISHMENT,LD - East Locality,LD - East Cambs - Care,Residential Care
Cambridgeshire County Council,09-Aug-19,51301087423,"-1,317.11",ALDERTON HOUSE,CARE ESTABLISHMENT,LD - East Locality,LD - East Cambs - Care,Residential Care
Cambridgeshire County Council,09-Aug-19,51301068543,"-1,317.11",ALDERTON HOUSE,CARE ESTABLISHMENT,LD - East Locality,LD - East Cambs - Care,Residential Care
Cambridgeshire County Council,09-Aug-19,51301087456,"-1,317.11",ALDERTON HOUSE,CARE ESTABLISHMENT,LD - East Locality,LD - East Cambs - Care,Residential Care
Cambridgeshire County Council,09-Aug-19,51301087412,"-1,317.11",ALDERTON HOUSE,CARE ESTABLISHMENT,LD - East Locality,LD - East Cambs - Care,Residential Care
Cambridgeshire County Council,09-Aug-19,51301068539,"-1,317.11",ALDERTON HOUSE,CARE ESTABLISHMENT,LD - East Locality,LD - East Cambs - Care,Residential Care
Cambridgeshire County Council,09-Aug-19,51301087470,"-1,317.11",ALDERTON HOUSE,CARE ESTABLISHMENT,LD - East Locality,LD - East Cambs - Care,Residential Care
Cambridgeshire County Council,09-Aug-19,51301087464,"-1,317.11",ALDERTON HOUSE,CARE ESTABLISHMENT,LD - East Locality,LD - East Cambs - Care,Residential Care
Cambridgeshire County Council,09-Aug-19,51301068679,"-1,317.11",ALDERTON HOUSE,CARE ESTABLISHMENT,LD - East Locality,LD - East Cambs - Care,Residential Care
Cambridgeshire County Council,09-Aug-19,51301079173,"-1,317.11",ALDERTON HOUSE,CARE ESTABLISHMENT,LD - East Locality,LD - East Cambs - Care,Residential Care
Cambridgeshire County Council,09-Aug-19,51301068698,"-1,317.11",ALDERTON HOUSE,CARE ESTABLISHMENT,LD - East Locality,LD - East Cambs - Care,Residential Care
Cambridgeshire County Council,09-Aug-19,51301068691,"-1,317.11",ALDERTON HOUSE,CARE ESTABLISHMENT,LD - East Locality,LD - East Cambs - Special Needs,Residential Care
Cambridgeshire County Council,09-Aug-19,51301079230,"-1,317.11",ALDERTON HOUSE,CARE ESTABLISHMENT,LD - East Locality,LD - East Cambs - Special Needs,Residential Care
Cambridgeshire County Council,09-Aug-19,51301068695,"-1,317.11",ALDERTON HOUSE,CARE ESTABLISHMENT,LD - East Locality,LD - East Cambs - Special Needs,Residential Care
Cambridgeshire County Council,09-Aug-19,51301087458,"-1,317.11",ALDERTON HOUSE,CARE ESTABLISHMENT,LD - East Locality,LD - East Cambs - Special Needs,Residential Care
Cambridgeshire County Council,09-Aug-19,51301068590,"-1,317.11",ALDERTON HOUSE,CARE ESTABLISHMENT,LD - East Locality,LD - East Cambs - Special Needs,Residential Care
Cambridgeshire County Council,09-Aug-19,51301079168,"-1,317.11",ALDERTON HOUSE,CARE ESTABLISHMENT,LD - East Locality,LD - East Cambs - Special Needs,Residential Care
Cambridgeshire County Council,09-Aug-19,51301079222,"-1,317.11",ALDERTON HOUSE,CARE ESTABLISHMENT,LD - East Locality,LD - East Cambs - Special Needs,Residential Care
Cambridgeshire County Council,09-Aug-19,51301068647,"-1,317.11",ALDERTON HOUSE,CARE ESTABLISHMENT,LD - East Locality,LD - East Cambs - Special Needs,Residential Care
Cambridgeshire County Council,09-Aug-19,51301087444,"-1,317.11",ALDERTON HOUSE,CARE ESTABLISHMENT,LD - East Locality,LD - East Cambs - Special Needs,Residential Care
Cambridgeshire County Council,09-Aug-19,51301068610,"-1,317.11",ALDERTON HOUSE,CARE ESTABLISHMENT,LD - East Locality,LD - East Cambs - Special Needs,Residential Care
Cambridgeshire County Council,09-Aug-19,51301087516,"-1,317.11",ALDERTON HOUSE,CARE ESTABLISHMENT,LD - East Locality,LD - East Cambs - Special Needs,Residential Care
Cambridgeshire County Council,09-Aug-19,51301087447,"-1,317.11",ALDERTON HOUSE,CARE ESTABLISHMENT,LD - East Locality,LD - East Cambs - Special Needs,Residential Care
Cambridgeshire County Council,09-Aug-19,51301068595,"-1,317.11",ALDERTON HOUSE,CARE ESTABLISHMENT,LD - East Locality,LD - East Cambs - Special Needs,Residential Care
Cambridgeshire County Council,09-Aug-19,51301079238,"-1,317.11",ALDERTON HOUSE,CARE ESTABLISHMENT,LD - East Locality,LD - East Cambs - Special Needs,Residential Care
Cambridgeshire County Council,09-Aug-19,51301087437,"-1,317.11",ALDERTON HOUSE,CARE ESTABLISHMENT,LD - East Locality,LD - East Cambs - Special Needs,Residential Care
Cambridgeshire County Council,09-Aug-19,51301068633,"-1,317.11",ALDERTON HOUSE,CARE ESTABLISHMENT,LD - East Locality,LD - East Cambs - Special Needs,Residential Care
Cambridgeshire County Council,09-Aug-19,51301079144,"-1,317.11",ALDERTON HOUSE,CARE ESTABLISHMENT,LD - East Locality,LD - East Cambs - Special Needs,Residential Care
Cambridgeshire County Council,09-Aug-19,51301068642,"-1,317.11",ALDERTON HOUSE,CARE ESTABLISHMENT,LD - East Locality,LD - East Cambs - Special Needs,Residential Care
Cambridgeshire County Council,09-Aug-19,51301068541,"-1,317.11",ALDERTON HOUSE,CARE ESTABLISHMENT,LD - East Locality,LD - East Cambs - Special Needs,Residential Care
Cambridgeshire County Council,09-Aug-19,51301087478,"-1,317.11",ALDERTON HOUSE,CARE ESTABLISHMENT,LD - East Locality,LD - East Cambs - Special Needs,Residential Care
Cambridgeshire County Council,09-Aug-19,51301087522,"-1,317.11",ALDERTON HOUSE,CARE ESTABLISHMENT,LD - East Locality,LD - East Cambs - Special Needs,Residential Care
Cambridgeshire County Council,09-Aug-19,51301068576,"-1,317.11",ALDERTON HOUSE,CARE ESTABLISHMENT,LD - East Locality,LD - East Cambs - Special Needs,Residential Care
Cambridgeshire County Council,09-Aug-19,51301079245,"-1,317.11",ALDERTON HOUSE,CARE ESTABLISHMENT,LD - East Locality,LD - East Cambs - Special Needs,Residential Care
Cambridgeshire County Council,09-Aug-19,51301087449,"-1,317.11",ALDERTON HOUSE,CARE ESTABLISHMENT,LD - East Locality,LD - East Cambs - Special Needs,Residential Care
Cambridgeshire County Council,09-Aug-19,51301087494,"-1,317.11",ALDERTON HOUSE,CARE ESTABLISHMENT,LD - East Locality,LD - East Cambs - Special Needs,Residential Care
Cambridgeshire County Council,09-Aug-19,51301068688,"-1,317.11",ALDERTON HOUSE,CARE ESTABLISHMENT,LD - East Locality,LD - East Cambs - Special Needs,Residential Care
Cambridgeshire County Council,09-Aug-19,51301068699,"-1,317.11",ALDERTON HOUSE,CARE ESTABLISHMENT,LD - East Locality,LD - East Cambs - Special Needs,Residential Care
Cambridgeshire County Council,09-Aug-19,51301068562,"-1,317.11",ALDERTON HOUSE,CARE ESTABLISHMENT,LD - East Locality,LD - East Cambs - Special Needs,Residential Care
Cambridgeshire County Council,09-Aug-19,51301079189,"-1,317.11",ALDERTON HOUSE,CARE ESTABLISHMENT,LD - East Locality,LD - East Cambs - Special Needs,Residential Care
Cambridgeshire County Council,09-Aug-19,51301079247,"-1,317.11",ALDERTON HOUSE,CARE ESTABLISHMENT,LD - East Locality,LD - East Cambs - Special Needs,Residential Care
Cambridgeshire County Council,09-Aug-19,51301079156,"-1,317.11",ALDERTON HOUSE,CARE ESTABLISHMENT,LD - East Locality,LD - East Cambs - Special Needs,Residential Care
Cambridgeshire County Council,09-Aug-19,51301087443,"-1,317.11",ALDERTON HOUSE,CARE ESTABLISHMENT,LD - East Locality,LD - East Cambs - Special Needs,Residential Care
Cambridgeshire County Council,09-Aug-19,51301068545,"-1,317.11",ALDERTON HOUSE,CARE ESTABLISHMENT,LD - East Locality,LD - East Cambs - Special Needs,Residential Care
Cambridgeshire County Council,09-Aug-19,51301079196,"-1,317.11",ALDERTON HOUSE,CARE ESTABLISHMENT,LD - East Locality,LD - East Cambs - Special Needs,Residential Care
Cambridgeshire County Council,09-Aug-19,51301087397,"-1,317.11",ALDERTON HOUSE,CARE ESTABLISHMENT,LD - East Locality,LD - East Cambs - Special Needs,Residential Care
Cambridgeshire County Council,09-Aug-19,51301087525,"-1,317.11",ALDERTON HOUSE,CARE ESTABLISHMENT,LD - East Locality,LD - East Cambs - Special Needs,Residential Care
Cambridgeshire County Council,09-Aug-19,51301079229,"-1,317.11",ALDERTON HOUSE,CARE ESTABLISHMENT,LD - East Locality,LD - East Cambs - Special Needs,Residential Care
Cambridgeshire County Council,09-Aug-19,51301079232,"-1,317.11",ALDERTON HOUSE,CARE ESTABLISHMENT,LD - East Locality,LD - East Cambs - Special Needs,Residential Care
Cambridgeshire County Council,09-Aug-19,51301087510,"-1,317.11",ALDERTON HOUSE,CARE ESTABLISHMENT,LD - East Locality,LD - East Cambs - Special Needs,Residential Care
Cambridgeshire County Council,09-Aug-19,51301087431,"-1,317.11",ALDERTON HOUSE,CARE ESTABLISHMENT,LD - East Locality,LD - East Cambs - Special Needs,Residential Care
Cambridgeshire County Council,09-Aug-19,51301079204,"-1,317.11",ALDERTON HOUSE,CARE ESTABLISHMENT,LD - East Locality,LD - East Cambs - Special Needs,Residential Care
Cambridgeshire County Council,09-Aug-19,51301079178,"-1,317.11",ALDERTON HOUSE,CARE ESTABLISHMENT,LD - East Locality,LD - East Cambs - Special Needs,Residential Care
Cambridgeshire County Council,09-Aug-19,51301087518,"-1,317.11",ALDERTON HOUSE,CARE ESTABLISHMENT,LD - East Locality,LD - East Cambs - Special Needs,Residential Care
Cambridgeshire County Council,09-Aug-19,51301079131,"-1,317.11",ALDERTON HOUSE,CARE ESTABLISHMENT,LD - East Locality,LD - East Cambs - Special Needs,Residential Care
Cambridgeshire County Council,09-Aug-19,51301079206,"-1,317.11",ALDERTON HOUSE,CARE ESTABLISHMENT,LD - East Locality,LD - East Cambs - Special Needs,Residential Care
Cambridgeshire County Council,09-Aug-19,51301087435,"-1,317.11",ALDERTON HOUSE,CARE ESTABLISHMENT,LD - East Locality,LD - East Cambs - Special Needs,Residential Care
Cambridgeshire County Council,09-Aug-19,51301087461,"-1,317.11",ALDERTON HOUSE,CARE ESTABLISHMENT,LD - East Locality,LD - East Cambs - Special Needs,Residential Care
Cambridgeshire County Council,09-Aug-19,51301087504,"-1,317.11",ALDERTON HOUSE,CARE ESTABLISHMENT,LD - East Locality,LD - East Cambs - Special Needs,Residential Care
Cambridgeshire County Council,09-Aug-19,51301079181,"-1,317.11",ALDERTON HOUSE,CARE ESTABLISHMENT,LD - East Locality,LD - East Cambs - Special Needs,Residential Care
Cambridgeshire County Council,09-Aug-19,51301079214,"-1,317.11",ALDERTON HOUSE,CARE ESTABLISHMENT,LD - East Locality,LD - East Cambs - Special Needs,Residential Care
Cambridgeshire County Council,09-Aug-19,51301068538,"-1,317.11",ALDERTON HOUSE,CARE ESTABLISHMENT,LD - East Locality,LD - East Cambs - Special Needs,Residential Care
Cambridgeshire County Council,09-Aug-19,51301087404,"-1,317.11",ALDERTON HOUSE,CARE ESTABLISHMENT,LD - East Locality,LD - East Cambs - Special Needs,Residential Care
Cambridgeshire County Council,09-Aug-19,51301087401,"-1,317.11",ALDERTON HOUSE,CARE ESTABLISHMENT,LD - East Locality,LD - East Cambs - Special Needs,Residential Care
Cambridgeshire County Council,09-Aug-19,51301068665,"-1,317.11",ALDERTON HOUSE,CARE ESTABLISHMENT,LD - East Locality,LD - East Cambs - Special Needs,Residential Care
Cambridgeshire County Council,09-Aug-19,51301079191,"-1,317.11",ALDERTON HOUSE,CARE ESTABLISHMENT,LD - East Locality,LD - East Cambs - Special Needs,Residential Care
Cambridgeshire County Council,09-Aug-19,51301068649,"-1,317.11",ALDERTON HOUSE,CARE ESTABLISHMENT,LD - East Locality,LD - East Cambs - Special Needs,Residential Care
Cambridgeshire County Council,09-Aug-19,51301068651,"-1,317.11",ALDERTON HOUSE,CARE ESTABLISHMENT,LD - East Locality,LD - East Cambs - Special Needs,Residential Care
Cambridgeshire County Council,09-Aug-19,51301079153,"-1,317.11",ALDERTON HOUSE,CARE ESTABLISHMENT,LD - East Locality,LD - East Cambs - Special Needs,Residential Care
Cambridgeshire County Council,09-Aug-19,51301087446,"-1,317.11",ALDERTON HOUSE,CARE ESTABLISHMENT,LD - East Locality,LD - East Cambs - Special Needs,Residential Care
Cambridgeshire County Council,09-Aug-19,51301087455,"-1,317.11",ALDERTON HOUSE,CARE ESTABLISHMENT,LD - East Locality,LD - East Cambs - Special Needs,Residential Care
Cambridgeshire County Council,09-Aug-19,51301087498,"-1,317.11",ALDERTON HOUSE,CARE ESTABLISHMENT,LD - East Locality,LD - East Cambs - Special Needs,Residential Care
Cambridgeshire County Council,09-Aug-19,51301087448,"-1,317.11",ALDERTON HOUSE,CARE ESTABLISHMENT,LD - East Locality,LD - East Cambs - Special Needs,Residential Care
Cambridgeshire County Council,09-Aug-19,51301079163,"-1,317.11",ALDERTON HOUSE,CARE ESTABLISHMENT,LD - East Locality,LD - East Cambs - Special Needs,Residential Care
Cambridgeshire County Council,09-Aug-19,51301087420,"-1,317.11",ALDERTON HOUSE,CARE ESTABLISHMENT,LD - East Locality,LD - East Cambs - Special Needs,Residential Care
Cambridgeshire County Council,09-Aug-19,51301079190,"-1,317.11",ALDERTON HOUSE,CARE ESTABLISHMENT,LD - East Locality,LD - East Cambs - Special Needs,Residential Care
Cambridgeshire County Council,09-Aug-19,51301079257,"-1,317.11",ALDERTON HOUSE,CARE ESTABLISHMENT,LD - East Locality,LD - East Cambs - Special Needs,Residential Care
Cambridgeshire County Council,09-Aug-19,51301087452,"-1,317.11",ALDERTON HOUSE,CARE ESTABLISHMENT,LD - East Locality,LD - East Cambs - Special Needs,Residential Care
Cambridgeshire County Council,09-Aug-19,51301079215,"-1,317.11",ALDERTON HOUSE,CARE ESTABLISHMENT,LD - East Locality,LD - East Cambs - Special Needs,Residential Care
Cambridgeshire County Council,09-Aug-19,51301079185,"-1,317.11",ALDERTON HOUSE,CARE ESTABLISHMENT,LD - East Locality,LD - East Cambs - Special Needs,Residential Care
Cambridgeshire County Council,09-Aug-19,51301087483,"-1,317.11",ALDERTON HOUSE,CARE ESTABLISHMENT,LD - East Locality,LD - East Cambs - Special Needs,Residential Care
Cambridgeshire County Council,09-Aug-19,51301087440,"-1,317.11",ALDERTON HOUSE,CARE ESTABLISHMENT,LD - East Locality,LD - East Cambs - Special Needs,Residential Care
Cambridgeshire County Council,09-Aug-19,51301079250,"-1,317.11",ALDERTON HOUSE,CARE ESTABLISHMENT,LD - East Locality,LD - East Cambs - Special Needs,Residential Care
Cambridgeshire County Council,09-Aug-19,51301079242,"-1,317.11",ALDERTON HOUSE,CARE ESTABLISHMENT,LD - East Locality,LD - East Cambs - Special Needs,Residential Care
Cambridgeshire County Council,09-Aug-19,51301068572,"-1,317.11",ALDERTON HOUSE,CARE ESTABLISHMENT,LD - East Locality,LD - East Cambs - Special Needs,Residential Care
Cambridgeshire County Council,09-Aug-19,51301068692,"-1,317.11",ALDERTON HOUSE,CARE ESTABLISHMENT,LD - East Locality,LD - East Cambs - Special Needs,Residential Care
Cambridgeshire County Council,09-Aug-19,51301079177,"-1,317.11",ALDERTON HOUSE,CARE ESTABLISHMENT,LD - East Locality,LD - East Cambs - Special Needs,Residential Care
Cambridgeshire County Council,09-Aug-19,51301079151,"-1,317.11",ALDERTON HOUSE,CARE ESTABLISHMENT,LD - East Locality,LD - East Cambs - Special Needs,Residential Care
Cambridgeshire County Council,09-Aug-19,51301079184,"-1,317.11",ALDERTON HOUSE,CARE ESTABLISHMENT,LD - East Locality,LD - East Cambs - Special Needs,Residential Care
Cambridgeshire County Council,09-Aug-19,51301068593,"-1,317.11",ALDERTON HOUSE,CARE ESTABLISHMENT,LD - East Locality,LD - East Cambs - Special Needs,Residential Care
Cambridgeshire County Council,09-Aug-19,51301068658,"-1,317.11",ALDERTON HOUSE,CARE ESTABLISHMENT,LD - East Locality,LD - East Cambs - Special Needs,Residential Care
Cambridgeshire County Council,09-Aug-19,51301087511,"-1,317.11",ALDERTON HOUSE,CARE ESTABLISHMENT,LD - East Locality,LD - East Cambs - Special Needs,Residential Care
Cambridgeshire County Council,09-Aug-19,51301068667,"-1,317.11",ALDERTON HOUSE,CARE ESTABLISHMENT,LD - East Locality,LD - East Cambs - Special Needs,Residential Care
Cambridgeshire County Council,09-Aug-19,51301068540,"-1,317.11",ALDERTON HOUSE,CARE ESTABLISHMENT,LD - East Locality,LD - East Cambs - Special Needs,Residential Care
Cambridgeshire County Council,16-Aug-19,51301103469,"-1,317.11",ALDERTON HOUSE,CARE ESTABLISHMENT,LD - East Locality,LD - East Cambs - Care,Residential Care
Cambridgeshire County Council,16-Aug-19,51301103397,"-1,317.11",ALDERTON HOUSE,CARE ESTABLISHMENT,LD - East Locality,LD - East Cambs - Care,Residential Care
Cambridgeshire County Council,16-Aug-19,51301103455,"-1,317.11",ALDERTON HOUSE,CARE ESTABLISHMENT,LD - East Locality,LD - East Cambs - Care,Residential Care
Cambridgeshire County Council,16-Aug-19,51301103421,"-1,317.11",ALDERTON HOUSE,CARE ESTABLISHMENT,LD - East Locality,LD - East Cambs - Care,Residential Care
Cambridgeshire County Council,16-Aug-19,51301103354,"-1,317.11",ALDERTON HOUSE,CARE ESTABLISHMENT,LD - East Locality,LD - East Cambs - Care,Residential Care
Cambridgeshire County Council,16-Aug-19,51301103407,"-1,317.11",ALDERTON HOUSE,CARE ESTABLISHMENT,LD - East Locality,LD - East Cambs - Care,Residential Care
Cambridgeshire County Council,16-Aug-19,51301103446,"-1,317.11",ALDERTON HOUSE,CARE ESTABLISHMENT,LD - East Locality,LD - East Cambs - Care,Residential Care
Cambridgeshire County Council,16-Aug-19,51301103451,"-1,317.11",ALDERTON HOUSE,CARE ESTABLISHMENT,LD - East Locality,LD - East Cambs - Care,Residential Care
Cambridgeshire County Council,16-Aug-19,51301103344,"-1,317.11",ALDERTON HOUSE,CARE ESTABLISHMENT,LD - East Locality,LD - East Cambs - Care,Residential Care
Cambridgeshire County Council,16-Aug-19,51301103458,"-1,317.11",ALDERTON HOUSE,CARE ESTABLISHMENT,LD - East Locality,LD - East Cambs - Care,Residential Care
Cambridgeshire County Council,16-Aug-19,51301103338,"-1,317.11",ALDERTON HOUSE,CARE ESTABLISHMENT,LD - East Locality,LD - East Cambs - Care,Residential Care
Cambridgeshire County Council,16-Aug-19,51301103373,"-1,317.11",ALDERTON HOUSE,CARE ESTABLISHMENT,LD - East Locality,LD - East Cambs - Care,Residential Care
Cambridgeshire County Council,16-Aug-19,51301103433,"-1,317.11",ALDERTON HOUSE,CARE ESTABLISHMENT,LD - East Locality,LD - East Cambs - Care,Residential Care
Cambridgeshire County Council,16-Aug-19,51301103333,"-1,317.11",ALDERTON HOUSE,CARE ESTABLISHMENT,LD - East Locality,LD - East Cambs - Care,Residential Care
Cambridgeshire County Council,16-Aug-19,51301103336,"-1,317.11",ALDERTON HOUSE,CARE ESTABLISHMENT,LD - East Locality,LD - East Cambs - Care,Residential Care
Cambridgeshire County Council,16-Aug-19,51301103349,"-1,317.11",ALDERTON HOUSE,CARE ESTABLISHMENT,LD - East Locality,LD - East Cambs - Care,Residential Care
Cambridgeshire County Council,16-Aug-19,51301103343,"-1,317.11",ALDERTON HOUSE,CARE ESTABLISHMENT,LD - East Locality,LD - East Cambs - Care,Residential Care
Cambridgeshire County Council,16-Aug-19,51301103419,"-1,317.11",ALDERTON HOUSE,CARE ESTABLISHMENT,LD - East Locality,LD - East Cambs - Care,Residential Care
Cambridgeshire County Council,16-Aug-19,51301103439,"-1,317.11",ALDERTON HOUSE,CARE ESTABLISHMENT,LD - East Locality,LD - East Cambs - Care,Residential Care
Cambridgeshire County Council,16-Aug-19,51301103348,"-1,317.11",ALDERTON HOUSE,CARE ESTABLISHMENT,LD - East Locality,LD - East Cambs - Care,Residential Care
Cambridgeshire County Council,16-Aug-19,51301103436,"-1,317.11",ALDERTON HOUSE,CARE ESTABLISHMENT,LD - East Locality,LD - East Cambs - Care,Residential Care
Cambridgeshire County Council,16-Aug-19,51301103452,"-1,317.11",ALDERTON HOUSE,CARE ESTABLISHMENT,LD - East Locality,LD - East Cambs - Care,Residential Care
Cambridgeshire County Council,16-Aug-19,51301103415,"-1,317.11",ALDERTON HOUSE,CARE ESTABLISHMENT,LD - East Locality,LD - East Cambs - Care,Residential Care
Cambridgeshire County Council,16-Aug-19,51301103340,"-1,317.11",ALDERTON HOUSE,CARE ESTABLISHMENT,LD - East Locality,LD - East Cambs - Care,Residential Care
Cambridgeshire County Council,16-Aug-19,51301103341,"-1,317.11",ALDERTON HOUSE,CARE ESTABLISHMENT,LD - East Locality,LD - East Cambs - Special Needs,Residential Care
Cambridgeshire County Council,16-Aug-19,51301103460,"-1,317.11",ALDERTON HOUSE,CARE ESTABLISHMENT,LD - East Locality,LD - East Cambs - Special Needs,Residential Care
Cambridgeshire County Council,16-Aug-19,51301103332,"-1,317.11",ALDERTON HOUSE,CARE ESTABLISHMENT,LD - East Locality,LD - East Cambs - Special Needs,Residential Care
Cambridgeshire County Council,16-Aug-19,51301103374,"-1,317.11",ALDERTON HOUSE,CARE ESTABLISHMENT,LD - East Locality,LD - East Cambs - Special Needs,Residential Care
Cambridgeshire County Council,16-Aug-19,51301103342,"-1,317.11",ALDERTON HOUSE,CARE ESTABLISHMENT,LD - East Locality,LD - East Cambs - Special Needs,Residential Care
Cambridgeshire County Council,16-Aug-19,51301103480,"-1,317.11",ALDERTON HOUSE,CARE ESTABLISHMENT,LD - East Locality,LD - East Cambs - Special Needs,Residential Care
Cambridgeshire County Council,16-Aug-19,51301103468,"-1,317.11",ALDERTON HOUSE,CARE ESTABLISHMENT,LD - East Locality,LD - East Cambs - Special Needs,Residential Care
Cambridgeshire County Council,16-Aug-19,51301103431,"-1,317.11",ALDERTON HOUSE,CARE ESTABLISHMENT,LD - East Locality,LD - East Cambs - Special Needs,Residential Care
Cambridgeshire County Council,16-Aug-19,51301103387,"-1,317.11",ALDERTON HOUSE,CARE ESTABLISHMENT,LD - East Locality,LD - East Cambs - Special Needs,Residential Care
Cambridgeshire County Council,16-Aug-19,51301103440,"-1,317.11",ALDERTON HOUSE,CARE ESTABLISHMENT,LD - East Locality,LD - East Cambs - Special Needs,Residential Care
Cambridgeshire County Council,16-Aug-19,51301103337,"-1,317.11",ALDERTON HOUSE,CARE ESTABLISHMENT,LD - East Locality,LD - East Cambs - Special Needs,Residential Care
Cambridgeshire County Council,16-Aug-19,51301103402,"-1,317.11",ALDERTON HOUSE,CARE ESTABLISHMENT,LD - East Locality,LD - East Cambs - Special Needs,Residential Care
Cambridgeshire County Council,16-Aug-19,51301103422,"-1,317.11",ALDERTON HOUSE,CARE ESTABLISHMENT,LD - East Locality,LD - East Cambs - Special Needs,Residential Care
Cambridgeshire County Council,16-Aug-19,51301103418,"-1,317.11",ALDERTON HOUSE,CARE ESTABLISHMENT,LD - East Locality,LD - East Cambs - Special Needs,Residential Care
Cambridgeshire County Council,16-Aug-19,51301103425,"-1,317.11",ALDERTON HOUSE,CARE ESTABLISHMENT,LD - East Locality,LD - East Cambs - Special Needs,Residential Care
Cambridgeshire County Council,16-Aug-19,51301103477,"-1,317.11",ALDERTON HOUSE,CARE ESTABLISHMENT,LD - East Locality,LD - East Cambs - Special Needs,Residential Care
Cambridgeshire County Council,16-Aug-19,51301103314,"-1,317.11",ALDERTON HOUSE,CARE ESTABLISHMENT,LD - East Locality,LD - East Cambs - Special Needs,Residential Care
Cambridgeshire County Council,16-Aug-19,51301103331,"-1,317.11",ALDERTON HOUSE,CARE ESTABLISHMENT,LD - East Locality,LD - East Cambs - Special Needs,Residential Care
Cambridgeshire County Council,16-Aug-19,51301103351,"-1,317.11",ALDERTON HOUSE,CARE ESTABLISHMENT,LD - East Locality,LD - East Cambs - Special Needs,Residential Care
Cambridgeshire County Council,16-Aug-19,51301103413,"-1,317.11",ALDERTON HOUSE,CARE ESTABLISHMENT,LD - East Locality,LD - East Cambs - Special Needs,Residential Care
Cambridgeshire County Council,16-Aug-19,51301103459,"-1,317.11",ALDERTON HOUSE,CARE ESTABLISHMENT,LD - East Locality,LD - East Cambs - Special Needs,Residential Care
Cambridgeshire County Council,16-Aug-19,51301103365,"-1,317.11",ALDERTON HOUSE,CARE ESTABLISHMENT,LD - East Locality,LD - East Cambs - Special Needs,Residential Care
Cambridgeshire County Council,16-Aug-19,51301103438,"-1,317.11",ALDERTON HOUSE,CARE ESTABLISHMENT,LD - East Locality,LD - East Cambs - Special Needs,Residential Care
Cambridgeshire County Council,16-Aug-19,51301103412,"-1,317.11",ALDERTON HOUSE,CARE ESTABLISHMENT,LD - East Locality,LD - East Cambs - Special Needs,Residential Care
Cambridgeshire County Council,16-Aug-19,51301103361,"-1,317.11",ALDERTON HOUSE,CARE ESTABLISHMENT,LD - East Locality,LD - East Cambs - Special Needs,Residential Care
Cambridgeshire County Council,16-Aug-19,51301103393,"-1,317.11",ALDERTON HOUSE,CARE ESTABLISHMENT,LD - East Locality,LD - East Cambs - Special Needs,Residential Care
Cambridgeshire County Council,16-Aug-19,51301103430,"-1,317.11",ALDERTON HOUSE,CARE ESTABLISHMENT,LD - East Locality,LD - East Cambs - Special Needs,Residential Care
Cambridgeshire County Council,16-Aug-19,51301103327,"-1,317.11",ALDERTON HOUSE,CARE ESTABLISHMENT,LD - East Locality,LD - East Cambs - Special Needs,Residential Care
Cambridgeshire County Council,16-Aug-19,51301103316,"-1,317.11",ALDERTON HOUSE,CARE ESTABLISHMENT,LD - East Locality,LD - East Cambs - Special Needs,Residential Care
Cambridgeshire County Council,09-Aug-19,51300820059,"-1,290.00",THE MANOR CHESHIRE HOME,CARE ESTABLISHMENT,Physical Disablity,Countywide PD Service - Care,Residential Care
Cambridgeshire County Council,09-Aug-19,51300820058,"-1,290.00",THE MANOR CHESHIRE HOME,CARE ESTABLISHMENT,Physical Disablity,Countywide PD Service - Care,Residential Care
Cambridgeshire County Council,16-Aug-19,51301117755,"-1,272.30",VOYAGE,CARE ESTABLISHMENT,Autism and Adult Support,Autism and Adult Support - Care,Residential Care
Cambridgeshire County Council,16-Aug-19,51301117755,"-1,272.30",VOYAGE,CARE ESTABLISHMENT,Autism and Adult Support,Autism and Adult Support - Care,Residential Care
Cambridgeshire County Council,16-Aug-19,51301117755,"-1,272.30",VOYAGE,CARE ESTABLISHMENT,Autism and Adult Support,Autism and Adult Support - Care,Residential Care
Cambridgeshire County Council,16-Aug-19,51301117755,"-1,272.30",VOYAGE,CARE ESTABLISHMENT,Autism and Adult Support,Autism and Adult Support - Care,Residential Care
Cambridgeshire County Council,16-Aug-19,51301117755,"-1,272.30",VOYAGE,CARE ESTABLISHMENT,Autism and Adult Support,Autism and Adult Support - Care,Residential Care
Cambridgeshire County Council,16-Aug-19,51301117755,"-1,272.30",VOYAGE,CARE ESTABLISHMENT,Autism and Adult Support,Autism and Adult Support - Care,Residential Care
Cambridgeshire County Council,16-Aug-19,51301117755,"-1,272.30",VOYAGE,CARE ESTABLISHMENT,Autism and Adult Support,Autism and Adult Support - Care,Residential Care
Cambridgeshire County Council,16-Aug-19,51301117755,"-1,272.30",VOYAGE,CARE ESTABLISHMENT,Autism and Adult Support,Autism and Adult Support - Care,Residential Care
Cambridgeshire County Council,16-Aug-19,51301117755,"-1,272.30",VOYAGE,CARE ESTABLISHMENT,Autism and Adult Support,Autism and Adult Support - Care,Residential Care
Cambridgeshire County Council,16-Aug-19,51301117755,"-1,272.30",VOYAGE,CARE ESTABLISHMENT,Autism and Adult Support,Autism and Adult Support - Care,Residential Care
Cambridgeshire County Council,16-Aug-19,51301117755,"-1,272.30",VOYAGE,CARE ESTABLISHMENT,Autism and Adult Support,Autism and Adult Support - Care,Residential Care
Cambridgeshire County Council,16-Aug-19,51301117755,"-1,272.30",VOYAGE,CARE ESTABLISHMENT,Autism and Adult Support,Autism and Adult Support - Care,Residential Care
Cambridgeshire County Council,16-Aug-19,51301117755,"-1,272.30",VOYAGE,CARE ESTABLISHMENT,Autism and Adult Support,Autism and Adult Support - Care,Residential Care
Cambridgeshire County Council,16-Aug-19,51301117755,"-1,272.30",VOYAGE,CARE ESTABLISHMENT,Autism and Adult Support,Autism and Adult Support - Care,Residential Care
Cambridgeshire County Council,16-Aug-19,51301117755,"-1,272.30",VOYAGE,CARE ESTABLISHMENT,Autism and Adult Support,Autism and Adult Support - Care,Residential Care
Cambridgeshire County Council,16-Aug-19,51301069368,"-1,266.59",2 CHEVERIL LANE (VOYAGE),CARE ESTABLISHMENT,LD - Hunts Locality,LD - Huntigndonshire  - Care,Supported Living
Cambridgeshire County Council,16-Aug-19,51301104900,"-1,266.59",2 CHEVERIL LANE (VOYAGE),CARE ESTABLISHMENT,LD - Hunts Locality,LD - Huntigndonshire  - Care,Supported Living
Cambridgeshire County Council,16-Aug-19,51301079559,"-1,266.59",2 CHEVERIL LANE (VOYAGE),CARE ESTABLISHMENT,LD - Hunts Locality,LD - Huntigndonshire  - Care,Supported Living
Cambridgeshire County Council,16-Aug-19,51301087809,"-1,266.59",2 CHEVERIL LANE (VOYAGE),CARE ESTABLISHMENT,LD - Hunts Locality,LD - Huntigndonshire  - Care,Supported Living
Cambridgeshire County Council,16-Aug-19,51301069379,"-1,266.59",2 CHEVERIL LANE (VOYAGE),CARE ESTABLISHMENT,LD - Hunts Locality,LD - Huntigndonshire  - Care,Supported Living
Cambridgeshire County Council,16-Aug-19,51301104891,"-1,266.59",2 CHEVERIL LANE (VOYAGE),CARE ESTABLISHMENT,LD - Hunts Locality,LD - Huntigndonshire  - Care,Supported Living
Cambridgeshire County Council,16-Aug-19,51301087815,"-1,266.59",2 CHEVERIL LANE (VOYAGE),CARE ESTABLISHMENT,LD - Hunts Locality,LD - Huntigndonshire  - Care,Supported Living
Cambridgeshire County Council,16-Aug-19,51301069373,"-1,266.59",2 CHEVERIL LANE (VOYAGE),CARE ESTABLISHMENT,LD - Hunts Locality,LD - Huntigndonshire  - Care,Supported Living
Cambridgeshire County Council,16-Aug-19,51301104905,"-1,266.59",2 CHEVERIL LANE (VOYAGE),CARE ESTABLISHMENT,LD - Hunts Locality,LD - Huntigndonshire  - Care,Supported Living
Cambridgeshire County Council,16-Aug-19,51301069375,"-1,266.59",2 CHEVERIL LANE (VOYAGE),CARE ESTABLISHMENT,LD - Hunts Locality,LD - Huntigndonshire  - Care,Supported Living
Cambridgeshire County Council,16-Aug-19,51301069358,"-1,266.59",2 CHEVERIL LANE (VOYAGE),CARE ESTABLISHMENT,LD - Hunts Locality,LD - Huntigndonshire  - Care,Supported Living
Cambridgeshire County Council,16-Aug-19,51301087805,"-1,266.59",2 CHEVERIL LANE (VOYAGE),CARE ESTABLISHMENT,LD - Hunts Locality,LD - Huntigndonshire  - Care,Supported Living
Cambridgeshire County Council,16-Aug-19,51301079552,"-1,266.59",2 CHEVERIL LANE (VOYAGE),CARE ESTABLISHMENT,LD - Hunts Locality,LD - Huntigndonshire  - Care,Supported Living
Cambridgeshire County Council,16-Aug-19,51301079550,"-1,266.59",2 CHEVERIL LANE (VOYAGE),CARE ESTABLISHMENT,LD - Hunts Locality,LD - Huntigndonshire  - Care,Supported Living
Cambridgeshire County Council,16-Aug-19,51301079551,"-1,266.59",2 CHEVERIL LANE (VOYAGE),CARE ESTABLISHMENT,LD - Hunts Locality,LD - Huntigndonshire  - Care,Supported Living
Cambridgeshire County Council,16-Aug-19,51301079561,"-1,266.59",2 CHEVERIL LANE (VOYAGE),CARE ESTABLISHMENT,LD - Hunts Locality,LD - Huntigndonshire  - Care,Supported Living
Cambridgeshire County Council,16-Aug-19,51301079562,"-1,266.59",2 CHEVERIL LANE (VOYAGE),CARE ESTABLISHMENT,LD - Hunts Locality,LD - Huntigndonshire  - Care,Supported Living
Cambridgeshire County Council,16-Aug-19,51301087807,"-1,266.59",2 CHEVERIL LANE (VOYAGE),CARE ESTABLISHMENT,LD - Hunts Locality,LD - Huntigndonshire  - Care,Supported Living
Cambridgeshire County Council,16-Aug-19,51301087816,"-1,266.59",2 CHEVERIL LANE (VOYAGE),CARE ESTABLISHMENT,LD - Hunts Locality,LD - Huntigndonshire  - Care,Supported Living
Cambridgeshire County Council,16-Aug-19,51301087821,"-1,266.59",2 CHEVERIL LANE (VOYAGE),CARE ESTABLISHMENT,LD - Hunts Locality,LD - Huntigndonshire  - Care,Supported Living
Cambridgeshire County Council,16-Aug-19,51301069361,"-1,266.59",2 CHEVERIL LANE (VOYAGE),CARE ESTABLISHMENT,LD - Hunts Locality,LD - Huntigndonshire  - Special Needs,Supported Living
Cambridgeshire County Council,16-Aug-19,51301104901,"-1,266.59",2 CHEVERIL LANE (VOYAGE),CARE ESTABLISHMENT,LD - Hunts Locality,LD - Huntigndonshire  - Special Needs,Supported Living
Cambridgeshire County Council,16-Aug-19,51301069380,"-1,266.59",2 CHEVERIL LANE (VOYAGE),CARE ESTABLISHMENT,LD - Hunts Locality,LD - Huntigndonshire  - Special Needs,Supported Living
Cambridgeshire County Council,16-Aug-19,51301079553,"-1,266.59",2 CHEVERIL LANE (VOYAGE),CARE ESTABLISHMENT,LD - Hunts Locality,LD - Huntigndonshire  - Special Needs,Supported Living
Cambridgeshire County Council,16-Aug-19,51301104896,"-1,266.59",2 CHEVERIL LANE (VOYAGE),CARE ESTABLISHMENT,LD - Hunts Locality,LD - Huntigndonshire  - Special Needs,Supported Living
Cambridgeshire County Council,16-Aug-19,51301079566,"-1,266.59",2 CHEVERIL LANE (VOYAGE),CARE ESTABLISHMENT,LD - Hunts Locality,LD - Huntigndonshire  - Special Needs,Supported Living
Cambridgeshire County Council,16-Aug-19,51301069359,"-1,266.59",2 CHEVERIL LANE (VOYAGE),CARE ESTABLISHMENT,LD - Hunts Locality,LD - Huntigndonshire  - Special Needs,Supported Living
Cambridgeshire County Council,16-Aug-19,51301104908,"-1,266.59",2 CHEVERIL LANE (VOYAGE),CARE ESTABLISHMENT,LD - Hunts Locality,LD - Huntigndonshire  - Special Needs,Supported Living
Cambridgeshire County Council,16-Aug-19,51301079548,"-1,266.59",2 CHEVERIL LANE (VOYAGE),CARE ESTABLISHMENT,LD - Hunts Locality,LD - Huntigndonshire  - Special Needs,Supported Living
Cambridgeshire County Council,16-Aug-19,51301087810,"-1,266.59",2 CHEVERIL LANE (VOYAGE),CARE ESTABLISHMENT,LD - Hunts Locality,LD - Huntigndonshire  - Special Needs,Supported Living
Cambridgeshire County Council,16-Aug-19,51301069374,"-1,266.59",2 CHEVERIL LANE (VOYAGE),CARE ESTABLISHMENT,LD - Hunts Locality,LD - Huntigndonshire  - Special Needs,Supported Living
Cambridgeshire County Council,16-Aug-19,51301087808,"-1,266.59",2 CHEVERIL LANE (VOYAGE),CARE ESTABLISHMENT,LD - Hunts Locality,LD - Huntigndonshire  - Special Needs,Supported Living
Cambridgeshire County Council,16-Aug-19,51301104889,"-1,266.59",2 CHEVERIL LANE (VOYAGE),CARE ESTABLISHMENT,LD - Hunts Locality,LD - Huntigndonshire  - Special Needs,Supported Living
Cambridgeshire County Council,16-Aug-19,51301087812,"-1,266.59",2 CHEVERIL LANE (VOYAGE),CARE ESTABLISHMENT,LD - Hunts Locality,LD - Huntigndonshire  - Special Needs,Supported Living
Cambridgeshire County Council,16-Aug-19,51301104902,"-1,266.59",2 CHEVERIL LANE (VOYAGE),CARE ESTABLISHMENT,LD - Hunts Locality,LD - Huntigndonshire  - Special Needs,Supported Living
Cambridgeshire County Council,16-Aug-19,51301104890,"-1,266.59",2 CHEVERIL LANE (VOYAGE),CARE ESTABLISHMENT,LD - Hunts Locality,LD - Huntigndonshire  - Special Needs,Supported Living
Cambridgeshire County Council,07-Aug-19,51301084157,"-1,258.80",24/7 Support UK Limited,CARE ESTABLISHMENT,LAC Placements,Placements - supported accommodation,Agency Placements - In County
Cambridgeshire County Council,16-Aug-19,51301089791,"-1,248.47",THERA EAST ANGLIA,CARE ESTABLISHMENT,LD - South Locality,LD - South Cambs - Special Needs,Supported Living
Cambridgeshire County Council,09-Aug-19,51300828507,"-1,209.98",THE MANOR CHESHIRE HOME,CARE ESTABLISHMENT,LD - Hunts Locality,LD - Huntigndonshire  - Special Needs,Residential Care
Cambridgeshire County Council,09-Aug-19,51300828512,"-1,209.98",THE MANOR CHESHIRE HOME,CARE ESTABLISHMENT,LD - Hunts Locality,LD - Huntigndonshire  - Special Needs,Residential Care
Cambridgeshire County Council,09-Aug-19,51300828511,"-1,209.98",THE MANOR CHESHIRE HOME,CARE ESTABLISHMENT,LD - Hunts Locality,LD - Huntigndonshire  - Special Needs,Residential Care
Cambridgeshire County Council,09-Aug-19,51300828504,"-1,209.98",THE MANOR CHESHIRE HOME,CARE ESTABLISHMENT,LD - Hunts Locality,LD - Huntigndonshire  - Special Needs,Residential Care
Cambridgeshire County Council,09-Aug-19,51300828506,"-1,209.98",THE MANOR CHESHIRE HOME,CARE ESTABLISHMENT,LD - Hunts Locality,LD - Huntigndonshire  - Special Needs,Residential Care
Cambridgeshire County Council,09-Aug-19,51300828505,"-1,209.98",THE MANOR CHESHIRE HOME,CARE ESTABLISHMENT,LD - Hunts Locality,LD - Huntigndonshire  - Special Needs,Residential Care
Cambridgeshire County Council,09-Aug-19,51300828509,"-1,209.98",THE MANOR CHESHIRE HOME,CARE ESTABLISHMENT,LD - Hunts Locality,LD - Huntigndonshire  - Special Needs,Residential Care
Cambridgeshire County Council,09-Aug-19,51300828510,"-1,209.98",THE MANOR CHESHIRE HOME,CARE ESTABLISHMENT,LD - Hunts Locality,LD - Huntigndonshire  - Special Needs,Residential Care
Cambridgeshire County Council,09-Aug-19,51300817851,"-1,200.00",LONGUEVILLE COURT,CARE ESTABLISHMENT,Physical Disablity,Countywide PD Service - Care,Nursing Care
Cambridgeshire County Council,09-Aug-19,51300817858,"-1,200.00",LONGUEVILLE COURT,CARE ESTABLISHMENT,Physical Disablity,Countywide PD Service - Care,Nursing Care
Cambridgeshire County Council,09-Aug-19,51300817852,"-1,200.00",LONGUEVILLE COURT,CARE ESTABLISHMENT,Physical Disablity,Countywide PD Service - Care,Nursing Care
Cambridgeshire County Council,09-Aug-19,51300817855,"-1,200.00",LONGUEVILLE COURT,CARE ESTABLISHMENT,Physical Disablity,Countywide PD Service - Care,Nursing Care
Cambridgeshire County Council,09-Aug-19,51300817854,"-1,200.00",LONGUEVILLE COURT,CARE ESTABLISHMENT,Physical Disablity,Countywide PD Service - Care,Nursing Care
Cambridgeshire County Council,09-Aug-19,51300817857,"-1,200.00",LONGUEVILLE COURT,CARE ESTABLISHMENT,Physical Disablity,Countywide PD Service - Care,Nursing Care
Cambridgeshire County Council,09-Aug-19,51300823314,"-1,200.00",LONGUEVILLE COURT,CARE ESTABLISHMENT,LD - Fenland Locality,LD - Fenland  - Special Needs,Residential Care
Cambridgeshire County Council,09-Aug-19,51300823316,"-1,200.00",LONGUEVILLE COURT,CARE ESTABLISHMENT,LD - Fenland Locality,LD - Fenland  - Special Needs,Residential Care
Cambridgeshire County Council,09-Aug-19,51300823310,"-1,200.00",LONGUEVILLE COURT,CARE ESTABLISHMENT,LD - Fenland Locality,LD - Fenland  - Special Needs,Residential Care
Cambridgeshire County Council,09-Aug-19,51300823313,"-1,200.00",LONGUEVILLE COURT,CARE ESTABLISHMENT,LD - Fenland Locality,LD - Fenland  - Special Needs,Residential Care
Cambridgeshire County Council,09-Aug-19,51300823312,"-1,200.00",LONGUEVILLE COURT,CARE ESTABLISHMENT,LD - Fenland Locality,LD - Fenland  - Special Needs,Residential Care
Cambridgeshire County Council,09-Aug-19,51300823311,"-1,200.00",LONGUEVILLE COURT,CARE ESTABLISHMENT,LD - Fenland Locality,LD - Fenland  - Special Needs,Residential Care
Cambridgeshire County Council,01-Aug-19,51301083608,"-1,198.04",CARETECH COMMUNITY SERVICES,CARE ESTABLISHMENT,LD - South Locality,LD - South Cambs - Care,Residential Care
Cambridgeshire County Council,01-Aug-19,51301083615,"-1,198.04",CARETECH COMMUNITY SERVICES,CARE ESTABLISHMENT,LD - South Locality,LD - South Cambs - Care,Residential Care
Cambridgeshire County Council,01-Aug-19,51301083609,"-1,198.04",CARETECH COMMUNITY SERVICES,CARE ESTABLISHMENT,LD - South Locality,LD - South Cambs - Care,Residential Care
Cambridgeshire County Council,01-Aug-19,51301083625,"-1,198.04",CARETECH COMMUNITY SERVICES,CARE ESTABLISHMENT,LD - South Locality,LD - South Cambs - Care,Residential Care
Cambridgeshire County Council,01-Aug-19,51301083592,"-1,198.04",CARETECH COMMUNITY SERVICES,CARE ESTABLISHMENT,LD - South Locality,LD - South Cambs - Care,Residential Care
Cambridgeshire County Council,01-Aug-19,51301083617,"-1,198.04",CARETECH COMMUNITY SERVICES,CARE ESTABLISHMENT,LD - South Locality,LD - South Cambs - Care,Residential Care
Cambridgeshire County Council,01-Aug-19,51301076594,"-1,198.04",CARETECH COMMUNITY SERVICES,CARE ESTABLISHMENT,LD - South Locality,LD - South Cambs - Care,Residential Care
Cambridgeshire County Council,01-Aug-19,51301076567,"-1,198.04",CARETECH COMMUNITY SERVICES,CARE ESTABLISHMENT,LD - South Locality,LD - South Cambs - Care,Residential Care
Cambridgeshire County Council,01-Aug-19,51301083619,"-1,198.04",CARETECH COMMUNITY SERVICES,CARE ESTABLISHMENT,LD - South Locality,LD - South Cambs - Care,Residential Care
Cambridgeshire County Council,01-Aug-19,51301083630,"-1,198.04",CARETECH COMMUNITY SERVICES,CARE ESTABLISHMENT,LD - South Locality,LD - South Cambs - Care,Residential Care
Cambridgeshire County Council,01-Aug-19,51301083597,"-1,198.04",CARETECH COMMUNITY SERVICES,CARE ESTABLISHMENT,LD - South Locality,LD - South Cambs - Care,Residential Care
Cambridgeshire County Council,01-Aug-19,51301076592,"-1,198.04",CARETECH COMMUNITY SERVICES,CARE ESTABLISHMENT,LD - South Locality,LD - South Cambs - Care,Residential Care
Cambridgeshire County Council,01-Aug-19,51301083602,"-1,198.04",CARETECH COMMUNITY SERVICES,CARE ESTABLISHMENT,LD - South Locality,LD - South Cambs - Care,Residential Care
Cambridgeshire County Council,01-Aug-19,51301076595,"-1,198.04",CARETECH COMMUNITY SERVICES,CARE ESTABLISHMENT,LD - South Locality,LD - South Cambs - Care,Residential Care
Cambridgeshire County Council,01-Aug-19,51301076598,"-1,198.04",CARETECH COMMUNITY SERVICES,CARE ESTABLISHMENT,LD - South Locality,LD - South Cambs - Care,Residential Care
Cambridgeshire County Council,01-Aug-19,51301076562,"-1,198.04",CARETECH COMMUNITY SERVICES,CARE ESTABLISHMENT,LD - South Locality,LD - South Cambs - Care,Residential Care
Cambridgeshire County Council,01-Aug-19,51301076607,"-1,198.04",CARETECH COMMUNITY SERVICES,CARE ESTABLISHMENT,LD - South Locality,LD - South Cambs - Care,Residential Care
Cambridgeshire County Council,01-Aug-19,51301083606,"-1,198.04",CARETECH COMMUNITY SERVICES,CARE ESTABLISHMENT,LD - South Locality,LD - South Cambs - Care,Residential Care
Cambridgeshire County Council,01-Aug-19,51301083604,"-1,198.04",CARETECH COMMUNITY SERVICES,CARE ESTABLISHMENT,LD - South Locality,LD - South Cambs - Care,Residential Care
Cambridgeshire County Council,01-Aug-19,51301076602,"-1,198.04",CARETECH COMMUNITY SERVICES,CARE ESTABLISHMENT,LD - South Locality,LD - South Cambs - Care,Residential Care
Cambridgeshire County Council,01-Aug-19,51301076561,"-1,198.04",CARETECH COMMUNITY SERVICES,CARE ESTABLISHMENT,LD - South Locality,LD - South Cambs - Care,Residential Care
Cambridgeshire County Council,01-Aug-19,51301076610,"-1,198.04",CARETECH COMMUNITY SERVICES,CARE ESTABLISHMENT,LD - South Locality,LD - South Cambs - Care,Residential Care
Cambridgeshire County Council,01-Aug-19,51301076596,"-1,198.04",CARETECH COMMUNITY SERVICES,CARE ESTABLISHMENT,LD - South Locality,LD - South Cambs - Care,Residential Care
Cambridgeshire County Council,01-Aug-19,51301083629,"-1,198.04",CARETECH COMMUNITY SERVICES,CARE ESTABLISHMENT,LD - South Locality,LD - South Cambs - Care,Residential Care
Cambridgeshire County Council,01-Aug-19,51301083620,"-1,198.04",CARETECH COMMUNITY SERVICES,CARE ESTABLISHMENT,LD - South Locality,LD - South Cambs - Care,Residential Care
Cambridgeshire County Council,01-Aug-19,51301076588,"-1,198.04",CARETECH COMMUNITY SERVICES,CARE ESTABLISHMENT,LD - South Locality,LD - South Cambs - Care,Residential Care
Cambridgeshire County Council,01-Aug-19,51301076591,"-1,198.04",CARETECH COMMUNITY SERVICES,CARE ESTABLISHMENT,LD - South Locality,LD - South Cambs - Care,Residential Care
Cambridgeshire County Council,01-Aug-19,51301076579,"-1,198.04",CARETECH COMMUNITY SERVICES,CARE ESTABLISHMENT,LD - South Locality,LD - South Cambs - Special Needs,Residential Care
Cambridgeshire County Council,01-Aug-19,51301083612,"-1,198.04",CARETECH COMMUNITY SERVICES,CARE ESTABLISHMENT,LD - South Locality,LD - South Cambs - Special Needs,Residential Care
Cambridgeshire County Council,01-Aug-19,51301083586,"-1,198.04",CARETECH COMMUNITY SERVICES,CARE ESTABLISHMENT,LD - South Locality,LD - South Cambs - Special Needs,Residential Care
Cambridgeshire County Council,01-Aug-19,51301083596,"-1,198.04",CARETECH COMMUNITY SERVICES,CARE ESTABLISHMENT,LD - South Locality,LD - South Cambs - Special Needs,Residential Care
Cambridgeshire County Council,01-Aug-19,51301076560,"-1,198.04",CARETECH COMMUNITY SERVICES,CARE ESTABLISHMENT,LD - South Locality,LD - South Cambs - Special Needs,Residential Care
Cambridgeshire County Council,01-Aug-19,51301076569,"-1,198.04",CARETECH COMMUNITY SERVICES,CARE ESTABLISHMENT,LD - South Locality,LD - South Cambs - Special Needs,Residential Care
Cambridgeshire County Council,01-Aug-19,51301076571,"-1,198.04",CARETECH COMMUNITY SERVICES,CARE ESTABLISHMENT,LD - South Locality,LD - South Cambs - Special Needs,Residential Care
Cambridgeshire County Council,01-Aug-19,51301076578,"-1,198.04",CARETECH COMMUNITY SERVICES,CARE ESTABLISHMENT,LD - South Locality,LD - South Cambs - Special Needs,Residential Care
Cambridgeshire County Council,01-Aug-19,51301076600,"-1,198.04",CARETECH COMMUNITY SERVICES,CARE ESTABLISHMENT,LD - South Locality,LD - South Cambs - Special Needs,Residential Care
Cambridgeshire County Council,01-Aug-19,51301076583,"-1,198.04",CARETECH COMMUNITY SERVICES,CARE ESTABLISHMENT,LD - South Locality,LD - South Cambs - Special Needs,Residential Care
Cambridgeshire County Council,01-Aug-19,51301083628,"-1,198.04",CARETECH COMMUNITY SERVICES,CARE ESTABLISHMENT,LD - South Locality,LD - South Cambs - Special Needs,Residential Care
Cambridgeshire County Council,01-Aug-19,51301076585,"-1,198.04",CARETECH COMMUNITY SERVICES,CARE ESTABLISHMENT,LD - South Locality,LD - South Cambs - Special Needs,Residential Care
Cambridgeshire County Council,01-Aug-19,51301083626,"-1,198.04",CARETECH COMMUNITY SERVICES,CARE ESTABLISHMENT,LD - South Locality,LD - South Cambs - Special Needs,Residential Care
Cambridgeshire County Council,01-Aug-19,51301076611,"-1,198.04",CARETECH COMMUNITY SERVICES,CARE ESTABLISHMENT,LD - South Locality,LD - South Cambs - Special Needs,Residential Care
Cambridgeshire County Council,01-Aug-19,51301083610,"-1,198.04",CARETECH COMMUNITY SERVICES,CARE ESTABLISHMENT,LD - South Locality,LD - South Cambs - Special Needs,Residential Care
Cambridgeshire County Council,01-Aug-19,51301083601,"-1,198.04",CARETECH COMMUNITY SERVICES,CARE ESTABLISHMENT,LD - South Locality,LD - South Cambs - Special Needs,Residential Care
Cambridgeshire County Council,01-Aug-19,51301076557,"-1,198.04",CARETECH COMMUNITY SERVICES,CARE ESTABLISHMENT,LD - South Locality,LD - South Cambs - Special Needs,Residential Care
Cambridgeshire County Council,01-Aug-19,51301083583,"-1,198.04",CARETECH COMMUNITY SERVICES,CARE ESTABLISHMENT,LD - South Locality,LD - South Cambs - Special Needs,Residential Care
Cambridgeshire County Council,01-Aug-19,51301076589,"-1,198.04",CARETECH COMMUNITY SERVICES,CARE ESTABLISHMENT,LD - South Locality,LD - South Cambs - Special Needs,Residential Care
Cambridgeshire County Council,01-Aug-19,51301076570,"-1,198.04",CARETECH COMMUNITY SERVICES,CARE ESTABLISHMENT,LD - South Locality,LD - South Cambs - Special Needs,Residential Care
Cambridgeshire County Council,01-Aug-19,51301083605,"-1,198.04",CARETECH COMMUNITY SERVICES,CARE ESTABLISHMENT,LD - South Locality,LD - South Cambs - Special Needs,Residential Care
Cambridgeshire County Council,01-Aug-19,51301083578,"-1,198.04",CARETECH COMMUNITY SERVICES,CARE ESTABLISHMENT,LD - South Locality,LD - South Cambs - Special Needs,Residential Care
Cambridgeshire County Council,01-Aug-19,51301083595,"-1,198.04",CARETECH COMMUNITY SERVICES,CARE ESTABLISHMENT,LD - South Locality,LD - South Cambs - Special Needs,Residential Care
Cambridgeshire County Council,01-Aug-19,51301083594,"-1,198.04",CARETECH COMMUNITY SERVICES,CARE ESTABLISHMENT,LD - South Locality,LD - South Cambs - Special Needs,Residential Care
Cambridgeshire County Council,01-Aug-19,51301083621,"-1,198.04",CARETECH COMMUNITY SERVICES,CARE ESTABLISHMENT,LD - South Locality,LD - South Cambs - Special Needs,Residential Care
Cambridgeshire County Council,01-Aug-19,51301076608,"-1,198.04",CARETECH COMMUNITY SERVICES,CARE ESTABLISHMENT,LD - South Locality,LD - South Cambs - Special Needs,Residential Care
Cambridgeshire County Council,01-Aug-19,51301076559,"-1,198.04",CARETECH COMMUNITY SERVICES,CARE ESTABLISHMENT,LD - South Locality,LD - South Cambs - Special Needs,Residential Care
Cambridgeshire County Council,09-Aug-19,51301091052,"-1,198.04",CARETECH COMMUNITY SERVICES,CARE ESTABLISHMENT,LD - South Locality,LD - South Cambs - Care,Residential Care
Cambridgeshire County Council,09-Aug-19,51301091048,"-1,198.04",CARETECH COMMUNITY SERVICES,CARE ESTABLISHMENT,LD - South Locality,LD - South Cambs - Care,Residential Care
Cambridgeshire County Council,09-Aug-19,51301091033,"-1,198.04",CARETECH COMMUNITY SERVICES,CARE ESTABLISHMENT,LD - South Locality,LD - South Cambs - Care,Residential Care
Cambridgeshire County Council,09-Aug-19,51301091069,"-1,198.04",CARETECH COMMUNITY SERVICES,CARE ESTABLISHMENT,LD - South Locality,LD - South Cambs - Care,Residential Care
Cambridgeshire County Council,09-Aug-19,51301091057,"-1,198.04",CARETECH COMMUNITY SERVICES,CARE ESTABLISHMENT,LD - South Locality,LD - South Cambs - Care,Residential Care
Cambridgeshire County Council,09-Aug-19,51301091058,"-1,198.04",CARETECH COMMUNITY SERVICES,CARE ESTABLISHMENT,LD - South Locality,LD - South Cambs - Care,Residential Care
Cambridgeshire County Council,09-Aug-19,51301091064,"-1,198.04",CARETECH COMMUNITY SERVICES,CARE ESTABLISHMENT,LD - South Locality,LD - South Cambs - Care,Residential Care
Cambridgeshire County Council,09-Aug-19,51301091046,"-1,198.04",CARETECH COMMUNITY SERVICES,CARE ESTABLISHMENT,LD - South Locality,LD - South Cambs - Care,Residential Care
Cambridgeshire County Council,09-Aug-19,51301091050,"-1,198.04",CARETECH COMMUNITY SERVICES,CARE ESTABLISHMENT,LD - South Locality,LD - South Cambs - Care,Residential Care
Cambridgeshire County Council,09-Aug-19,51301091024,"-1,198.04",CARETECH COMMUNITY SERVICES,CARE ESTABLISHMENT,LD - South Locality,LD - South Cambs - Care,Residential Care
Cambridgeshire County Council,09-Aug-19,51301091063,"-1,198.04",CARETECH COMMUNITY SERVICES,CARE ESTABLISHMENT,LD - South Locality,LD - South Cambs - Special Needs,Residential Care
Cambridgeshire County Council,09-Aug-19,51301091070,"-1,198.04",CARETECH COMMUNITY SERVICES,CARE ESTABLISHMENT,LD - South Locality,LD - South Cambs - Special Needs,Residential Care
Cambridgeshire County Council,09-Aug-19,51301091044,"-1,198.04",CARETECH COMMUNITY SERVICES,CARE ESTABLISHMENT,LD - South Locality,LD - South Cambs - Special Needs,Residential Care
Cambridgeshire County Council,09-Aug-19,51301091053,"-1,198.04",CARETECH COMMUNITY SERVICES,CARE ESTABLISHMENT,LD - South Locality,LD - South Cambs - Special Needs,Residential Care
Cambridgeshire County Council,09-Aug-19,51301091076,"-1,198.04",CARETECH COMMUNITY SERVICES,CARE ESTABLISHMENT,LD - South Locality,LD - South Cambs - Special Needs,Residential Care
Cambridgeshire County Council,09-Aug-19,51301091055,"-1,198.04",CARETECH COMMUNITY SERVICES,CARE ESTABLISHMENT,LD - South Locality,LD - South Cambs - Special Needs,Residential Care
Cambridgeshire County Council,09-Aug-19,51301091066,"-1,198.04",CARETECH COMMUNITY SERVICES,CARE ESTABLISHMENT,LD - South Locality,LD - South Cambs - Special Needs,Residential Care
Cambridgeshire County Council,09-Aug-19,51301091077,"-1,198.04",CARETECH COMMUNITY SERVICES,CARE ESTABLISHMENT,LD - South Locality,LD - South Cambs - Special Needs,Residential Care
Cambridgeshire County Council,09-Aug-19,51301091051,"-1,198.04",CARETECH COMMUNITY SERVICES,CARE ESTABLISHMENT,LD - South Locality,LD - South Cambs - Special Needs,Residential Care
Cambridgeshire County Council,09-Aug-19,51301091031,"-1,198.04",CARETECH COMMUNITY SERVICES,CARE ESTABLISHMENT,LD - South Locality,LD - South Cambs - Special Needs,Residential Care
Cambridgeshire County Council,09-Aug-19,51301091032,"-1,198.04",CARETECH COMMUNITY SERVICES,CARE ESTABLISHMENT,LD - South Locality,LD - South Cambs - Special Needs,Residential Care
Cambridgeshire County Council,09-Aug-19,51301091043,"-1,198.04",CARETECH COMMUNITY SERVICES,CARE ESTABLISHMENT,LD - South Locality,LD - South Cambs - Special Needs,Residential Care
Cambridgeshire County Council,09-Aug-19,51301091073,"-1,198.04",CARETECH COMMUNITY SERVICES,CARE ESTABLISHMENT,LD - South Locality,LD - South Cambs - Special Needs,Residential Care
Cambridgeshire County Council,09-Aug-19,51301091034,"-1,198.04",CARETECH COMMUNITY SERVICES,CARE ESTABLISHMENT,LD - South Locality,LD - South Cambs - Special Needs,Residential Care
Cambridgeshire County Council,09-Aug-19,51301091039,"-1,198.04",CARETECH COMMUNITY SERVICES,CARE ESTABLISHMENT,LD - South Locality,LD - South Cambs - Special Needs,Residential Care
Cambridgeshire County Council,09-Aug-19,51301091038,"-1,198.04",CARETECH COMMUNITY SERVICES,CARE ESTABLISHMENT,LD - South Locality,LD - South Cambs - Special Needs,Residential Care
Cambridgeshire County Council,09-Aug-19,51301091071,"-1,198.04",CARETECH COMMUNITY SERVICES,CARE ESTABLISHMENT,LD - South Locality,LD - South Cambs - Special Needs,Residential Care
Cambridgeshire County Council,16-Aug-19,51301096811,"-1,198.04",CARETECH COMMUNITY SERVICES,CARE ESTABLISHMENT,LD - South Locality,LD - South Cambs - Care,Residential Care
Cambridgeshire County Council,16-Aug-19,51301096791,"-1,198.04",CARETECH COMMUNITY SERVICES,CARE ESTABLISHMENT,LD - South Locality,LD - South Cambs - Care,Residential Care
Cambridgeshire County Council,16-Aug-19,51301096798,"-1,198.04",CARETECH COMMUNITY SERVICES,CARE ESTABLISHMENT,LD - South Locality,LD - South Cambs - Care,Residential Care
Cambridgeshire County Council,16-Aug-19,51301096813,"-1,198.04",CARETECH COMMUNITY SERVICES,CARE ESTABLISHMENT,LD - South Locality,LD - South Cambs - Care,Residential Care
Cambridgeshire County Council,16-Aug-19,51301096782,"-1,198.04",CARETECH COMMUNITY SERVICES,CARE ESTABLISHMENT,LD - South Locality,LD - South Cambs - Care,Residential Care
Cambridgeshire County Council,16-Aug-19,51301096783,"-1,198.04",CARETECH COMMUNITY SERVICES,CARE ESTABLISHMENT,LD - South Locality,LD - South Cambs - Care,Residential Care
Cambridgeshire County Council,16-Aug-19,51301096829,"-1,198.04",CARETECH COMMUNITY SERVICES,CARE ESTABLISHMENT,LD - South Locality,LD - South Cambs - Care,Residential Care
Cambridgeshire County Council,16-Aug-19,51301096793,"-1,198.04",CARETECH COMMUNITY SERVICES,CARE ESTABLISHMENT,LD - South Locality,LD - South Cambs - Care,Residential Care
Cambridgeshire County Council,16-Aug-19,51301096816,"-1,198.04",CARETECH COMMUNITY SERVICES,CARE ESTABLISHMENT,LD - South Locality,LD - South Cambs - Care,Residential Care
Cambridgeshire County Council,16-Aug-19,51301096805,"-1,198.04",CARETECH COMMUNITY SERVICES,CARE ESTABLISHMENT,LD - South Locality,LD - South Cambs - Care,Residential Care
Cambridgeshire County Council,16-Aug-19,51301096830,"-1,198.04",CARETECH COMMUNITY SERVICES,CARE ESTABLISHMENT,LD - South Locality,LD - South Cambs - Care,Residential Care
Cambridgeshire County Council,16-Aug-19,51301096823,"-1,198.04",CARETECH COMMUNITY SERVICES,CARE ESTABLISHMENT,LD - South Locality,LD - South Cambs - Care,Residential Care
Cambridgeshire County Council,16-Aug-19,51301096772,"-1,198.04",CARETECH COMMUNITY SERVICES,CARE ESTABLISHMENT,LD - South Locality,LD - South Cambs - Care,Residential Care
Cambridgeshire County Council,16-Aug-19,51301096802,"-1,198.04",CARETECH COMMUNITY SERVICES,CARE ESTABLISHMENT,LD - South Locality,LD - South Cambs - Care,Residential Care
Cambridgeshire County Council,16-Aug-19,51301096819,"-1,198.04",CARETECH COMMUNITY SERVICES,CARE ESTABLISHMENT,LD - South Locality,LD - South Cambs - Care,Residential Care
Cambridgeshire County Council,16-Aug-19,51301096773,"-1,198.04",CARETECH COMMUNITY SERVICES,CARE ESTABLISHMENT,LD - South Locality,LD - South Cambs - Care,Residential Care
Cambridgeshire County Council,16-Aug-19,51301096790,"-1,198.04",CARETECH COMMUNITY SERVICES,CARE ESTABLISHMENT,LD - South Locality,LD - South Cambs - Care,Residential Care
Cambridgeshire County Council,16-Aug-19,51301096814,"-1,198.04",CARETECH COMMUNITY SERVICES,CARE ESTABLISHMENT,LD - South Locality,LD - South Cambs - Care,Residential Care
Cambridgeshire County Council,16-Aug-19,51301096785,"-1,198.04",CARETECH COMMUNITY SERVICES,CARE ESTABLISHMENT,LD - South Locality,LD - South Cambs - Special Needs,Residential Care
Cambridgeshire County Council,16-Aug-19,51301096781,"-1,198.04",CARETECH COMMUNITY SERVICES,CARE ESTABLISHMENT,LD - South Locality,LD - South Cambs - Special Needs,Residential Care
Cambridgeshire County Council,16-Aug-19,51301096818,"-1,198.04",CARETECH COMMUNITY SERVICES,CARE ESTABLISHMENT,LD - South Locality,LD - South Cambs - Special Needs,Residential Care
Cambridgeshire County Council,16-Aug-19,51301096821,"-1,198.04",CARETECH COMMUNITY SERVICES,CARE ESTABLISHMENT,LD - South Locality,LD - South Cambs - Special Needs,Residential Care
Cambridgeshire County Council,16-Aug-19,51301096827,"-1,198.04",CARETECH COMMUNITY SERVICES,CARE ESTABLISHMENT,LD - South Locality,LD - South Cambs - Special Needs,Residential Care
Cambridgeshire County Council,16-Aug-19,51301096774,"-1,198.04",CARETECH COMMUNITY SERVICES,CARE ESTABLISHMENT,LD - South Locality,LD - South Cambs - Special Needs,Residential Care
Cambridgeshire County Council,16-Aug-19,51301096810,"-1,198.04",CARETECH COMMUNITY SERVICES,CARE ESTABLISHMENT,LD - South Locality,LD - South Cambs - Special Needs,Residential Care
Cambridgeshire County Council,16-Aug-19,51301096820,"-1,198.04",CARETECH COMMUNITY SERVICES,CARE ESTABLISHMENT,LD - South Locality,LD - South Cambs - Special Needs,Residential Care
Cambridgeshire County Council,16-Aug-19,51301096776,"-1,198.04",CARETECH COMMUNITY SERVICES,CARE ESTABLISHMENT,LD - South Locality,LD - South Cambs - Special Needs,Residential Care
Cambridgeshire County Council,22-Aug-19,51301121285,"-1,174.39",73 HIGH ROAD,CARE ESTABLISHMENT,LD - City Locality,LD - City - Special Needs,Supported Living
Cambridgeshire County Council,09-Aug-19,51301091903,"-1,133.37",VOYAGE,CARE ESTABLISHMENT,LD - South Locality,LD - South Cambs - Care,Residential Client Care Contributions
Cambridgeshire County Council,09-Aug-19,51301091903,"-1,133.37",VOYAGE,CARE ESTABLISHMENT,LD - South Locality,LD - South Cambs - Care,Residential Client Care Contributions
Cambridgeshire County Council,09-Aug-19,51301091903,"-1,133.37",VOYAGE,CARE ESTABLISHMENT,LD - South Locality,LD - South Cambs - Care,Residential Client Care Contributions
Cambridgeshire County Council,09-Aug-19,51301091903,"-1,133.37",VOYAGE,CARE ESTABLISHMENT,LD - South Locality,LD - South Cambs - Care,Residential Client Care Contributions
Cambridgeshire County Council,09-Aug-19,51301091903,"-1,133.37",VOYAGE,CARE ESTABLISHMENT,LD - South Locality,LD - South Cambs - Care,Residential Client Care Contributions
Cambridgeshire County Council,09-Aug-19,51301091903,"-1,133.37",VOYAGE,CARE ESTABLISHMENT,LD - South Locality,LD - South Cambs - Care,Residential Client Care Contributions
Cambridgeshire County Council,09-Aug-19,51301091903,"-1,133.37",VOYAGE,CARE ESTABLISHMENT,LD - South Locality,LD - South Cambs - Care,Residential Client Care Contributions
Cambridgeshire County Council,09-Aug-19,51301091903,"-1,133.37",VOYAGE,CARE ESTABLISHMENT,LD - South Locality,LD - South Cambs - Care,Residential Client Care Contributions
Cambridgeshire County Council,09-Aug-19,51301091903,"-1,133.37",VOYAGE,CARE ESTABLISHMENT,LD - South Locality,LD - South Cambs - Care,Residential Client Care Contributions
Cambridgeshire County Council,09-Aug-19,51301091903,"-1,133.37",VOYAGE,CARE ESTABLISHMENT,LD - South Locality,LD - South Cambs - Care,Residential Client Care Contributions
Cambridgeshire County Council,09-Aug-19,51301091903,"-1,133.37",VOYAGE,CARE ESTABLISHMENT,LD - South Locality,LD - South Cambs - Care,Residential Client Care Contributions
Cambridgeshire County Council,09-Aug-19,51301091903,"-1,133.37",VOYAGE,CARE ESTABLISHMENT,LD - South Locality,LD - South Cambs - Care,Residential Client Care Contributions
Cambridgeshire County Council,09-Aug-19,51301091903,"-1,133.37",VOYAGE,CARE ESTABLISHMENT,LD - South Locality,LD - South Cambs - Care,Residential Client Care Contributions
Cambridgeshire County Council,09-Aug-19,51301091903,"-1,133.37",VOYAGE,CARE ESTABLISHMENT,LD - South Locality,LD - South Cambs - Care,Residential Client Care Contributions
Cambridgeshire County Council,09-Aug-19,51301091903,"-1,133.37",VOYAGE,CARE ESTABLISHMENT,LD - South Locality,LD - South Cambs - Care,Residential Client Care Contributions
Cambridgeshire County Council,09-Aug-19,51301091903,"-1,133.37",VOYAGE,CARE ESTABLISHMENT,LD - South Locality,LD - South Cambs - Care,Residential Client Care Contributions
Cambridgeshire County Council,09-Aug-19,51301091903,"-1,133.37",VOYAGE,CARE ESTABLISHMENT,LD - South Locality,LD - South Cambs - Care,Residential Client Care Contributions
Cambridgeshire County Council,09-Aug-19,51301091903,"-1,133.37",VOYAGE,CARE ESTABLISHMENT,LD - South Locality,LD - South Cambs - Care,Residential Client Care Contributions
Cambridgeshire County Council,09-Aug-19,51301091903,"-1,133.37",VOYAGE,CARE ESTABLISHMENT,LD - South Locality,LD - South Cambs - Care,Residential Client Care Contributions
Cambridgeshire County Council,09-Aug-19,51301091903,"-1,133.37",VOYAGE,CARE ESTABLISHMENT,LD - South Locality,LD - South Cambs - Care,Residential Client Care Contributions
Cambridgeshire County Council,09-Aug-19,51301091903,"-1,133.37",VOYAGE,CARE ESTABLISHMENT,LD - South Locality,LD - South Cambs - Care,Residential Client Care Contributions
Cambridgeshire County Council,09-Aug-19,51301091903,"-1,133.37",VOYAGE,CARE ESTABLISHMENT,LD - South Locality,LD - South Cambs - Care,Residential Client Care Contributions
Cambridgeshire County Council,09-Aug-19,51301091903,"-1,133.37",VOYAGE,CARE ESTABLISHMENT,LD - South Locality,LD - South Cambs - Care,Residential Client Care Contributions
Cambridgeshire County Council,09-Aug-19,51301068675,"-1,128.95",ALDERTON HOUSE,CARE ESTABLISHMENT,LD - East Locality,LD - East Cambs - Care,Residential Care
Cambridgeshire County Council,09-Aug-19,51301079207,"-1,128.95",ALDERTON HOUSE,CARE ESTABLISHMENT,LD - East Locality,LD - East Cambs - Care,Residential Care
Cambridgeshire County Council,09-Aug-19,51301087428,"-1,128.95",ALDERTON HOUSE,CARE ESTABLISHMENT,LD - East Locality,LD - East Cambs - Special Needs,Residential Care
Cambridgeshire County Council,16-Aug-19,51301103434,"-1,128.95",ALDERTON HOUSE,CARE ESTABLISHMENT,LD - East Locality,LD - East Cambs - Care,Residential Care
Cambridgeshire County Council,09-Aug-19,51300820906,"-1,106.23",THE MANOR CHESHIRE HOME,CARE ESTABLISHMENT,Physical Disablity,Countywide PD Service - Care,Residential Care
Cambridgeshire County Council,09-Aug-19,51300820898,"-1,106.23",THE MANOR CHESHIRE HOME,CARE ESTABLISHMENT,Physical Disablity,Countywide PD Service - Care,Residential Care
Cambridgeshire County Council,09-Aug-19,51300820901,"-1,106.23",THE MANOR CHESHIRE HOME,CARE ESTABLISHMENT,Physical Disablity,Countywide PD Service - Care,Residential Care
Cambridgeshire County Council,09-Aug-19,51300820903,"-1,106.23",THE MANOR CHESHIRE HOME,CARE ESTABLISHMENT,Physical Disablity,Countywide PD Service - Care,Residential Care
Cambridgeshire County Council,09-Aug-19,51300820899,"-1,106.23",THE MANOR CHESHIRE HOME,CARE ESTABLISHMENT,Physical Disablity,Countywide PD Service - Care,Residential Care
Cambridgeshire County Council,09-Aug-19,51300820900,"-1,106.23",THE MANOR CHESHIRE HOME,CARE ESTABLISHMENT,Physical Disablity,Countywide PD Service - Care,Residential Care
Cambridgeshire County Council,09-Aug-19,51300820904,"-1,106.23",THE MANOR CHESHIRE HOME,CARE ESTABLISHMENT,Physical Disablity,Countywide PD Service - Care,Residential Care
Cambridgeshire County Council,09-Aug-19,51300820905,"-1,106.23",THE MANOR CHESHIRE HOME,CARE ESTABLISHMENT,Physical Disablity,Countywide PD Service - Care,Residential Care
Cambridgeshire County Council,09-Aug-19,51300827105,"-1,100.00",MAKING SPACE,CARE ESTABLISHMENT,OP - East Cambs Locality,East Cambs - O P Team,Residential Care
Cambridgeshire County Council,09-Aug-19,51300827134,"-1,100.00",MAKING SPACE,CARE ESTABLISHMENT,OP - East Cambs Locality,East Cambs - O P Team,Residential Care
Cambridgeshire County Council,09-Aug-19,51300827200,"-1,100.00",MAKING SPACE,CARE ESTABLISHMENT,OP - East Cambs Locality,East Cambs - O P Team,Residential Care
Cambridgeshire County Council,09-Aug-19,51300827117,"-1,100.00",MAKING SPACE,CARE ESTABLISHMENT,OP - East Cambs Locality,East Cambs - O P Team,Residential Care
Cambridgeshire County Council,09-Aug-19,51300827190,"-1,100.00",MAKING SPACE,CARE ESTABLISHMENT,OP - East Cambs Locality,East Cambs - O P Team,Residential Care
Cambridgeshire County Council,09-Aug-19,51300827135,"-1,100.00",MAKING SPACE,CARE ESTABLISHMENT,OP - East Cambs Locality,East Cambs - O P Team,Residential Care
Cambridgeshire County Council,09-Aug-19,51300827166,"-1,100.00",MAKING SPACE,CARE ESTABLISHMENT,OP - East Cambs Locality,East Cambs - O P Team,Residential Care
Cambridgeshire County Council,09-Aug-19,51300827079,"-1,100.00",MAKING SPACE,CARE ESTABLISHMENT,OP - East Cambs Locality,East Cambs - O P Team,Residential Care
Cambridgeshire County Council,09-Aug-19,51300813134,"-1,095.83",THE MANOR CHESHIRE HOME,CARE ESTABLISHMENT,OP - Hunts Locality,Hunts O P  Team,Residential Care
Cambridgeshire County Council,09-Aug-19,51300813151,"-1,095.83",THE MANOR CHESHIRE HOME,CARE ESTABLISHMENT,OP - Hunts Locality,Hunts O P  Team,Residential Care
Cambridgeshire County Council,09-Aug-19,51300813128,"-1,095.83",THE MANOR CHESHIRE HOME,CARE ESTABLISHMENT,OP - Hunts Locality,Hunts O P  Team,Residential Care
Cambridgeshire County Council,09-Aug-19,51300813129,"-1,095.83",THE MANOR CHESHIRE HOME,CARE ESTABLISHMENT,OP - Hunts Locality,Hunts O P  Team,Residential Care
Cambridgeshire County Council,09-Aug-19,51300813127,"-1,095.83",THE MANOR CHESHIRE HOME,CARE ESTABLISHMENT,OP - Hunts Locality,Hunts O P  Team,Residential Care
Cambridgeshire County Council,09-Aug-19,51300813145,"-1,095.83",THE MANOR CHESHIRE HOME,CARE ESTABLISHMENT,OP - Hunts Locality,Hunts O P  Team,Residential Care
Cambridgeshire County Council,09-Aug-19,51300813142,"-1,095.83",THE MANOR CHESHIRE HOME,CARE ESTABLISHMENT,OP - Hunts Locality,Hunts O P  Team,Residential Care
Cambridgeshire County Council,09-Aug-19,51300813131,"-1,095.83",THE MANOR CHESHIRE HOME,CARE ESTABLISHMENT,OP - Hunts Locality,Hunts O P  Team,Residential Care
Cambridgeshire County Council,09-Aug-19,51300823423,"-1,094.07",MAKING SPACE,CARE ESTABLISHMENT,OPMH - City & South,Older People Mental Health City & South,Residential Care
Cambridgeshire County Council,09-Aug-19,51300823417,"-1,094.07",MAKING SPACE,CARE ESTABLISHMENT,OPMH - City & South,Older People Mental Health City & South,Residential Care
Cambridgeshire County Council,09-Aug-19,51300823421,"-1,094.07",MAKING SPACE,CARE ESTABLISHMENT,OPMH - City & South,Older People Mental Health City & South,Residential Care
Cambridgeshire County Council,09-Aug-19,51300823425,"-1,094.07",MAKING SPACE,CARE ESTABLISHMENT,OPMH - City & South,Older People Mental Health City & South,Residential Care
Cambridgeshire County Council,09-Aug-19,51300823416,"-1,094.07",MAKING SPACE,CARE ESTABLISHMENT,OPMH - City & South,Older People Mental Health City & South,Residential Care
Cambridgeshire County Council,09-Aug-19,51300823418,"-1,094.07",MAKING SPACE,CARE ESTABLISHMENT,OPMH - City & South,Older People Mental Health City & South,Residential Care
Cambridgeshire County Council,09-Aug-19,51300823424,"-1,094.07",MAKING SPACE,CARE ESTABLISHMENT,OPMH - City & South,Older People Mental Health City & South,Residential Care
Cambridgeshire County Council,09-Aug-19,51300823419,"-1,094.07",MAKING SPACE,CARE ESTABLISHMENT,OPMH - City & South,Older People Mental Health City & South,Residential Care
Cambridgeshire County Council,16-Aug-19,51301095623,"-1,091.65",GUYATT HOUSE CARE LTD,CARE ESTABLISHMENT,LD - East Locality,LD - East Cambs - Care,Domiciliary Care
Cambridgeshire County Council,16-Aug-19,51301083306,"-1,091.65",GUYATT HOUSE CARE LTD,CARE ESTABLISHMENT,LD - East Locality,LD - East Cambs - Special Needs,Domiciliary Care
Cambridgeshire County Council,16-Aug-19,51301090789,"-1,091.65",GUYATT HOUSE CARE LTD,CARE ESTABLISHMENT,LD - East Locality,LD - East Cambs - Special Needs,Domiciliary Care
Cambridgeshire County Council,16-Aug-19,51301117755,"-1,090.54",VOYAGE,CARE ESTABLISHMENT,Autism and Adult Support,Autism and Adult Support - Care,Residential Care
Cambridgeshire County Council,28-Aug-19,51301120798,"-1,050.65",WCL UK LTD,TRADE SUPPLIER,ICT Service,ICT Service Sales,Materials for resale
Cambridgeshire County Council,09-Aug-19,51300821371,"-1,045.20",THE MANOR CHESHIRE HOME,CARE ESTABLISHMENT,OP - Hunts Locality,Hunts O P  Team,Residential Care
Cambridgeshire County Council,09-Aug-19,51300821374,"-1,045.20",THE MANOR CHESHIRE HOME,CARE ESTABLISHMENT,OP - Hunts Locality,Hunts O P  Team,Residential Care
Cambridgeshire County Council,09-Aug-19,51300821367,"-1,045.20",THE MANOR CHESHIRE HOME,CARE ESTABLISHMENT,OP - Hunts Locality,Hunts O P  Team,Residential Care
Cambridgeshire County Council,09-Aug-19,51300821362,"-1,045.20",THE MANOR CHESHIRE HOME,CARE ESTABLISHMENT,OP - Hunts Locality,Hunts O P  Team,Residential Care
Cambridgeshire County Council,09-Aug-19,51300821368,"-1,045.20",THE MANOR CHESHIRE HOME,CARE ESTABLISHMENT,OP - Hunts Locality,Hunts O P  Team,Residential Care
Cambridgeshire County Council,09-Aug-19,51300821373,"-1,045.20",THE MANOR CHESHIRE HOME,CARE ESTABLISHMENT,OP - Hunts Locality,Hunts O P  Team,Residential Care
Cambridgeshire County Council,09-Aug-19,51300821372,"-1,045.20",THE MANOR CHESHIRE HOME,CARE ESTABLISHMENT,OP - Hunts Locality,Hunts O P  Team,Residential Care
Cambridgeshire County Council,09-Aug-19,51300821375,"-1,045.20",THE MANOR CHESHIRE HOME,CARE ESTABLISHMENT,OP - Hunts Locality,Hunts O P  Team,Residential Care
Cambridgeshire County Council,16-Aug-19,51301089773,"-1,040.39",THERA EAST ANGLIA,CARE ESTABLISHMENT,LD - South Locality,LD - South Cambs - Special Needs,Supported Living
Cambridgeshire County Council,09-Aug-19,51300828513,"-1,037.13",THE MANOR CHESHIRE HOME,CARE ESTABLISHMENT,LD - Hunts Locality,LD - Huntigndonshire  - Special Needs,Residential Care
Cambridgeshire County Council,09-Aug-19,51300834170,"-1,035.35",THE MANOR CHESHIRE HOME,CARE ESTABLISHMENT,LD - City Locality,LD - City - Special Needs,Residential Care
Cambridgeshire County Council,09-Aug-19,51300834167,"-1,035.35",THE MANOR CHESHIRE HOME,CARE ESTABLISHMENT,LD - City Locality,LD - City - Special Needs,Residential Care
Cambridgeshire County Council,09-Aug-19,51300834171,"-1,035.35",THE MANOR CHESHIRE HOME,CARE ESTABLISHMENT,LD - City Locality,LD - City - Special Needs,Residential Care
Cambridgeshire County Council,09-Aug-19,51300834172,"-1,035.35",THE MANOR CHESHIRE HOME,CARE ESTABLISHMENT,LD - City Locality,LD - City - Special Needs,Residential Care
Cambridgeshire County Council,09-Aug-19,51300834174,"-1,035.35",THE MANOR CHESHIRE HOME,CARE ESTABLISHMENT,LD - City Locality,LD - City - Special Needs,Residential Care
Cambridgeshire County Council,09-Aug-19,51300834169,"-1,035.35",THE MANOR CHESHIRE HOME,CARE ESTABLISHMENT,LD - City Locality,LD - City - Special Needs,Residential Care
Cambridgeshire County Council,09-Aug-19,51300817524,"-1,030.71",LINKAGE COMMUNITY TRUST LTD,TRUST (OTHER),LD - Hunts Locality,LD - Huntigndonshire  - Care,Residential Care
Cambridgeshire County Council,09-Aug-19,51300817530,"-1,030.71",LINKAGE COMMUNITY TRUST LTD,TRUST (OTHER),LD - Hunts Locality,LD - Huntigndonshire  - Care,Residential Care
Cambridgeshire County Council,09-Aug-19,51300817526,"-1,030.71",LINKAGE COMMUNITY TRUST LTD,TRUST (OTHER),LD - Hunts Locality,LD - Huntigndonshire  - Care,Residential Care
Cambridgeshire County Council,09-Aug-19,51300817534,"-1,030.71",LINKAGE COMMUNITY TRUST LTD,TRUST (OTHER),LD - Hunts Locality,LD - Huntigndonshire  - Care,Residential Care
Cambridgeshire County Council,09-Aug-19,51300817533,"-1,030.71",LINKAGE COMMUNITY TRUST LTD,TRUST (OTHER),LD - Hunts Locality,LD - Huntigndonshire  - Care,Residential Care
Cambridgeshire County Council,09-Aug-19,51300817532,"-1,030.71",LINKAGE COMMUNITY TRUST LTD,TRUST (OTHER),LD - Hunts Locality,LD - Huntigndonshire  - Care,Residential Care
Cambridgeshire County Council,09-Aug-19,51300817536,"-1,030.71",LINKAGE COMMUNITY TRUST LTD,TRUST (OTHER),LD - Hunts Locality,LD - Huntigndonshire  - Care,Residential Care
Cambridgeshire County Council,09-Aug-19,51300817856,"-1,028.57",LONGUEVILLE COURT,CARE ESTABLISHMENT,Physical Disablity,Countywide PD Service - Care,Nursing Care
Cambridgeshire County Council,09-Aug-19,51300823315,"-1,028.57",LONGUEVILLE COURT,CARE ESTABLISHMENT,LD - Fenland Locality,LD - Fenland  - Special Needs,Residential Care
Cambridgeshire County Council,01-Aug-19,51301083587,"-1,026.89",CARETECH COMMUNITY SERVICES,CARE ESTABLISHMENT,LD - South Locality,LD - South Cambs - Special Needs,Residential Care
Cambridgeshire County Council,01-Aug-19,51301076612,"-1,026.89",CARETECH COMMUNITY SERVICES,CARE ESTABLISHMENT,LD - South Locality,LD - South Cambs - Special Needs,Residential Care
Cambridgeshire County Council,09-Aug-19,51301091023,"-1,026.89",CARETECH COMMUNITY SERVICES,CARE ESTABLISHMENT,LD - South Locality,LD - South Cambs - Care,Residential Care
Cambridgeshire County Council,16-Aug-19,51301096807,"-1,026.89",CARETECH COMMUNITY SERVICES,CARE ESTABLISHMENT,LD - South Locality,LD - South Cambs - Care,Residential Care
Cambridgeshire County Council,09-Aug-19,51301037789,"-1,025.00",THE GABLES (NURSING CARE ONLY),CARE ESTABLISHMENT,Physical Disablity,Countywide PD Service - Care,Nursing Care
Cambridgeshire County Council,09-Aug-19,51301037789,"-1,025.00",THE GABLES (NURSING CARE ONLY),CARE ESTABLISHMENT,Physical Disablity,Countywide PD Service - Care,Nursing Care
Cambridgeshire County Council,09-Aug-19,51301037789,"-1,025.00",THE GABLES (NURSING CARE ONLY),CARE ESTABLISHMENT,Physical Disablity,Countywide PD Service - Care,Nursing Care
Cambridgeshire County Council,09-Aug-19,51301037789,"-1,025.00",THE GABLES (NURSING CARE ONLY),CARE ESTABLISHMENT,Physical Disablity,Countywide PD Service - Care,Nursing Care
Cambridgeshire County Council,09-Aug-19,51301037789,"-1,025.00",THE GABLES (NURSING CARE ONLY),CARE ESTABLISHMENT,Physical Disablity,Countywide PD Service - Care,Nursing Care
Cambridgeshire County Council,09-Aug-19,51301037789,"-1,025.00",THE GABLES (NURSING CARE ONLY),CARE ESTABLISHMENT,Physical Disablity,Countywide PD Service - Care,Nursing Care
Cambridgeshire County Council,09-Aug-19,51301037789,"-1,025.00",THE GABLES (NURSING CARE ONLY),CARE ESTABLISHMENT,Physical Disablity,Countywide PD Service - Care,Nursing Care
Cambridgeshire County Council,09-Aug-19,51301037789,"-1,025.00",THE GABLES (NURSING CARE ONLY),CARE ESTABLISHMENT,Physical Disablity,Countywide PD Service - Care,Nursing Care
Cambridgeshire County Council,09-Aug-19,51301037789,"-1,025.00",THE GABLES (NURSING CARE ONLY),CARE ESTABLISHMENT,Physical Disablity,Countywide PD Service - Care,Nursing Care
Cambridgeshire County Council,09-Aug-19,51301037789,"-1,025.00",THE GABLES (NURSING CARE ONLY),CARE ESTABLISHMENT,Physical Disablity,Countywide PD Service - Care,Nursing Care
Cambridgeshire County Council,20-Aug-19,51301133576,"-1,024.94",EXTREME NETWORKS IRELAND LTD,TRADE SUPPLIER,ICT Service,ICT Service Technical Support,Computer software - purchase
Cambridgeshire County Council,09-Aug-19,51301091763,"-1,000.00",BRAMLEY COURT,CARE ESTABLISHMENT,OP - City & South Locality,Older People - City & South,Nursing Care
Cambridgeshire County Council,09-Aug-19,51301091763,"-1,000.00",BRAMLEY COURT,CARE ESTABLISHMENT,OP - City & South Locality,Older People - City & South,Nursing Care
Cambridgeshire County Council,09-Aug-19,51301091763,"-1,000.00",BRAMLEY COURT,CARE ESTABLISHMENT,OP - City & South Locality,Older People - City & South,Nursing Care
Cambridgeshire County Council,09-Aug-19,51301091763,"-1,000.00",BRAMLEY COURT,CARE ESTABLISHMENT,OP - City & South Locality,Older People - City & South,Nursing Care
Cambridgeshire County Council,09-Aug-19,51301091763,"-1,000.00",BRAMLEY COURT,CARE ESTABLISHMENT,OP - City & South Locality,Older People - City & South,Nursing Care
Cambridgeshire County Council,09-Aug-19,51301091763,"-1,000.00",BRAMLEY COURT,CARE ESTABLISHMENT,OP - City & South Locality,Older People - City & South,Nursing Care
Cambridgeshire County Council,09-Aug-19,51301091763,"-1,000.00",BRAMLEY COURT,CARE ESTABLISHMENT,OP - City & South Locality,Older People - City & South,Nursing Care
Cambridgeshire County Council,09-Aug-19,51301091763,"-1,000.00",BRAMLEY COURT,CARE ESTABLISHMENT,OP - City & South Locality,Older People - City & South,Nursing Care
Cambridgeshire County Council,09-Aug-19,51301091763,"-1,000.00",BRAMLEY COURT,CARE ESTABLISHMENT,OP - City & South Locality,Older People - City & South,Nursing Care
Cambridgeshire County Council,09-Aug-19,51301091763,"-1,000.00",BRAMLEY COURT,CARE ESTABLISHMENT,OP - City & South Locality,Older People - City & South,Nursing Care
Cambridgeshire County Council,09-Aug-19,51301091763,"-1,000.00",BRAMLEY COURT,CARE ESTABLISHMENT,OP - City & South Locality,Older People - City & South,Nursing Care
Cambridgeshire County Council,09-Aug-19,51301091763,"-1,000.00",BRAMLEY COURT,CARE ESTABLISHMENT,OP - City & South Locality,Older People - City & South,Nursing Care
Cambridgeshire County Council,09-Aug-19,51301091763,"-1,000.00",BRAMLEY COURT,CARE ESTABLISHMENT,OP - City & South Locality,Older People - City & South,Nursing Care
Cambridgeshire County Council,20-Aug-19,51301133562,-979.83,EXTREME NETWORKS IRELAND LTD,TRADE SUPPLIER,ICT Service,ICT Service Technical Support,Computer software - purchase
Cambridgeshire County Council,09-Aug-19,51300830105,-961.36,THE MANOR CHESHIRE HOME,CARE ESTABLISHMENT,OP - Hunts Locality,Hunts O P  Team,Residential Care
Cambridgeshire County Council,09-Aug-19,51300830102,-961.36,THE MANOR CHESHIRE HOME,CARE ESTABLISHMENT,OP - Hunts Locality,Hunts O P  Team,Residential Care
Cambridgeshire County Council,09-Aug-19,51300830100,-961.36,THE MANOR CHESHIRE HOME,CARE ESTABLISHMENT,OP - Hunts Locality,Hunts O P  Team,Residential Care
Cambridgeshire County Council,09-Aug-19,51300830099,-961.36,THE MANOR CHESHIRE HOME,CARE ESTABLISHMENT,OP - Hunts Locality,Hunts O P  Team,Residential Care
Cambridgeshire County Council,09-Aug-19,51300830106,-961.36,THE MANOR CHESHIRE HOME,CARE ESTABLISHMENT,OP - Hunts Locality,Hunts O P  Team,Residential Care
Cambridgeshire County Council,09-Aug-19,51300830097,-961.36,THE MANOR CHESHIRE HOME,CARE ESTABLISHMENT,OP - Hunts Locality,Hunts O P  Team,Residential Care
Cambridgeshire County Council,09-Aug-19,51300830101,-961.36,THE MANOR CHESHIRE HOME,CARE ESTABLISHMENT,OP - Hunts Locality,Hunts O P  Team,Residential Care
Cambridgeshire County Council,09-Aug-19,51300830104,-961.36,THE MANOR CHESHIRE HOME,CARE ESTABLISHMENT,OP - Hunts Locality,Hunts O P  Team,Residential Care
Cambridgeshire County Council,09-Aug-19,51300812114,-955.23,THE MANOR CHESHIRE HOME,CARE ESTABLISHMENT,LD - Hunts Locality,LD - Huntigndonshire  - Care,Residential Care
Cambridgeshire County Council,09-Aug-19,51300812127,-955.23,THE MANOR CHESHIRE HOME,CARE ESTABLISHMENT,LD - Hunts Locality,LD - Huntigndonshire  - Care,Residential Care
Cambridgeshire County Council,09-Aug-19,51300812111,-955.23,THE MANOR CHESHIRE HOME,CARE ESTABLISHMENT,LD - Hunts Locality,LD - Huntigndonshire  - Care,Residential Care
Cambridgeshire County Council,09-Aug-19,51300812126,-955.23,THE MANOR CHESHIRE HOME,CARE ESTABLISHMENT,LD - Hunts Locality,LD - Huntigndonshire  - Care,Residential Care
Cambridgeshire County Council,09-Aug-19,51300812112,-955.23,THE MANOR CHESHIRE HOME,CARE ESTABLISHMENT,LD - Hunts Locality,LD - Huntigndonshire  - Care,Residential Care
Cambridgeshire County Council,09-Aug-19,51300812118,-955.23,THE MANOR CHESHIRE HOME,CARE ESTABLISHMENT,LD - Hunts Locality,LD - Huntigndonshire  - Care,Residential Care
Cambridgeshire County Council,09-Aug-19,51300812110,-955.23,THE MANOR CHESHIRE HOME,CARE ESTABLISHMENT,LD - Hunts Locality,LD - Huntigndonshire  - Care,Residential Care
Cambridgeshire County Council,09-Aug-19,51300812125,-955.23,THE MANOR CHESHIRE HOME,CARE ESTABLISHMENT,LD - Hunts Locality,LD - Huntigndonshire  - Care,Residential Care
Cambridgeshire County Council,09-Aug-19,51300825330,-950.00,THE MANOR CHESHIRE HOME,CARE ESTABLISHMENT,Physical Disablity,Countywide PD Service - Care,Residential Care
Cambridgeshire County Council,09-Aug-19,51300825337,-950.00,THE MANOR CHESHIRE HOME,CARE ESTABLISHMENT,Physical Disablity,Countywide PD Service - Care,Residential Care
Cambridgeshire County Council,09-Aug-19,51300825332,-950.00,THE MANOR CHESHIRE HOME,CARE ESTABLISHMENT,Physical Disablity,Countywide PD Service - Care,Residential Care
Cambridgeshire County Council,09-Aug-19,51300825338,-950.00,THE MANOR CHESHIRE HOME,CARE ESTABLISHMENT,Physical Disablity,Countywide PD Service - Care,Residential Care
Cambridgeshire County Council,09-Aug-19,51300825334,-950.00,THE MANOR CHESHIRE HOME,CARE ESTABLISHMENT,Physical Disablity,Countywide PD Service - Care,Residential Care
Cambridgeshire County Council,09-Aug-19,51300825339,-950.00,THE MANOR CHESHIRE HOME,CARE ESTABLISHMENT,Physical Disablity,Countywide PD Service - Care,Residential Care
Cambridgeshire County Council,09-Aug-19,51300825331,-950.00,THE MANOR CHESHIRE HOME,CARE ESTABLISHMENT,Physical Disablity,Countywide PD Service - Care,Residential Care
Cambridgeshire County Council,09-Aug-19,51300825335,-950.00,THE MANOR CHESHIRE HOME,CARE ESTABLISHMENT,Physical Disablity,Countywide PD Service - Care,Residential Care
Cambridgeshire County Council,16-Aug-19,51301049891,-950.00,ASKHAM HALL,CARE ESTABLISHMENT,OP - City & South Locality,Older People - City & South,Nursing Care
Cambridgeshire County Council,16-Aug-19,51301069485,-950.00,ASKHAM HALL,CARE ESTABLISHMENT,OP - City & South Locality,Older People - City & South,Nursing Care
Cambridgeshire County Council,16-Aug-19,51301105116,-950.00,ASKHAM HALL,CARE ESTABLISHMENT,OP - City & South Locality,Older People - City & South,Nursing Care
Cambridgeshire County Council,16-Aug-19,51301049889,-950.00,ASKHAM HALL,CARE ESTABLISHMENT,OP - City & South Locality,Older People - City & South,Nursing Care
Cambridgeshire County Council,16-Aug-19,51301069491,-950.00,ASKHAM HALL,CARE ESTABLISHMENT,OP - City & South Locality,Older People - City & South,Nursing Care
Cambridgeshire County Council,16-Aug-19,51301087883,-950.00,ASKHAM HALL,CARE ESTABLISHMENT,OP - City & South Locality,Older People - City & South,Nursing Care
Cambridgeshire County Council,16-Aug-19,51301105117,-950.00,ASKHAM HALL,CARE ESTABLISHMENT,OP - City & South Locality,Older People - City & South,Nursing Care
Cambridgeshire County Council,16-Aug-19,51301087888,-950.00,ASKHAM HALL,CARE ESTABLISHMENT,OP - City & South Locality,Older People - City & South,Nursing Care
Cambridgeshire County Council,16-Aug-19,51301079601,-950.00,ASKHAM HALL,CARE ESTABLISHMENT,OP - City & South Locality,Older People - City & South,Nursing Care
Cambridgeshire County Council,16-Aug-19,51301105132,-950.00,ASKHAM HALL,CARE ESTABLISHMENT,OP - City & South Locality,Older People - City & South,Nursing Care
Cambridgeshire County Council,16-Aug-19,51301069489,-950.00,ASKHAM HALL,CARE ESTABLISHMENT,OP - City & South Locality,Older People - City & South,Nursing Care
Cambridgeshire County Council,16-Aug-19,51301105120,-950.00,ASKHAM HALL,CARE ESTABLISHMENT,OP - City & South Locality,Older People - City & South,Nursing Care
Cambridgeshire County Council,16-Aug-19,51301049900,-950.00,ASKHAM HALL,CARE ESTABLISHMENT,OP - City & South Locality,Older People - City & South,Nursing Care
Cambridgeshire County Council,16-Aug-19,51301079585,-950.00,ASKHAM HALL,CARE ESTABLISHMENT,OP - City & South Locality,Older People - City & South,Nursing Care
Cambridgeshire County Council,16-Aug-19,51301069498,-950.00,ASKHAM HALL,CARE ESTABLISHMENT,OP - City & South Locality,Older People - City & South,Nursing Care
Cambridgeshire County Council,16-Aug-19,51301105118,-950.00,ASKHAM HALL,CARE ESTABLISHMENT,OP - City & South Locality,Older People - City & South,Nursing Care
Cambridgeshire County Council,16-Aug-19,51301049888,-950.00,ASKHAM HALL,CARE ESTABLISHMENT,OP - City & South Locality,Older People - City & South,Nursing Care
Cambridgeshire County Council,16-Aug-19,51301079591,-950.00,ASKHAM HALL,CARE ESTABLISHMENT,OP - City & South Locality,Older People - City & South,Nursing Care
Cambridgeshire County Council,16-Aug-19,51301079592,-950.00,ASKHAM HALL,CARE ESTABLISHMENT,OP - City & South Locality,Older People - City & South,Nursing Care
Cambridgeshire County Council,16-Aug-19,51301087874,-950.00,ASKHAM HALL,CARE ESTABLISHMENT,OP - City & South Locality,Older People - City & South,Nursing Care
Cambridgeshire County Council,16-Aug-19,51301087877,-950.00,ASKHAM HALL,CARE ESTABLISHMENT,OP - City & South Locality,Older People - City & South,Nursing Care
Cambridgeshire County Council,16-Aug-19,51301049893,-950.00,ASKHAM HALL,CARE ESTABLISHMENT,OP - City & South Locality,Older People - City & South,Nursing Care
Cambridgeshire County Council,16-Aug-19,51301105115,-950.00,ASKHAM HALL,CARE ESTABLISHMENT,OP - Fenland Locality,Older People - Fenland,Nursing Care
Cambridgeshire County Council,16-Aug-19,51301079594,-950.00,ASKHAM HALL,CARE ESTABLISHMENT,OP - Fenland Locality,Older People - Fenland,Nursing Care
Cambridgeshire County Council,16-Aug-19,51301087887,-950.00,ASKHAM HALL,CARE ESTABLISHMENT,OP - Fenland Locality,Older People - Fenland,Nursing Care
Cambridgeshire County Council,16-Aug-19,51301049894,-950.00,ASKHAM HALL,CARE ESTABLISHMENT,OP - Fenland Locality,Older People - Fenland,Nursing Care
Cambridgeshire County Council,16-Aug-19,51301087875,-950.00,ASKHAM HALL,CARE ESTABLISHMENT,OP - Fenland Locality,Older People - Fenland,Nursing Care
Cambridgeshire County Council,16-Aug-19,51301069490,-950.00,ASKHAM HALL,CARE ESTABLISHMENT,OP - Fenland Locality,Older People - Fenland,Nursing Care
Cambridgeshire County Council,16-Aug-19,51301069486,-950.00,ASKHAM HALL,CARE ESTABLISHMENT,OP - Fenland Locality,Older People - Fenland,Nursing Care
Cambridgeshire County Council,16-Aug-19,51301079586,-950.00,ASKHAM HALL,CARE ESTABLISHMENT,OP - Fenland Locality,Older People - Fenland,Nursing Care
Cambridgeshire County Council,30-Aug-19,51301137416,-950.00,ASKHAM HALL,CARE ESTABLISHMENT,OP - City & South Locality,Older People - City & South,Nursing Care
Cambridgeshire County Council,30-Aug-19,51301128059,-950.00,ASKHAM HALL,CARE ESTABLISHMENT,OP - City & South Locality,Older People - City & South,Nursing Care
Cambridgeshire County Council,30-Aug-19,51301128065,-950.00,ASKHAM HALL,CARE ESTABLISHMENT,OP - City & South Locality,Older People - City & South,Nursing Care
Cambridgeshire County Council,30-Aug-19,51301137418,-950.00,ASKHAM HALL,CARE ESTABLISHMENT,OP - City & South Locality,Older People - City & South,Nursing Care
Cambridgeshire County Council,30-Aug-19,51301137420,-950.00,ASKHAM HALL,CARE ESTABLISHMENT,OP - Fenland Locality,Older People - Fenland,Nursing Care
Cambridgeshire County Council,30-Aug-19,51301137424,-950.00,ASKHAM HALL,CARE ESTABLISHMENT,OP - Fenland Locality,Older People - Fenland,Nursing Care
Cambridgeshire County Council,30-Aug-19,51301137415,-950.00,ASKHAM HALL,CARE ESTABLISHMENT,OP - Fenland Locality,Older People - Fenland,Nursing Care
Cambridgeshire County Council,30-Aug-19,51301128064,-950.00,ASKHAM HALL,CARE ESTABLISHMENT,OP - Fenland Locality,Older People - Fenland,Nursing Care
Cambridgeshire County Council,30-Aug-19,51301128061,-950.00,ASKHAM HALL,CARE ESTABLISHMENT,OP - Fenland Locality,Older People - Fenland,Nursing Care
Cambridgeshire County Council,30-Aug-19,51301128066,-950.00,ASKHAM HALL,CARE ESTABLISHMENT,OP - Fenland Locality,Older People - Fenland,Nursing Care
Cambridgeshire County Council,30-Aug-19,51301137417,-950.00,ASKHAM HALL,CARE ESTABLISHMENT,OP - Fenland Locality,Older People - Fenland,Nursing Care
Cambridgeshire County Council,30-Aug-19,51301128060,-950.00,ASKHAM HALL,CARE ESTABLISHMENT,OP - Fenland Locality,Older People - Fenland,Nursing Care
Cambridgeshire County Council,09-Aug-19,51300820902,-948.20,THE MANOR CHESHIRE HOME,CARE ESTABLISHMENT,Physical Disablity,Countywide PD Service - Care,Residential Care
Cambridgeshire County Council,09-Aug-19,51300864794,-944.70,VERA JAMES HOUSE,CARE ESTABLISHMENT,OP - East Cambs Locality,East Cambs - O P Team,Residential Care
Cambridgeshire County Council,09-Aug-19,51300864798,-944.70,VERA JAMES HOUSE,CARE ESTABLISHMENT,OP - East Cambs Locality,East Cambs - O P Team,Residential Care
Cambridgeshire County Council,09-Aug-19,51300815611,-944.70,VERA JAMES HOUSE,CARE ESTABLISHMENT,OP - East Cambs Locality,East Cambs - O P Team,Residential Care
Cambridgeshire County Council,09-Aug-19,51300815620,-944.70,VERA JAMES HOUSE,CARE ESTABLISHMENT,OP - East Cambs Locality,East Cambs - O P Team,Residential Care
Cambridgeshire County Council,09-Aug-19,51300815604,-944.70,VERA JAMES HOUSE,CARE ESTABLISHMENT,OP - East Cambs Locality,East Cambs - O P Team,Residential Care
Cambridgeshire County Council,09-Aug-19,51300815617,-944.70,VERA JAMES HOUSE,CARE ESTABLISHMENT,OP - East Cambs Locality,East Cambs - O P Team,Residential Care
Cambridgeshire County Council,09-Aug-19,51300864815,-944.70,VERA JAMES HOUSE,CARE ESTABLISHMENT,OP - East Cambs Locality,East Cambs - O P Team,Residential Care
Cambridgeshire County Council,09-Aug-19,51300864780,-944.70,VERA JAMES HOUSE,CARE ESTABLISHMENT,OP - East Cambs Locality,East Cambs - O P Team,Residential Care
Cambridgeshire County Council,09-Aug-19,51300827187,-942.86,MAKING SPACE,CARE ESTABLISHMENT,OP - East Cambs Locality,East Cambs - O P Team,Residential Care
Cambridgeshire County Council,09-Aug-19,51300920569,-941.84,LONGUEVILLE COURT,CARE ESTABLISHMENT,OPMH - Hunts & Fens,Older People Mental Health Fenland,Nursing Care
Cambridgeshire County Council,09-Aug-19,51300920567,-941.84,LONGUEVILLE COURT,CARE ESTABLISHMENT,OPMH - Hunts & Fens,Older People Mental Health Fenland,Nursing Care
Cambridgeshire County Council,09-Aug-19,51300920568,-941.84,LONGUEVILLE COURT,CARE ESTABLISHMENT,OPMH - Hunts & Fens,Older People Mental Health Fenland,Nursing Care
Cambridgeshire County Council,09-Aug-19,51300920566,-941.84,LONGUEVILLE COURT,CARE ESTABLISHMENT,OPMH - Hunts & Fens,Older People Mental Health Fenland,Nursing Care
Cambridgeshire County Council,09-Aug-19,51300813146,-939.28,THE MANOR CHESHIRE HOME,CARE ESTABLISHMENT,OP - Hunts Locality,Hunts O P  Team,Residential Care
Cambridgeshire County Council,01-Aug-19,51301078057,-938.05,CONQUEST CARE HOMES (SOHAM) LTD,CARE ESTABLISHMENT,LD - East Locality,LD - East Cambs - Special Needs,Residential Care
Cambridgeshire County Council,01-Aug-19,51301078058,-938.05,CONQUEST CARE HOMES (SOHAM) LTD,CARE ESTABLISHMENT,LD - East Locality,LD - East Cambs - Special Needs,Residential Care
Cambridgeshire County Council,09-Aug-19,51300823420,-937.77,MAKING SPACE,CARE ESTABLISHMENT,OPMH - City & South,Older People Mental Health City & South,Residential Care
Cambridgeshire County Council,01-Aug-19,51301077461,-930.00,SECURITY GATES AND DOORS,PARTNERSHIP,County Farms,County Farms,County Farms Maintenance
Cambridgeshire County Council,08-Aug-19,51301088507,-924.95,THE EDMUND TRUST,CARE ESTABLISHMENT,OP - City & South Locality,Older People - City & South,Supported Living
Cambridgeshire County Council,08-Aug-19,51301088506,-924.95,THE EDMUND TRUST,CARE ESTABLISHMENT,OP - City & South Locality,Older People - City & South,Supported Living
Cambridgeshire County Council,08-Aug-19,51301088505,-924.95,THE EDMUND TRUST,CARE ESTABLISHMENT,OP - City & South Locality,Older People - City & South,Supported Living
Cambridgeshire County Council,08-Aug-19,51301088511,-924.95,THE EDMUND TRUST,CARE ESTABLISHMENT,OP - City & South Locality,Older People - City & South,Supported Living
Cambridgeshire County Council,08-Aug-19,51301088509,-924.95,THE EDMUND TRUST,CARE ESTABLISHMENT,OP - City & South Locality,Older People - City & South,Supported Living
Cambridgeshire County Council,08-Aug-19,51301088508,-924.95,THE EDMUND TRUST,CARE ESTABLISHMENT,OP - City & South Locality,Older People - City & South,Supported Living
Cambridgeshire County Council,09-Aug-19,51300817245,-921.04,THE MANOR CHESHIRE HOME,CARE ESTABLISHMENT,Physical Disablity,Countywide PD Service - Care,Residential Care
Cambridgeshire County Council,09-Aug-19,51300817243,-921.04,THE MANOR CHESHIRE HOME,CARE ESTABLISHMENT,Physical Disablity,Countywide PD Service - Care,Residential Care
Cambridgeshire County Council,09-Aug-19,51300817248,-921.04,THE MANOR CHESHIRE HOME,CARE ESTABLISHMENT,Physical Disablity,Countywide PD Service - Care,Residential Care
Cambridgeshire County Council,09-Aug-19,51300817240,-921.04,THE MANOR CHESHIRE HOME,CARE ESTABLISHMENT,Physical Disablity,Countywide PD Service - Care,Residential Care
Cambridgeshire County Council,09-Aug-19,51300817241,-921.04,THE MANOR CHESHIRE HOME,CARE ESTABLISHMENT,Physical Disablity,Countywide PD Service - Care,Residential Care
Cambridgeshire County Council,09-Aug-19,51300817247,-921.04,THE MANOR CHESHIRE HOME,CARE ESTABLISHMENT,Physical Disablity,Countywide PD Service - Care,Residential Care
Cambridgeshire County Council,09-Aug-19,51300817242,-921.04,THE MANOR CHESHIRE HOME,CARE ESTABLISHMENT,Physical Disablity,Countywide PD Service - Care,Residential Care
Cambridgeshire County Council,09-Aug-19,51300817249,-921.04,THE MANOR CHESHIRE HOME,CARE ESTABLISHMENT,Physical Disablity,Countywide PD Service - Care,Residential Care
Cambridgeshire County Council,09-Aug-19,51301091777,-915.06,PAULINE BURNETT HOUSE,CARE ESTABLISHMENT,LD - South Locality,LD - South Cambs - Care,Residential Client Care Contributions
Cambridgeshire County Council,09-Aug-19,51301091777,-915.06,PAULINE BURNETT HOUSE,CARE ESTABLISHMENT,LD - South Locality,LD - South Cambs - Care,Residential Client Care Contributions
Cambridgeshire County Council,09-Aug-19,51301091777,-915.06,PAULINE BURNETT HOUSE,CARE ESTABLISHMENT,LD - South Locality,LD - South Cambs - Care,Residential Client Care Contributions
Cambridgeshire County Council,09-Aug-19,51301091777,-915.06,PAULINE BURNETT HOUSE,CARE ESTABLISHMENT,LD - South Locality,LD - South Cambs - Care,Residential Client Care Contributions
Cambridgeshire County Council,09-Aug-19,51301089602,-914.72,CONQUEST CARE HOMES (SOHAM) LTD,CARE ESTABLISHMENT,LD - East Locality,LD - East Cambs - Special Needs,Residential Care
Cambridgeshire County Council,09-Aug-19,51301089603,-914.72,CONQUEST CARE HOMES (SOHAM) LTD,CARE ESTABLISHMENT,LD - East Locality,LD - East Cambs - Special Needs,Residential Care
Cambridgeshire County Council,09-Aug-19,51301089600,-914.72,CONQUEST CARE HOMES (SOHAM) LTD,CARE ESTABLISHMENT,LD - East Locality,LD - East Cambs - Special Needs,Residential Care
Cambridgeshire County Council,09-Aug-19,51301089599,-914.72,CONQUEST CARE HOMES (SOHAM) LTD,CARE ESTABLISHMENT,LD - East Locality,LD - East Cambs - Special Needs,Residential Care
Cambridgeshire County Council,28-Aug-19,51300842320,-914.28,MOSAIC FOSTER CARE LTD,CARE ESTABLISHMENT,LAC Placements,Placements - independent fostering,Agency Placements - Out of  County
Cambridgeshire County Council,16-Aug-19,51301074787,-911.17,THE GROVE CHESHIRE HOME,CARE ESTABLISHMENT,LD - East Locality,LD - East Cambs - Special Needs,Residential Care
Cambridgeshire County Council,16-Aug-19,51301082603,-911.17,THE GROVE CHESHIRE HOME,CARE ESTABLISHMENT,LD - East Locality,LD - East Cambs - Special Needs,Residential Care
Cambridgeshire County Council,16-Aug-19,51301115509,-911.17,THE GROVE CHESHIRE HOME,CARE ESTABLISHMENT,LD - East Locality,LD - East Cambs - Special Needs,Residential Care
Cambridgeshire County Council,16-Aug-19,51301074768,-911.17,THE GROVE CHESHIRE HOME,CARE ESTABLISHMENT,LD - East Locality,LD - East Cambs - Special Needs,Residential Care
Cambridgeshire County Council,16-Aug-19,51301082616,-911.17,THE GROVE CHESHIRE HOME,CARE ESTABLISHMENT,LD - East Locality,LD - East Cambs - Special Needs,Residential Care
Cambridgeshire County Council,16-Aug-19,51301090253,-911.17,THE GROVE CHESHIRE HOME,CARE ESTABLISHMENT,LD - East Locality,LD - East Cambs - Special Needs,Residential Care
Cambridgeshire County Council,16-Aug-19,51301074780,-911.17,THE GROVE CHESHIRE HOME,CARE ESTABLISHMENT,LD - East Locality,LD - East Cambs - Special Needs,Residential Care
Cambridgeshire County Council,16-Aug-19,51301082607,-911.17,THE GROVE CHESHIRE HOME,CARE ESTABLISHMENT,LD - East Locality,LD - East Cambs - Special Needs,Residential Care
Cambridgeshire County Council,16-Aug-19,51301090249,-911.17,THE GROVE CHESHIRE HOME,CARE ESTABLISHMENT,LD - East Locality,LD - East Cambs - Special Needs,Residential Care
Cambridgeshire County Council,16-Aug-19,51301082609,-911.17,THE GROVE CHESHIRE HOME,CARE ESTABLISHMENT,LD - East Locality,LD - East Cambs - Special Needs,Residential Care
Cambridgeshire County Council,16-Aug-19,51301115508,-911.17,THE GROVE CHESHIRE HOME,CARE ESTABLISHMENT,LD - East Locality,LD - East Cambs - Special Needs,Residential Care
Cambridgeshire County Council,16-Aug-19,51301115512,-911.17,THE GROVE CHESHIRE HOME,CARE ESTABLISHMENT,LD - East Locality,LD - East Cambs - Special Needs,Residential Care
Cambridgeshire County Council,16-Aug-19,51301090246,-911.17,THE GROVE CHESHIRE HOME,CARE ESTABLISHMENT,LD - East Locality,LD - East Cambs - Special Needs,Residential Care
Cambridgeshire County Council,16-Aug-19,51301090258,-911.17,THE GROVE CHESHIRE HOME,CARE ESTABLISHMENT,LD - East Locality,LD - East Cambs - Special Needs,Residential Care
Cambridgeshire County Council,16-Aug-19,51301074758,-911.17,THE GROVE CHESHIRE HOME,CARE ESTABLISHMENT,LD - East Locality,LD - East Cambs - Special Needs,Residential Care
Cambridgeshire County Council,16-Aug-19,51301090250,-911.17,THE GROVE CHESHIRE HOME,CARE ESTABLISHMENT,LD - East Locality,LD - East Cambs - Special Needs,Residential Care
Cambridgeshire County Council,16-Aug-19,51301082614,-911.17,THE GROVE CHESHIRE HOME,CARE ESTABLISHMENT,LD - East Locality,LD - East Cambs - Special Needs,Residential Care
Cambridgeshire County Council,16-Aug-19,51301115513,-911.17,THE GROVE CHESHIRE HOME,CARE ESTABLISHMENT,LD - East Locality,LD - East Cambs - Special Needs,Residential Care
Cambridgeshire County Council,16-Aug-19,51301074748,-911.17,THE GROVE CHESHIRE HOME,CARE ESTABLISHMENT,LD - East Locality,LD - East Cambs - Special Needs,Residential Care
Cambridgeshire County Council,16-Aug-19,51301074770,-911.17,THE GROVE CHESHIRE HOME,CARE ESTABLISHMENT,LD - East Locality,LD - East Cambs - Special Needs,Residential Care
Cambridgeshire County Council,16-Aug-19,51301074763,-911.17,THE GROVE CHESHIRE HOME,CARE ESTABLISHMENT,LD - Fenland Locality,LD - Fenland  - Special Needs,Residential Care
Cambridgeshire County Council,16-Aug-19,51301074782,-911.17,THE GROVE CHESHIRE HOME,CARE ESTABLISHMENT,LD - Fenland Locality,LD - Fenland  - Special Needs,Residential Care
Cambridgeshire County Council,16-Aug-19,51301074784,-911.17,THE GROVE CHESHIRE HOME,CARE ESTABLISHMENT,LD - Fenland Locality,LD - Fenland  - Special Needs,Residential Care
Cambridgeshire County Council,16-Aug-19,51301074752,-911.17,THE GROVE CHESHIRE HOME,CARE ESTABLISHMENT,LD - Fenland Locality,LD - Fenland  - Special Needs,Residential Care
Cambridgeshire County Council,16-Aug-19,51301074786,-911.17,THE GROVE CHESHIRE HOME,CARE ESTABLISHMENT,LD - Fenland Locality,LD - Fenland  - Special Needs,Residential Care
Cambridgeshire County Council,16-Aug-19,51301115514,-911.17,THE GROVE CHESHIRE HOME,CARE ESTABLISHMENT,LD - Fenland Locality,LD - Fenland  - Special Needs,Residential Care
Cambridgeshire County Council,16-Aug-19,51301082601,-911.17,THE GROVE CHESHIRE HOME,CARE ESTABLISHMENT,LD - Fenland Locality,LD - Fenland  - Special Needs,Residential Care
Cambridgeshire County Council,16-Aug-19,51301115507,-911.17,THE GROVE CHESHIRE HOME,CARE ESTABLISHMENT,LD - Fenland Locality,LD - Fenland  - Special Needs,Residential Care
Cambridgeshire County Council,16-Aug-19,51301074781,-911.17,THE GROVE CHESHIRE HOME,CARE ESTABLISHMENT,LD - Fenland Locality,LD - Fenland  - Special Needs,Residential Care
Cambridgeshire County Council,16-Aug-19,51301074755,-911.17,THE GROVE CHESHIRE HOME,CARE ESTABLISHMENT,LD - Fenland Locality,LD - Fenland  - Special Needs,Residential Care
Cambridgeshire County Council,16-Aug-19,51301090248,-911.17,THE GROVE CHESHIRE HOME,CARE ESTABLISHMENT,LD - Fenland Locality,LD - Fenland  - Special Needs,Residential Care
Cambridgeshire County Council,16-Aug-19,51301074767,-911.17,THE GROVE CHESHIRE HOME,CARE ESTABLISHMENT,LD - Fenland Locality,LD - Fenland  - Special Needs,Residential Care
Cambridgeshire County Council,16-Aug-19,51301090251,-911.17,THE GROVE CHESHIRE HOME,CARE ESTABLISHMENT,LD - Fenland Locality,LD - Fenland  - Special Needs,Residential Care
Cambridgeshire County Council,16-Aug-19,51301074769,-911.17,THE GROVE CHESHIRE HOME,CARE ESTABLISHMENT,LD - Fenland Locality,LD - Fenland  - Special Needs,Residential Care
Cambridgeshire County Council,16-Aug-19,51301074774,-911.17,THE GROVE CHESHIRE HOME,CARE ESTABLISHMENT,LD - Fenland Locality,LD - Fenland  - Special Needs,Residential Care
Cambridgeshire County Council,16-Aug-19,51301074751,-911.17,THE GROVE CHESHIRE HOME,CARE ESTABLISHMENT,LD - Fenland Locality,LD - Fenland  - Special Needs,Residential Care
Cambridgeshire County Council,16-Aug-19,51301074788,-911.17,THE GROVE CHESHIRE HOME,CARE ESTABLISHMENT,LD - Fenland Locality,LD - Fenland  - Special Needs,Residential Care
Cambridgeshire County Council,16-Aug-19,51301074777,-911.17,THE GROVE CHESHIRE HOME,CARE ESTABLISHMENT,LD - Fenland Locality,LD - Fenland  - Special Needs,Residential Care
Cambridgeshire County Council,16-Aug-19,51301115506,-911.17,THE GROVE CHESHIRE HOME,CARE ESTABLISHMENT,LD - Fenland Locality,LD - Fenland  - Special Needs,Residential Care
Cambridgeshire County Council,16-Aug-19,51301090257,-911.17,THE GROVE CHESHIRE HOME,CARE ESTABLISHMENT,LD - Fenland Locality,LD - Fenland  - Special Needs,Residential Care
Cambridgeshire County Council,16-Aug-19,51301082608,-911.17,THE GROVE CHESHIRE HOME,CARE ESTABLISHMENT,LD - Fenland Locality,LD - Fenland  - Special Needs,Residential Care
Cambridgeshire County Council,16-Aug-19,51301082605,-911.17,THE GROVE CHESHIRE HOME,CARE ESTABLISHMENT,LD - Fenland Locality,LD - Fenland  - Special Needs,Residential Care
Cambridgeshire County Council,16-Aug-19,51301074778,-911.17,THE GROVE CHESHIRE HOME,CARE ESTABLISHMENT,LD - Fenland Locality,LD - Fenland  - Special Needs,Residential Care
Cambridgeshire County Council,16-Aug-19,51301115516,-911.17,THE GROVE CHESHIRE HOME,CARE ESTABLISHMENT,LD - Fenland Locality,LD - Fenland  - Special Needs,Residential Care
Cambridgeshire County Council,16-Aug-19,51301117324,-901.00,HOME MEADOW LTD,CARE ESTABLISHMENT,OP - City & South Locality,Older People - City & South,Residential Care
Cambridgeshire County Council,16-Aug-19,51301117324,-901.00,HOME MEADOW LTD,CARE ESTABLISHMENT,OP - City & South Locality,Older People - City & South,Residential Care
Cambridgeshire County Council,16-Aug-19,51301117324,-901.00,HOME MEADOW LTD,CARE ESTABLISHMENT,OP - City & South Locality,Older People - City & South,Residential Care
Cambridgeshire County Council,01-Aug-19,51301078877,-900.00,FOUR OAKS HEALTHCARE LIMITED,CARE ESTABLISHMENT,OP - City & South Locality,Older People - City & South,Domiciliary Care
Cambridgeshire County Council,01-Aug-19,51301078881,-900.00,FOUR OAKS HEALTHCARE LIMITED,CARE ESTABLISHMENT,OPMH - City & South,Older People Mental Health City & South,Domiciliary Care
Cambridgeshire County Council,01-Aug-19,51301078882,-900.00,FOUR OAKS HEALTHCARE LIMITED,CARE ESTABLISHMENT,OPMH - City & South,Older People Mental Health City & South,Domiciliary Care
Cambridgeshire County Council,01-Aug-19,51301078871,-900.00,FOUR OAKS HEALTHCARE LIMITED,CARE ESTABLISHMENT,OPMH - City & South,Older People Mental Health City & South,Domiciliary Care
Cambridgeshire County Council,09-Aug-19,51301087160,-900.00,AVERY HOUSE CARE HOME,CARE ESTABLISHMENT,OP - Hunts Locality,Hunts O P  Team,Nursing Care
Cambridgeshire County Council,09-Aug-19,51301068053,-900.00,AVERY HOUSE CARE HOME,CARE ESTABLISHMENT,OP - Hunts Locality,Hunts O P  Team,Nursing Care
Cambridgeshire County Council,09-Aug-19,51301068057,-900.00,AVERY HOUSE CARE HOME,CARE ESTABLISHMENT,OP - Hunts Locality,Hunts O P  Team,Nursing Care
Cambridgeshire County Council,09-Aug-19,51301087159,-900.00,AVERY HOUSE CARE HOME,CARE ESTABLISHMENT,OP - Hunts Locality,Hunts O P  Team,Residential Care
Cambridgeshire County Council,09-Aug-19,51301087153,-900.00,AVERY HOUSE CARE HOME,CARE ESTABLISHMENT,OP - Hunts Locality,Hunts O P  Team,Residential Care
Cambridgeshire County Council,09-Aug-19,51301087194,-900.00,AVERY HOUSE CARE HOME,CARE ESTABLISHMENT,OP - Hunts Locality,Hunts O P  Team,Nursing Care
Cambridgeshire County Council,09-Aug-19,51301068090,-900.00,AVERY HOUSE CARE HOME,CARE ESTABLISHMENT,OP - Hunts Locality,Hunts O P  Team,Nursing Care
Cambridgeshire County Council,09-Aug-19,51301078936,-900.00,AVERY HOUSE CARE HOME,CARE ESTABLISHMENT,OP - Hunts Locality,Hunts O P  Team,Residential Care
Cambridgeshire County Council,09-Aug-19,51301068046,-900.00,AVERY HOUSE CARE HOME,CARE ESTABLISHMENT,OP - Hunts Locality,Hunts O P  Team,Nursing Care
Cambridgeshire County Council,09-Aug-19,51301068089,-900.00,AVERY HOUSE CARE HOME,CARE ESTABLISHMENT,OP - Hunts Locality,Hunts O P  Team,Residential Care
Cambridgeshire County Council,09-Aug-19,51301078930,-900.00,AVERY HOUSE CARE HOME,CARE ESTABLISHMENT,OP - Hunts Locality,Hunts O P  Team,Nursing Care
Cambridgeshire County Council,09-Aug-19,51301087162,-900.00,AVERY HOUSE CARE HOME,CARE ESTABLISHMENT,OP - Hunts Locality,Hunts O P  Team,Nursing Care
Cambridgeshire County Council,09-Aug-19,51301068047,-900.00,AVERY HOUSE CARE HOME,CARE ESTABLISHMENT,OP - Hunts Locality,Hunts O P  Team,Residential Care
Cambridgeshire County Council,09-Aug-19,51301078921,-900.00,AVERY HOUSE CARE HOME,CARE ESTABLISHMENT,OP - Hunts Locality,Hunts O P  Team,Nursing Care
Cambridgeshire County Council,09-Aug-19,51301087195,-900.00,AVERY HOUSE CARE HOME,CARE ESTABLISHMENT,OP - Hunts Locality,Hunts O P  Team,Residential Care
Cambridgeshire County Council,09-Aug-19,51301087165,-900.00,AVERY HOUSE CARE HOME,CARE ESTABLISHMENT,OP - Hunts Locality,Hunts O P  Team,Nursing Care
Cambridgeshire County Council,09-Aug-19,51301087178,-900.00,AVERY HOUSE CARE HOME,CARE ESTABLISHMENT,OP - Hunts Locality,Hunts O P  Team,Nursing Care
Cambridgeshire County Council,09-Aug-19,51301078916,-900.00,AVERY HOUSE CARE HOME,CARE ESTABLISHMENT,OP - Hunts Locality,Hunts O P  Team,Nursing Care
Cambridgeshire County Council,09-Aug-19,51301078899,-900.00,AVERY HOUSE CARE HOME,CARE ESTABLISHMENT,OP - Hunts Locality,Hunts O P  Team,Residential Care
Cambridgeshire County Council,09-Aug-19,51301078914,-900.00,AVERY HOUSE CARE HOME,CARE ESTABLISHMENT,OP - Hunts Locality,Hunts O P  Team,Nursing Care
Cambridgeshire County Council,09-Aug-19,51301068079,-900.00,AVERY HOUSE CARE HOME,CARE ESTABLISHMENT,OP - Hunts Locality,Hunts O P  Team,Nursing Care
Cambridgeshire County Council,09-Aug-19,51301087189,-900.00,AVERY HOUSE CARE HOME,CARE ESTABLISHMENT,OP - Hunts Locality,Hunts O P  Team,Nursing Care
Cambridgeshire County Council,09-Aug-19,51301068071,-900.00,AVERY HOUSE CARE HOME,CARE ESTABLISHMENT,OP - Hunts Locality,Hunts O P  Team,Nursing Care
Cambridgeshire County Council,09-Aug-19,51301087185,-900.00,AVERY HOUSE CARE HOME,CARE ESTABLISHMENT,OP - Hunts Locality,Hunts O P  Team,Nursing Care
Cambridgeshire County Council,09-Aug-19,51301068080,-900.00,AVERY HOUSE CARE HOME,CARE ESTABLISHMENT,OP - Hunts Locality,Hunts O P  Team,Residential Care
Cambridgeshire County Council,09-Aug-19,51301068088,-900.00,AVERY HOUSE CARE HOME,CARE ESTABLISHMENT,OP - Hunts Locality,Hunts O P  Team,Residential Care
Cambridgeshire County Council,09-Aug-19,51301078923,-900.00,AVERY HOUSE CARE HOME,CARE ESTABLISHMENT,OP - Hunts Locality,Hunts O P  Team,Nursing Care
Cambridgeshire County Council,09-Aug-19,51301087200,-900.00,AVERY HOUSE CARE HOME,CARE ESTABLISHMENT,OP - Hunts Locality,Hunts O P  Team,Residential Care
Cambridgeshire County Council,09-Aug-19,51301068067,-900.00,AVERY HOUSE CARE HOME,CARE ESTABLISHMENT,OP - Hunts Locality,Hunts O P  Team,Nursing Care
Cambridgeshire County Council,09-Aug-19,51301078924,-900.00,AVERY HOUSE CARE HOME,CARE ESTABLISHMENT,OP - Hunts Locality,Hunts O P  Team,Nursing Care
Cambridgeshire County Council,09-Aug-19,51301068048,-900.00,AVERY HOUSE CARE HOME,CARE ESTABLISHMENT,OP - Hunts Locality,Hunts O P  Team,Residential Care
Cambridgeshire County Council,09-Aug-19,51301087172,-900.00,AVERY HOUSE CARE HOME,CARE ESTABLISHMENT,OP - Hunts Locality,Hunts O P  Team,Residential Care
Cambridgeshire County Council,09-Aug-19,51301087173,-900.00,AVERY HOUSE CARE HOME,CARE ESTABLISHMENT,OP - Hunts Locality,Hunts O P  Team,Residential Care
Cambridgeshire County Council,09-Aug-19,51301068094,-900.00,AVERY HOUSE CARE HOME,CARE ESTABLISHMENT,OP - Hunts Locality,Hunts O P  Team,Residential Care
Cambridgeshire County Council,09-Aug-19,51301068069,-900.00,AVERY HOUSE CARE HOME,CARE ESTABLISHMENT,OP - Hunts Locality,Hunts O P  Team,Residential Care
Cambridgeshire County Council,09-Aug-19,51301078901,-900.00,AVERY HOUSE CARE HOME,CARE ESTABLISHMENT,OP - Hunts Locality,Hunts O P  Team,Residential Care
Cambridgeshire County Council,09-Aug-19,51301087156,-900.00,AVERY HOUSE CARE HOME,CARE ESTABLISHMENT,OP - Hunts Locality,Hunts O P  Team,Residential Care
Cambridgeshire County Council,09-Aug-19,51301068052,-900.00,AVERY HOUSE CARE HOME,CARE ESTABLISHMENT,OP - Hunts Locality,Hunts O P  Team,Residential Care
Cambridgeshire County Council,09-Aug-19,51301078904,-900.00,AVERY HOUSE CARE HOME,CARE ESTABLISHMENT,OP - Hunts Locality,Hunts O P  Team,Residential Care
Cambridgeshire County Council,09-Aug-19,51301078940,-900.00,AVERY HOUSE CARE HOME,CARE ESTABLISHMENT,OP - Hunts Locality,Hunts O P  Team,Residential Care
Cambridgeshire County Council,09-Aug-19,51301068083,-900.00,AVERY HOUSE CARE HOME,CARE ESTABLISHMENT,OP - Hunts Locality,Hunts O P  Team,Residential Care
Cambridgeshire County Council,09-Aug-19,51301068056,-900.00,AVERY HOUSE CARE HOME,CARE ESTABLISHMENT,OP - Hunts Locality,Hunts O P  Team,Residential Care
Cambridgeshire County Council,09-Aug-19,51301068073,-900.00,AVERY HOUSE CARE HOME,CARE ESTABLISHMENT,OP - Hunts Locality,Hunts O P  Team,Nursing Care
Cambridgeshire County Council,09-Aug-19,51301087193,-900.00,AVERY HOUSE CARE HOME,CARE ESTABLISHMENT,OP - Hunts Locality,Hunts O P  Team,Residential Care
Cambridgeshire County Council,09-Aug-19,51301068060,-900.00,AVERY HOUSE CARE HOME,CARE ESTABLISHMENT,OP - Hunts Locality,Hunts O P  Team,Residential Care
Cambridgeshire County Council,09-Aug-19,51301078939,-900.00,AVERY HOUSE CARE HOME,CARE ESTABLISHMENT,OP - Hunts Locality,Hunts O P  Team,Nursing Care
Cambridgeshire County Council,09-Aug-19,51301087164,-900.00,AVERY HOUSE CARE HOME,CARE ESTABLISHMENT,OP - Hunts Locality,Hunts O P  Team,Nursing Care
Cambridgeshire County Council,09-Aug-19,51301087171,-900.00,AVERY HOUSE CARE HOME,CARE ESTABLISHMENT,OP - Hunts Locality,Hunts O P  Team,Residential Care
Cambridgeshire County Council,09-Aug-19,51301078942,-900.00,AVERY HOUSE CARE HOME,CARE ESTABLISHMENT,OP - Hunts Locality,Hunts O P  Team,Residential Care
Cambridgeshire County Council,09-Aug-19,51301068072,-900.00,AVERY HOUSE CARE HOME,CARE ESTABLISHMENT,OP - Hunts Locality,Hunts O P  Team,Nursing Care
Cambridgeshire County Council,09-Aug-19,51301078903,-900.00,AVERY HOUSE CARE HOME,CARE ESTABLISHMENT,OP - Hunts Locality,Hunts O P  Team,Nursing Care
Cambridgeshire County Council,09-Aug-19,51301078929,-900.00,AVERY HOUSE CARE HOME,CARE ESTABLISHMENT,OP - Hunts Locality,Hunts O P  Team,Residential Care
Cambridgeshire County Council,09-Aug-19,51301087197,-900.00,AVERY HOUSE CARE HOME,CARE ESTABLISHMENT,OP - Hunts Locality,Hunts O P  Team,Nursing Care
Cambridgeshire County Council,09-Aug-19,51301078949,-900.00,AVERY HOUSE CARE HOME,CARE ESTABLISHMENT,OP - Hunts Locality,Hunts O P  Team,Nursing Care
Cambridgeshire County Council,09-Aug-19,51301078902,-900.00,AVERY HOUSE CARE HOME,CARE ESTABLISHMENT,OP - Hunts Locality,Hunts O P  Team,Nursing Care
Cambridgeshire County Council,09-Aug-19,51301078925,-900.00,AVERY HOUSE CARE HOME,CARE ESTABLISHMENT,OP - Hunts Locality,Hunts O P  Team,Residential Care
Cambridgeshire County Council,09-Aug-19,51301087176,-900.00,AVERY HOUSE CARE HOME,CARE ESTABLISHMENT,OP - Hunts Locality,Hunts O P  Team,Residential Care
Cambridgeshire County Council,09-Aug-19,51301087155,-900.00,AVERY HOUSE CARE HOME,CARE ESTABLISHMENT,OP - Hunts Locality,Hunts O P  Team,Residential Care
Cambridgeshire County Council,09-Aug-19,51301087167,-900.00,AVERY HOUSE CARE HOME,CARE ESTABLISHMENT,OP - Hunts Locality,Hunts O P  Team,Nursing Care
Cambridgeshire County Council,09-Aug-19,51301068070,-900.00,AVERY HOUSE CARE HOME,CARE ESTABLISHMENT,OP - Hunts Locality,Hunts O P  Team,Nursing Care
Cambridgeshire County Council,09-Aug-19,51301068092,-900.00,AVERY HOUSE CARE HOME,CARE ESTABLISHMENT,OP - Hunts Locality,Hunts O P  Team,Residential Care
Cambridgeshire County Council,09-Aug-19,51301068075,-900.00,AVERY HOUSE CARE HOME,CARE ESTABLISHMENT,OP - Hunts Locality,Hunts O P  Team,Residential Care
Cambridgeshire County Council,09-Aug-19,51301078932,-900.00,AVERY HOUSE CARE HOME,CARE ESTABLISHMENT,OP - Hunts Locality,Hunts O P  Team,Nursing Care
Cambridgeshire County Council,09-Aug-19,51301078919,-900.00,AVERY HOUSE CARE HOME,CARE ESTABLISHMENT,OP - Hunts Locality,Hunts O P  Team,Residential Care
Cambridgeshire County Council,09-Aug-19,51301078943,-900.00,AVERY HOUSE CARE HOME,CARE ESTABLISHMENT,OP - Hunts Locality,Hunts O P  Team,Nursing Care
Cambridgeshire County Council,09-Aug-19,51301078911,-900.00,AVERY HOUSE CARE HOME,CARE ESTABLISHMENT,OP - Hunts Locality,Hunts O P  Team,Residential Care
Cambridgeshire County Council,09-Aug-19,51301087196,-900.00,AVERY HOUSE CARE HOME,CARE ESTABLISHMENT,OP - Hunts Locality,Hunts O P  Team,Residential Care
Cambridgeshire County Council,09-Aug-19,51301068074,-900.00,AVERY HOUSE CARE HOME,CARE ESTABLISHMENT,OP - Hunts Locality,Hunts O P  Team,Residential Care
Cambridgeshire County Council,09-Aug-19,51301078927,-900.00,AVERY HOUSE CARE HOME,CARE ESTABLISHMENT,OP - Hunts Locality,Hunts O P  Team,Residential Care
Cambridgeshire County Council,09-Aug-19,51301078909,-900.00,AVERY HOUSE CARE HOME,CARE ESTABLISHMENT,OP - Hunts Locality,Hunts O P  Team,Residential Care
Cambridgeshire County Council,09-Aug-19,51301087157,-900.00,AVERY HOUSE CARE HOME,CARE ESTABLISHMENT,OP - Hunts Locality,Hunts O P  Team,Nursing Care
Cambridgeshire County Council,09-Aug-19,51301087179,-900.00,AVERY HOUSE CARE HOME,CARE ESTABLISHMENT,OP - Hunts Locality,Hunts O P  Team,Residential Care
Cambridgeshire County Council,09-Aug-19,51301068058,-900.00,AVERY HOUSE CARE HOME,CARE ESTABLISHMENT,OP - Hunts Locality,Hunts O P  Team,Residential Care
Cambridgeshire County Council,09-Aug-19,51301087166,-900.00,AVERY HOUSE CARE HOME,CARE ESTABLISHMENT,OP - Hunts Locality,Hunts O P  Team,Residential Care
Cambridgeshire County Council,09-Aug-19,51301078935,-900.00,AVERY HOUSE CARE HOME,CARE ESTABLISHMENT,OP - Hunts Locality,Hunts O P  Team,Residential Care
Cambridgeshire County Council,09-Aug-19,51301091443,-900.00,CHERRY HINTON NURSING HOME,CARE ESTABLISHMENT,OP - City & South Locality,Older People - City & South,Nursing Care
Cambridgeshire County Council,09-Aug-19,51301091443,-900.00,CHERRY HINTON NURSING HOME,CARE ESTABLISHMENT,OP - City & South Locality,Older People - City & South,Nursing Care
Cambridgeshire County Council,09-Aug-19,51301091443,-900.00,CHERRY HINTON NURSING HOME,CARE ESTABLISHMENT,OP - City & South Locality,Older People - City & South,Nursing Care
Cambridgeshire County Council,09-Aug-19,51301091443,-900.00,CHERRY HINTON NURSING HOME,CARE ESTABLISHMENT,OP - City & South Locality,Older People - City & South,Nursing Care
Cambridgeshire County Council,09-Aug-19,51301091443,-900.00,CHERRY HINTON NURSING HOME,CARE ESTABLISHMENT,OP - City & South Locality,Older People - City & South,Nursing Care
Cambridgeshire County Council,09-Aug-19,51301091443,-900.00,CHERRY HINTON NURSING HOME,CARE ESTABLISHMENT,OP - City & South Locality,Older People - City & South,Nursing Care
Cambridgeshire County Council,09-Aug-19,51301091443,-900.00,CHERRY HINTON NURSING HOME,CARE ESTABLISHMENT,OP - City & South Locality,Older People - City & South,Nursing Care
